Service Area,Service Division,Expense Type,Expense Code,Detailed Expense Type,Payment Date,Transaction Number,Amount Exc Vat,Supplier Name
Adult and Health Services,Head of Adults,Supplies and Services,338366,Services,03-Jul-17,3303393-41487,"4,327.80",CARE ABILITY.
Adult and Health Services,Commissioning inc Supporting People,Supplies and Services,352001,Conference Expenses,03-Jul-17,3303536-10294,735,IT TRAINING SOLUTIONS LTD.
Adult and Health Services,Head of Adults,Supplies and Services,338045,Services,03-Jul-17,3303588-1045250,900,MR THOMAS HUGHES.
Adult and Health Services,Head of Adults,Third Party Payments,479102,Purchase of Care,03-Jul-17,3303735-4810010256,"3,100.00",TEES ESK & WEAR VALLEYS NHS FOUNDATION TRUST.
Children and Young Peoples Services,Head of Looked After Provision Permanence and Care Leavers,Supplies and Services,338078,Services,03-Jul-17,3303349-06915,"1,503.60",ALL EVENTS SECURITY LTD (AES).
Children and Young Peoples Services,Head of Looked After Provision Permanence and Care Leavers,Supplies and Services,338078,Services,03-Jul-17,3303349-06931,"1,503.60",ALL EVENTS SECURITY LTD (AES).
Children and Young Peoples Services,Head of Education,Supplies and Services,352001,Conference Expenses,03-Jul-17,3303351-4100573858,850,ANDREW LOCKETT.
Children and Young Peoples Services,Head of Early Help Assessment and Safeguarding,Premises,108099,Service Repairs and Maintenance,03-Jul-17,3303400-2827,"3,228.30",CATHEDRAL LOCK & SAFE SERVICES LTD.
Children and Young Peoples Services,Head of Education,Supplies and Services,384199,Miscellaneous Expenses,03-Jul-17,3303475-5101692,500,EXCEL ACADEMY PARTNERSHIP T/A FRAMWELLGATE SCHOOL DURHAM.
Children and Young Peoples Services,Head of Education,Supplies and Services,384199,Miscellaneous Expenses,03-Jul-17,3303554-697,750,KIDZ R FIT LTD.
Children and Young Peoples Services,Head of Early Help Assessment and Safeguarding,Supplies and Services,384199,Miscellaneous Expenses,03-Jul-17,3303600-031,543.2,NICOLA JONES EDUCATION CONSULTANCY & TRAINING.
Dedicated Schools Grant,Dedicated Schools Grant,Third Party Payments,440080,Other Third Party Payments,03-Jul-17,3303604-0000033420,"11,172.54",NORTH EAST AUTISM SOCIETY.
Children and Young Peoples Services,Head of Education,Supplies and Services,377015,County Durham Development,03-Jul-17,3303623-4047000349,550,PARK VIEW ACADEMY.
Children and Young Peoples Services,Head of Early Help Assessment and Safeguarding,Third Party Payments,430100,Rendered by Private Contractors,03-Jul-17,3303677-1718,998,ROGER KENNINGTON CONSULTING.
Children and Young Peoples Services,Head of Education,Supplies and Services,384199,Miscellaneous Expenses,03-Jul-17,3303697-217251,860,SIMPLY SPORT LTD.
Children and Young Peoples Services,Head of Education,Employees,40001,Recruitment Instruction and Training,03-Jul-17,3303738-INVTES00034630,710.1,TES GLOBAL LTD.
Dedicated Schools Grant,Dedicated Schools Grant,Third Party Payments,440080,Other Third Party Payments,03-Jul-17,3303745-6455,"3,104.45",THE ROYAL NATIONAL COLLEGE FOR THE BLIND.
Dedicated Schools Grant,Dedicated Schools Grant,Third Party Payments,440080,Other Third Party Payments,03-Jul-17,3303745-6456,"2,834.00",THE ROYAL NATIONAL COLLEGE FOR THE BLIND.
Children and Young Peoples Services,Head of Early Help Assessment and Safeguarding,Supplies and Services,338099,Services,03-Jul-17,3303748-0095,"34,000.00",THE SKILL MILL LTD.
Children and Young Peoples Services,Head of Looked After Provision Permanence and Care Leavers,Employees,80025,Agency Staff,03-Jul-17,3303777-266507,850,VISION FOR EDUCATION LTD.
Children and Young Peoples Services,Head of Looked After Provision Permanence and Care Leavers,Employees,80025,Agency Staff,03-Jul-17,3303777-266508,540,VISION FOR EDUCATION LTD.
Children and Young Peoples Services,Head of Education,Transfer Payments,510026,School Children,03-Jul-17,3303791-RM005,777.6,YORK HOUSE NURSERY.
Regeneration and Local Services,Economic Development and Housing,Cap Exp on Grants & Other Financial Assistance (REFCUS),918401,Capital grants,03-Jul-17,3303514-RED-06-2017-249,"3,447.00",HES GROUP UK LTD.
Regeneration and Local Services,Economic Development and Housing,Cap Exp on Grants & Other Financial Assistance (REFCUS),918401,Capital grants,03-Jul-17,3303753-RED-06-2017-250,"3,736.91",THYSSENKRUPP ENCASA A DIVISION OF THYSSENKRUPP ACCESS LTD.
Regeneration and Local Services,Economic Development and Housing,Cap Exp on Grants & Other Financial Assistance (REFCUS),918401,Capital grants,03-Jul-17,3303753-RED-06-2017-251,"1,580.00",THYSSENKRUPP ENCASA A DIVISION OF THYSSENKRUPP ACCESS LTD.
Regeneration and Local Services,Economic Development and Housing,Cap Exp on Grants & Other Financial Assistance (REFCUS),918401,Capital grants,03-Jul-17,3303753-RED-06-2017-252,"1,364.22",THYSSENKRUPP ENCASA A DIVISION OF THYSSENKRUPP ACCESS LTD.
Regeneration and Local Services,Economic Development and Housing,Premises,106082,Centrally Controlled Rep and Maint,03-Jul-17,3303357-28266,535,AQUAJET DRAIN CLEANING LTD.
Regeneration and Local Services,Culture & Sport,Premises,106082,Centrally Controlled Rep and Maint,03-Jul-17,3303357-28373,970,AQUAJET DRAIN CLEANING LTD.
Regeneration and Local Services,Culture & Sport,Premises,145023,Cleaning and Domestic Supplies,03-Jul-17,3303504-06/647812,620.94,GREENHAM TRADING LTD.
Regeneration and Local Services,Direct Services,Premises,145023,Cleaning and Domestic Supplies,03-Jul-17,3303504-06/647922,"1,468.00",GREENHAM TRADING LTD.
Regeneration and Local Services,Spatial Policy Planning Assets & Environment,Supplies and Services,342053,Computers and Communications,03-Jul-17,3303429-104898261,"5,388.00",COSTAR UK LTD.
Regeneration and Local Services,Technical Services,Construction Work,908105,Construction work,03-Jul-17,3303539-20494,"1,580.48",JACK COUPE & SONS LTD T/A COUPE LINE.
Regeneration and Local Services,Culture & Sport,Fees,901002,Professional fees,03-Jul-17,3303705-732/PJ1471/25,"2,365.00",SOUTHERN GREEN LTD.
Regeneration and Local Services,Economic Development and Housing,Supplies and Services,377015,County Durham Development,03-Jul-17,3303364-1692,"3,918.00",AUTO ITEMS LTD.
Regeneration and Local Services,Economic Development and Housing,Supplies and Services,377015,County Durham Development,03-Jul-17,3303364-1693,"1,423.00",AUTO ITEMS LTD.
Regeneration and Local Services,Spatial Policy Planning Assets & Environment,Creditors,952146,Creditor-Section 106 agreement,03-Jul-17,3303480-RED-06-2017-254,"6,000.00",FERRYHILL TOWN COUNCIL.
Regeneration and Local Services,Spatial Policy Planning Assets & Environment,Creditors,952146,Creditor-Section 106 agreement,03-Jul-17,3303489-RED-06-2017-253,"17,125.46",FRAMWELLGATE MOOR & DISTRICT YOUTH & COMMUNITY ASSOCIATION.
Regeneration and Local Services,Technical Services,Supplies and Services,304221,Equipment and Materials,03-Jul-17,3303346-24989493,613.33,AGGREGATE INDUSTRIES UK LTD.
Regeneration and Local Services,Technical Services,Supplies and Services,304221,Equipment and Materials,03-Jul-17,3303346-24989494,"1,822.52",AGGREGATE INDUSTRIES UK LTD.
Regeneration and Local Services,Technical Services,Supplies and Services,304221,Equipment and Materials,03-Jul-17,3303346-24989495,616.63,AGGREGATE INDUSTRIES UK LTD.
Regeneration and Local Services,Technical Services,Supplies and Services,304221,Equipment and Materials,03-Jul-17,3303346-24989496,859.51,AGGREGATE INDUSTRIES UK LTD.
Regeneration and Local Services,Technical Services,Supplies and Services,304221,Equipment and Materials,03-Jul-17,3303346-24989497,"2,205.10",AGGREGATE INDUSTRIES UK LTD.
Regeneration and Local Services,Technical Services,Supplies and Services,304221,Equipment and Materials,03-Jul-17,3303346-24989498,510.45,AGGREGATE INDUSTRIES UK LTD.
Regeneration and Local Services,Technical Services,Supplies and Services,304221,Equipment and Materials,03-Jul-17,3303346-24989499,"1,158.36",AGGREGATE INDUSTRIES UK LTD.
Regeneration and Local Services,Technical Services,Supplies and Services,304221,Equipment and Materials,03-Jul-17,3303346-24994249,678.95,AGGREGATE INDUSTRIES UK LTD.
Regeneration and Local Services,Technical Services,Supplies and Services,304221,Equipment and Materials,03-Jul-17,3303346-24996181,"1,263.81",AGGREGATE INDUSTRIES UK LTD.
Regeneration and Local Services,Technical Services,Supplies and Services,304221,Equipment and Materials,03-Jul-17,3303346-24996182,711.02,AGGREGATE INDUSTRIES UK LTD.
Regeneration and Local Services,Technical Services,Supplies and Services,304221,Equipment and Materials,03-Jul-17,3303346-24996183,"2,202.75",AGGREGATE INDUSTRIES UK LTD.
Regeneration and Local Services,Technical Services,Supplies and Services,304221,Equipment and Materials,03-Jul-17,3303346-24996185,"1,215.13",AGGREGATE INDUSTRIES UK LTD.
Regeneration and Local Services,Direct Services,Supplies and Services,304221,Equipment and Materials,03-Jul-17,3303456-013754,832.5,DIGITAL ADVANCED CONTROL LTD.
Regeneration and Local Services,Direct Services,Supplies and Services,304221,Equipment and Materials,03-Jul-17,3303485-1706-104457,830.45,FLAME HEATING SPARES LTD.
Regeneration and Local Services,Direct Services,Supplies and Services,304221,Equipment and Materials,03-Jul-17,3303485-1706-104684,741.11,FLAME HEATING SPARES LTD.
Regeneration and Local Services,Technical Services,Supplies and Services,304221,Equipment and Materials,03-Jul-17,3303665-SI1730269,"2,388.00",REDIWELD RUBBER & PLASTICS LTD.
Regeneration and Local Services,Direct Services,Supplies and Services,304221,Equipment and Materials,03-Jul-17,3303724-2385187,994.21,T CROSSLING & CO LTD.
Regeneration and Local Services,Direct Services,Supplies and Services,304221,Equipment and Materials,03-Jul-17,3303724-2388206,516.82,T CROSSLING & CO LTD.
Regeneration and Local Services,Direct Services,Supplies and Services,304221,Equipment and Materials,03-Jul-17,3303724-2390393,"1,136.78",T CROSSLING & CO LTD.
Regeneration and Local Services,Technical Services,Supplies and Services,304221,Equipment and Materials,03-Jul-17,3303727-9036359251,508.75,TARMAC TRADING LTD.
Regeneration and Local Services,Technical Services,Supplies and Services,304221,Equipment and Materials,03-Jul-17,3303767-174349,854.5,TYNEDALE ROADSTONE LTD.
Regeneration and Local Services,Technical Services,Supplies and Services,304221,Equipment and Materials,03-Jul-17,3303767-174375,946.69,TYNEDALE ROADSTONE LTD.
Regeneration and Local Services,Technical Services,Supplies and Services,304221,Equipment and Materials,03-Jul-17,3303767-174376,517.39,TYNEDALE ROADSTONE LTD.
Regeneration and Local Services,Technical Services,Supplies and Services,304221,Equipment and Materials,03-Jul-17,3303784-9544,840,WILF HUSBAND PLANT HIRE.
Regeneration and Local Services,Direct Services,Supplies and Services,304221,Equipment and Materials,03-Jul-17,3303786-43629365,753.43,WOLSELEY UK LTD.
Regeneration and Local Services,Culture & Sport,Supplies and Services,304259,Equipment and Materials,03-Jul-17,3303334-116309035,"3,811.37",AC ENTERTAINMENT TECHNOLOGIES.
Regeneration and Local Services,Economic Development and Housing,Supplies and Services,304259,Equipment and Materials,03-Jul-17,3303379-FLLA4885955,831.39,BNP PARIBAS LEASE GROUP (RENTALS).
Regeneration and Local Services,Direct Services,Supplies and Services,304259,Equipment and Materials,03-Jul-17,3303495-17-886-MR,"1,878.00",GB SPORT & LEISURE UK LTD.
Regeneration and Local Services,Direct Services,Supplies and Services,304259,Equipment and Materials,03-Jul-17,3303500-INV056769,"1,177.00",GOTT TECHNICAL SERVICES LTD.
Regeneration and Local Services,Direct Services,Supplies and Services,304259,Equipment and Materials,03-Jul-17,3303507-INV0166828,"1,196.00",GV MULTI-MEDIA LTD.
Regeneration and Local Services,Transport and Contracted Services,Supplies and Services,304259,Equipment and Materials,03-Jul-17,3303573-0000175474,"14,919.60",MANGAR INTERNATIONAL LTD.
Regeneration and Local Services,Direct Services,Supplies and Services,304259,Equipment and Materials,03-Jul-17,3303761-12170,"1,605.00",TRISCAN SYSTEMS LTD.
Regeneration and Local Services,Direct Services,Supplies and Services,304252,Equipment and Materials,03-Jul-17,3303500-INV056802,"1,410.00",GOTT TECHNICAL SERVICES LTD.
Regeneration and Local Services,Technical Services,Supplies and Services,304358,Equipment and Materials,03-Jul-17,3303524-C307,"4,527.20",IAN WILSON.
Regeneration and Local Services,Economic Development and Housing,Supplies and Services,368008,Incentives to Industrialists,03-Jul-17,3303330-RED-06-2017-255,546,4 COOL TECHNOLOGY LTD.
Regeneration and Local Services,Culture & Sport,Supplies and Services,384700,Miscellaneous Expenses,03-Jul-17,3303464-DCBBA020717,900,DURHAM COUNTY BRASS BAND ASSOCIATION.
Regeneration and Local Services,Economic Development and Housing,Supplies and Services,384700,Miscellaneous Expenses,03-Jul-17,3303713-RED-06-2017-248,"1,000.00",STANLEY EVENTS LTD.
Regeneration and Local Services,Economic Development and Housing,Supplies and Services,384700,Miscellaneous Expenses,03-Jul-17,3303732-RED-06-2017-247,"1,000.00",TEAM MARVEL LTD.
Regeneration and Local Services,Spatial Policy Planning Assets & Environment,Supplies and Services,384199,Miscellaneous Expenses,03-Jul-17,3303437-198,"1,050.00",CREATIVE YOUTH OPPORTUNITIES.
Regeneration and Local Services,Spatial Policy Planning Assets & Environment,Supplies and Services,384199,Miscellaneous Expenses,03-Jul-17,3303437-205,800,CREATIVE YOUTH OPPORTUNITIES.
Regeneration and Local Services,Culture & Sport,Supplies and Services,384199,Miscellaneous Expenses,03-Jul-17,3303487-UAVSURVEY9/6/17,825,FOREST INVENTORY.
Regeneration and Local Services,Culture & Sport,Supplies and Services,384199,Miscellaneous Expenses,03-Jul-17,3303528-3492,"2,109.40",INGRAM AV LTD T/A INGRAMSOUNDS.
Regeneration and Local Services,Culture & Sport,Supplies and Services,384199,Miscellaneous Expenses,03-Jul-17,3303528-3493,"2,592.10",INGRAM AV LTD T/A INGRAMSOUNDS.
Regeneration and Local Services,Culture & Sport,Supplies and Services,384199,Miscellaneous Expenses,03-Jul-17,3303672-459,650,RICHARD KENWORTHY.
Regeneration and Local Services,Transport and Contracted Services,Third Party Payments,410037,Rendered by Other Local Authorities,03-Jul-17,3303614-19187,"3,942.00",NW SYSTEMS GROUP.
Regeneration and Local Services,Direct Services,Third Party Payments,430100,Rendered by Private Contractors,03-Jul-17,3303332-2466,"1,048.44",A & J GUTHRIE.
Regeneration and Local Services,Direct Services,Third Party Payments,430100,Rendered by Private Contractors,03-Jul-17,3303350-16276,750,AMBIC LTD.
Regeneration and Local Services,Direct Services,Third Party Payments,430100,Rendered by Private Contractors,03-Jul-17,3303368-46049921,604.09,BELL TRUCK SALES LTD.
Regeneration and Local Services,Direct Services,Third Party Payments,430100,Rendered by Private Contractors,03-Jul-17,3303415-5084,"1,268.80",CITY FABRICATIONS LTD.
Regeneration and Local Services,Technical Services,Third Party Payments,430100,Rendered by Private Contractors,03-Jul-17,3303448-14269,"8,538.00",DCM PREMIER PLAY SURFACES.
Regeneration and Local Services,Technical Services,Third Party Payments,430100,Rendered by Private Contractors,03-Jul-17,3303488-13182,"24,490.00",FOSSE CONTRACTS LTD.
Regeneration and Local Services,Technical Services,Third Party Payments,430100,Rendered by Private Contractors,03-Jul-17,3303540-00130897,"3,425.28",JAMES A JOBLING & CO LTD T/A JOBLING PURSER LTD.
Regeneration and Local Services,Technical Services,Third Party Payments,430100,Rendered by Private Contractors,03-Jul-17,3303594-NC4/C520/BW,"9,727.16",NEDCO CONTRACTS (NE) LTD.
Regeneration and Local Services,Direct Services,Third Party Payments,430100,Rendered by Private Contractors,03-Jul-17,3303621-562185,588,P & N ASSOCIATES LTD.
Regeneration and Local Services,Technical Services,Third Party Payments,430100,Rendered by Private Contractors,03-Jul-17,3303650-99974,550,PROTECTOR SECURITY GROUP LTD.
Regeneration and Local Services,Technical Services,Third Party Payments,430100,Rendered by Private Contractors,03-Jul-17,3303687-INV0635,"2,200.00",SEAN CARR LINING TECHNOLOGY LTD.
Regeneration and Local Services,Direct Services,Third Party Payments,430100,Rendered by Private Contractors,03-Jul-17,3303747-0000099939,766.68,THE SEKURA GROUP.
Regeneration and Local Services,Direct Services,Transport,215023,Running Costs of Vehicles,03-Jul-17,3303737-4061777,690,TENNANTS DISTRIBUTION LTD.
Regeneration and Local Services,Economic Development and Housing,Premises,108099,Service Repairs and Maintenance,03-Jul-17,3303342-34050624-61,616,ADT FIRE & SECURITY PLC.
Regeneration and Local Services,Technical Services,Premises,108099,Service Repairs and Maintenance,03-Jul-17,3303543-14934,"4,306.53",JC MAINTENANCE SERVICES LTD.
Regeneration and Local Services,Direct Services,Premises,108099,Service Repairs and Maintenance,03-Jul-17,3303717-10197,596.7,STONE TECHNICAL SERVICES LTD.
Regeneration and Local Services,Culture & Sport,Supplies and Services,338047,Services,03-Jul-17,3303741-262,600,THE HAPPYCATS.
Regeneration and Local Services,Technical Services,Supplies and Services,338066,Services,03-Jul-17,3303378-5638,"137,913.51",BLOOM PROCUREMENT SERVICES LTD (FORMERLY NEPRO LTD).
Regeneration and Local Services,Spatial Policy Planning Assets & Environment,Supplies and Services,338066,Services,03-Jul-17,3303688-1020-5861,605,SEDGEFIELD STEEPLECHASE CO (1927) LTD.
Regeneration and Local Services,Technical Services,Stock,926900,Stock in hand-Inventory system,03-Jul-17,3303382-14302,560,BOXCLEVER TOTAL WASTE MANAGEMENT LTD.
Regeneration and Local Services,Technical Services,Stock,926900,Stock in hand-Inventory system,03-Jul-17,3303382-14423,560,BOXCLEVER TOTAL WASTE MANAGEMENT LTD.
Regeneration and Local Services,Technical Services,Stock,926900,Stock in hand-Inventory system,03-Jul-17,3303382-14429,560,BOXCLEVER TOTAL WASTE MANAGEMENT LTD.
Regeneration and Local Services,Technical Services,Stock,926900,Stock in hand-Inventory system,03-Jul-17,3303382-14473,560,BOXCLEVER TOTAL WASTE MANAGEMENT LTD.
Regeneration and Local Services,Technical Services,Stock,926900,Stock in hand-Inventory system,03-Jul-17,3303382-14524,560,BOXCLEVER TOTAL WASTE MANAGEMENT LTD.
Regeneration and Local Services,Technical Services,Stock,926900,Stock in hand-Inventory system,03-Jul-17,3303382-14652,560,BOXCLEVER TOTAL WASTE MANAGEMENT LTD.
Regeneration and Local Services,Technical Services,Stock,926900,Stock in hand-Inventory system,03-Jul-17,3303549-BII226424,"1,616.00",JT DOVE LTD.
Regeneration and Local Services,Technical Services,Stock,926900,Stock in hand-Inventory system,03-Jul-17,3303569-169783,745,LUCY ZODION LTD.
Regeneration and Local Services,Technical Services,Stock,926900,Stock in hand-Inventory system,03-Jul-17,3303569-169817,"2,900.00",LUCY ZODION LTD.
Regeneration and Local Services,Technical Services,Stock,926900,Stock in hand-Inventory system,03-Jul-17,3303622-XL201868,"1,007.00",PARK ELECTRICAL DISTRIBUTORS LTD.
Regeneration and Local Services,Technical Services,Stock,926900,Stock in hand-Inventory system,03-Jul-17,3303653-229582,"1,726.08",PUDSEY DIAMOND ENGINEERING LTD.
Regeneration and Local Services,Technical Services,Stock,926900,Stock in hand-Inventory system,03-Jul-17,3303698-190488,"2,109.60",SNAPFAST.
Regeneration and Local Services,Technical Services,Stock,926900,Stock in hand-Inventory system,03-Jul-17,3303698-190489,"2,109.60",SNAPFAST.
Regeneration and Local Services,Technical Services,Stock,926900,Stock in hand-Inventory system,03-Jul-17,3303727-9036361034,"1,043.35",TARMAC TRADING LTD.
Regeneration and Local Services,Technical Services,Stock,926900,Stock in hand-Inventory system,03-Jul-17,3303756-100137,"1,212.48",TOTAL RENTAL SOLUTIONS.
Resources,Legal & Democratic Services,Supplies and Services,332029,Printing Stationery and Gen Off Exps,03-Jul-17,3303340-PSI0017050,"1,400.00",ADARE INSPIRED COMMUNICATIONS.
Resources,Legal & Democratic Services,Supplies and Services,338025,Services,03-Jul-17,3303419-S44995-01371,920,CO-OPERATIVE FUNERAL CARE.
Resources,I.C.T. Services,Supplies and Services,342033,Computers and Communications,03-Jul-17,3303445-9424003827,"2,499.00",DATA INTEGRATION LTD.
Resources,I.C.T. Services,Supplies and Services,342051,Computers and Communications,03-Jul-17,3303445-9424003826,"2,499.00",DATA INTEGRATION LTD.
Resources,I.C.T. Services,Supplies and Services,304040,Equipment and Materials,03-Jul-17,3303445-9424003819,989.5,DATA INTEGRATION LTD.
Resources,I.C.T. Services,Vehicles Equipment Furniture and Fittings,912701,Computer equipment,03-Jul-17,3303451-7402366904,"1,211.27",DELL COMPUTER CORPORATION LTD.
Resources,I.C.T. Services,Stock,926900,Stock in hand-Inventory system,03-Jul-17,3303451-7402366703,798.18,DELL COMPUTER CORPORATION LTD.
Resources,I.C.T. Services,Stock,926900,Stock in hand-Inventory system,03-Jul-17,3303451-7402367344,701.97,DELL COMPUTER CORPORATION LTD.
Resources,I.C.T. Services,Supplies and Services,304639,Equipment and Materials,03-Jul-17,3303457-147101153,514.68,DIVERSEY LTD.
Resources,I.C.T. Services,Supplies and Services,342051,Computers and Communications,03-Jul-17,3303497-IN100004249,849,GETGO TECHNOLOGIES UK LTD.
Resources,Corporate Finance,Employees,40149,Recruitment Instruction and Training,03-Jul-17,3303525-8820,"4,328.30",INDUSTRIAL NOISE & VIBRATION CENTRE LTD.
Resources,I.C.T. Services,Supplies and Services,304245,Equipment and Materials,03-Jul-17,3303529-SIN036979,530.29,INKLAND LTD.
Resources,I.C.T. Services,Supplies and Services,342051,Computers and Communications,03-Jul-17,3303666-INV-28054,"1,020.00",REDSTOR LTD.
Resources,I.C.T. Services,Supplies and Services,342033,Computers and Communications,03-Jul-17,3303667-SIN050748,"3,900.00",REDWAY NETWORKS LTD.
Resources,I.C.T. Services,Supplies and Services,342051,Computers and Communications,03-Jul-17,3303699-INV01641551,"472,467.70",SOFTCAT LTD.
Resources,I.C.T. Services,Supplies and Services,342051,Computers and Communications,03-Jul-17,3303699-INV01641555,"76,303.40",SOFTCAT LTD.
Resources,I.C.T. Services,Supplies and Services,342051,Computers and Communications,03-Jul-17,3303699-INV01642721,"3,029.90",SOFTCAT LTD.
Resources,I.C.T. Services,Supplies and Services,304303,Equipment and Materials,03-Jul-17,3303758-121094,"3,634.45",TP ELECTRICAL SUPPLIES & FIXINGS LTD.
Transformation and Partnerships,Transformation,Supplies and Services,352001,Conference Expenses,03-Jul-17,3303398-704609,"4,800.00",CATALYST CONSULTING LTD.
Transformation and Partnerships,Partnerships & Community Engagement Div.,Supplies and Services,384086,Miscellaneous Expenses,03-Jul-17,3303462-VOUCHERHALD01-17KELB02-17,500,DURHAM CAVALLIERS MARCHING BAND.
Transformation and Partnerships,Partnerships & Community Engagement Div.,Transfer Payments,525030,Other,03-Jul-17,3303467-4100580107,"2,000.00",DURHAM PRIDE UK.
Transformation and Partnerships,Partnerships & Community Engagement Div.,Premises,125009,Rents,03-Jul-17,3303552-RJ/DCC/0617,"2,081.46",KARBON HOMES LTD FORMERLY CESTRIA HOUSING ASSOCIATION LTD.
Transformation and Partnerships,Partnerships & Community Engagement Div.,Supplies and Services,384086,Miscellaneous Expenses,03-Jul-17,3303579-VOUCHERSHIA01-17STEW01-17,500,MEDOMSLEY VILLAGE RESIDENTS ASSOCIATION.
Transformation and Partnerships,Partnerships & Community Engagement Div.,Construction Work,908105,Construction work,03-Jul-17,3303609-NEI-INC-06-2017-010,607,NORTHERN POWERGRID (NORTHEAST) LTD.
Transformation and Partnerships,Partnerships & Community Engagement Div.,Transfer Payments,525030,Other,03-Jul-17,3303757-VOUCHER16AB-3TWN01116WR-3TWN002,"5,503.00",TOW LAW COMMUNITY ASSOCIATION.
Adult and Health Services,Head of Adults,Third Party Payments,472101,Purchase of Care,04-Jul-17,3303855-3671,"1,972.50",DCS & D LTD T/A HERITAGE HEALTHCARE.
Adult and Health Services,Head of Adults,Transport,230005,Contract Hire,04-Jul-17,3303860-05/2017-CLS057,882,DIANE GOOCH T/A COLLINS TAXIS.
Adult and Health Services,Head of Adults,Transport,230005,Contract Hire,04-Jul-17,3303860-05/2017-WV109,956,DIANE GOOCH T/A COLLINS TAXIS.
Adult and Health Services,Head of Adults,Third Party Payments,470101,Purchase of Care,04-Jul-17,3303881-314,"11,000.00",FOREVER CARE.
Adult and Health Services,Head of Adults,Supplies and Services,338045,Services,04-Jul-17,3303911-257,"1,652.00",INDEPENDENT PSYCHIATRIC REPORTS LTD.
Children and Young Peoples Services,Head of Early Help Assessment and Safeguarding,Transport,230007,Contract Hire,04-Jul-17,3303815-03566,501.2,ATLAS TAXIS CONSETT.
Children and Young Peoples Services,Head of Looked After Provision Permanence and Care Leavers,Supplies and Services,352001,Conference Expenses,04-Jul-17,3303829-2,"1,750.00",CAROL ANDREWS.
Children and Young Peoples Services,Head of Education,Transport,230007,Contract Hire,04-Jul-17,3303860-05/2017-F680,"1,140.00",DIANE GOOCH T/A COLLINS TAXIS.
Children and Young Peoples Services,Head of Education,Transport,230012,Contract Hire,04-Jul-17,3303860-05/2017-S022,"1,365.00",DIANE GOOCH T/A COLLINS TAXIS.
Children and Young Peoples Services,Head of Education,Transport,230008,Contract Hire,04-Jul-17,3303860-05/2017-A036,"1,862.00",DIANE GOOCH T/A COLLINS TAXIS.
Children and Young Peoples Services,Head of Education,Transport,230008,Contract Hire,04-Jul-17,3303860-05/2017-A087,"1,691.00",DIANE GOOCH T/A COLLINS TAXIS.
Dedicated Schools Grant,Dedicated Schools Grant,Third Party Payments,410037,Rendered by Other Local Authorities,04-Jul-17,3303937-8027885,"1,711.56",LINGFIELD EDUCATION TRUST T/A MOUNT PLEASANT PRIMARY SCHOOL.
Children and Young Peoples Services,Head of Education,Transport,230006,Contract Hire,04-Jul-17,3303939-3340,"2,668.00",LOCAL TRANSPORT LTD.
Dedicated Schools Grant,Dedicated Schools Grant,Third Party Payments,425005,Rendered by Voluntary Organisations,04-Jul-17,3303981-31704,"167,845.76",PERCY HEDLEY FOUNDATION.
Children and Young Peoples Services,Head of Early Help Assessment and Safeguarding,Third Party Payments,440015,Other Third Party Payments,04-Jul-17,3304226-1203542,"1,665.51",REDACTED - PAYMENT TO INDIVIDUAL
Children and Young Peoples Services,Head of Early Help Assessment and Safeguarding,Third Party Payments,440015,Other Third Party Payments,04-Jul-17,3304226-1203543,"1,512.03",REDACTED - PAYMENT TO INDIVIDUAL
Children and Young Peoples Services,Head of Early Help Assessment and Safeguarding,Third Party Payments,440015,Other Third Party Payments,04-Jul-17,3304226-1203544,"1,512.03",REDACTED - PAYMENT TO INDIVIDUAL
Children and Young Peoples Services,Head of Looked After Provision Permanence and Care Leavers,Third Party Payments,440002,Other Third Party Payments,04-Jul-17,3304380-1202163,"1,334.00",REDACTED - PAYMENT TO INDIVIDUAL
Children and Young Peoples Services,Head of Early Help Assessment and Safeguarding,Third Party Payments,440016,Other Third Party Payments,04-Jul-17,3304661-1202752,"3,581.72",REDACTED - PAYMENT TO INDIVIDUAL
Children and Young Peoples Services,Head of Looked After Provision Permanence and Care Leavers,Third Party Payments,440028,Other Third Party Payments,04-Jul-17,3304279-1203322,706.23,REDACTED - PAYMENT TO INDIVIDUAL
Children and Young Peoples Services,Head of Looked After Provision Permanence and Care Leavers,Third Party Payments,440024,Other Third Party Payments,04-Jul-17,3304418-1202943,893.75,REDACTED - PAYMENT TO INDIVIDUAL
Children and Young Peoples Services,Head of Looked After Provision Permanence and Care Leavers,Third Party Payments,440027,Other Third Party Payments,04-Jul-17,3304215-1203284,706.23,REDACTED - PAYMENT TO INDIVIDUAL
Regeneration and Local Services,Culture & Sport,Fees,901002,Professional fees,04-Jul-17,3303952-LEEM170136,"1,995.00",MOVVEO LTD.
Regeneration and Local Services,Direct Services,Transport,230005,Contract Hire,04-Jul-17,3303958-113356,"3,000.00",ND BROWN LTD.
Regeneration and Local Services,Neighbourhood central costs,Creditors,952031,Creditor-gas contract,04-Jul-17,3303847-NEI-EXP-06-2017-013,"163,582.40",CORONA ENERGY RETAIL 2 LTD.
Regeneration and Local Services,Economic Development and Housing,Premises,120021,Energy Costs,04-Jul-17,3303847-12143175,"1,209.61",CORONA ENERGY RETAIL 2 LTD.
Regeneration and Local Services,Direct Services,Supplies and Services,304221,Equipment and Materials,04-Jul-17,3303798-16475,"1,095.00",ADC ELECTRICAL LTD.
Regeneration and Local Services,Technical Services,Supplies and Services,304221,Equipment and Materials,04-Jul-17,3303802-24996184,929.6,AGGREGATE INDUSTRIES UK LTD.
Regeneration and Local Services,Direct Services,Supplies and Services,304221,Equipment and Materials,04-Jul-17,3303816-96648777,"1,551.49",BALL COLEGRAVE LTD.
Regeneration and Local Services,Direct Services,Supplies and Services,304221,Equipment and Materials,04-Jul-17,3303912-000403,"1,443.60",INDIGO PACIFIC SITE SERVICES LTD T/A WALKER ORGANICS LTD.
Regeneration and Local Services,Technical Services,Supplies and Services,304221,Equipment and Materials,04-Jul-17,3304026-094594,"2,286.90",STONEGRAVE AGGREGATES LTD.
Regeneration and Local Services,Direct Services,Supplies and Services,304259,Equipment and Materials,04-Jul-17,3303816-96462915,"2,680.22",BALL COLEGRAVE LTD.
Regeneration and Local Services,Direct Services,Supplies and Services,304259,Equipment and Materials,04-Jul-17,3303816-96601909,"1,850.77",BALL COLEGRAVE LTD.
Regeneration and Local Services,Direct Services,Supplies and Services,304259,Equipment and Materials,04-Jul-17,3303816-96648770,"3,348.63",BALL COLEGRAVE LTD.
Regeneration and Local Services,Technical Services,Supplies and Services,384194,Miscellaneous Expenses,04-Jul-17,3303965-84399,"1,628.80",NIRAMAX GROUP LTD.
Regeneration and Local Services,Economic Development and Housing,Supplies and Services,384437,Miscellaneous Expenses,04-Jul-17,3303806-2017-185-141-001313,"5,383.91",AMERICAN EXPRESS SERVICES EUROPE LTD.
Regeneration and Local Services,Economic Development and Housing,Supplies and Services,384437,Miscellaneous Expenses,04-Jul-17,3303806-2017-185-141-001314,"4,594.89",AMERICAN EXPRESS SERVICES EUROPE LTD.
Regeneration and Local Services,Culture & Sport,Supplies and Services,324117,Provisions,04-Jul-17,3304022-32448,510.88,SNOWSHOCK LTD.
Regeneration and Local Services,Transport and Contracted Services,Third Party Payments,430106,Rendered by Private Contractors,04-Jul-17,3303877-PUBLICSERVICE-MAY/JUNE17,"5,258.82",FERRYHILL VILLAGE TRAVEL.
Regeneration and Local Services,Transport and Contracted Services,Third Party Payments,430106,Rendered by Private Contractors,04-Jul-17,3303906-11707,"4,343.16",HODGSONS COACH OPERATORS LTD.
Regeneration and Local Services,Transport and Contracted Services,Third Party Payments,430106,Rendered by Private Contractors,04-Jul-17,3304009-129,"3,319.89",SB TRAVEL.
Regeneration and Local Services,Direct Services,Third Party Payments,430100,Rendered by Private Contractors,04-Jul-17,3303818-36100185,"1,159.58",BELL TRUCK SALES LTD.
Regeneration and Local Services,Technical Services,Third Party Payments,430100,Rendered by Private Contractors,04-Jul-17,3303926-21931,"8,670.78",KAEFER LTD.
Regeneration and Local Services,Direct Services,Third Party Payments,430100,Rendered by Private Contractors,04-Jul-17,3303936-SI2720201,650,LINDEN FLUID POWER LTD.
Regeneration and Local Services,Technical Services,Third Party Payments,430100,Rendered by Private Contractors,04-Jul-17,3303969-DI20272141,"1,510.64",NORTHERN POWERGRID (NORTHEAST) LTD.
Regeneration and Local Services,Technical Services,Third Party Payments,430100,Rendered by Private Contractors,04-Jul-17,3303971-914031643,"6,699.04",NORTHUMBRIAN WATER LTD.
Regeneration and Local Services,Direct Services,Third Party Payments,430100,Rendered by Private Contractors,04-Jul-17,3304034-7814,575,TEAM VALLEY TRANSMISSIONS LTD.
Regeneration and Local Services,Direct Services,Third Party Payments,430100,Rendered by Private Contractors,04-Jul-17,3304055-INV-0283,"1,471.00",UK VENTILATION LTD.
Regeneration and Local Services,Direct Services,Third Party Payments,430101,Rendered by Private Contractors,04-Jul-17,3303862-IV892012,"2,066.88",DIRECT TYRE MANAGEMENT (DTM).
Regeneration and Local Services,Direct Services,Third Party Payments,430101,Rendered by Private Contractors,04-Jul-17,3303862-IV894269,"1,076.85",DIRECT TYRE MANAGEMENT (DTM).
Regeneration and Local Services,Direct Services,Third Party Payments,430101,Rendered by Private Contractors,04-Jul-17,3303862-IV894270,"1,284.50",DIRECT TYRE MANAGEMENT (DTM).
Regeneration and Local Services,Direct Services,Transport,210057,Repair and Maintenance of Vehicles,04-Jul-17,3303858-304640,"2,393.28",DENNIS EAGLE LTD.
Regeneration and Local Services,Direct Services,Transport,210057,Repair and Maintenance of Vehicles,04-Jul-17,3303858-DE11048650,"1,347.91",DENNIS EAGLE LTD.
Regeneration and Local Services,Direct Services,Transport,210057,Repair and Maintenance of Vehicles,04-Jul-17,3303897-138064,"1,180.12",GREENLAY (GRASS MACHINERY) LTD.
Regeneration and Local Services,Direct Services,Transport,210057,Repair and Maintenance of Vehicles,04-Jul-17,3304074-109765,646.37,ZOELLER WASTE SYSTEMS LTD.
Regeneration and Local Services,Direct Services,Transport,215005,Running Costs of Vehicles,04-Jul-17,3303974-250254,"32,129.61",OIL NRG LTD.
Regeneration and Local Services,Direct Services,Transport,215005,Running Costs of Vehicles,04-Jul-17,3303974-250718,"13,455.00",OIL NRG LTD.
Regeneration and Local Services,Direct Services,Transport,215005,Running Costs of Vehicles,04-Jul-17,3303974-250750,"1,820.25",OIL NRG LTD.
Regeneration and Local Services,Direct Services,Transport,215022,Running Costs of Vehicles,04-Jul-17,3303974-250719,"1,322.70",OIL NRG LTD.
Regeneration and Local Services,Spatial Policy Planning Assets & Environment,Supplies and Services,338066,Services,04-Jul-17,3303806-2017-185-141-001328,501.82,AMERICAN EXPRESS SERVICES EUROPE LTD.
Resources,I.C.T. Services,Supplies and Services,342051,Computers and Communications,04-Jul-17,3303841-M/RB043768,"3,600.00",CIVICA UK LTD.
Resources,I.C.T. Services,Stock,926900,Stock in hand-Inventory system,04-Jul-17,3303914-3415526,624,INSIGHT DIRECT (UK) LTD.
Resources,I.C.T. Services,Supplies and Services,342033,Computers and Communications,04-Jul-17,3303994-SIN050746,"1,860.00",REDWAY NETWORKS LTD.
Resources,I.C.T. Services,Supplies and Services,342033,Computers and Communications,04-Jul-17,3303994-SIN050749,595.8,REDWAY NETWORKS LTD.
Resources,Corporate Finance,Supplies and Services,384999,Miscellaneous Expenses,04-Jul-17,3304066-647366,"4,860.00",WARD HADAWAY.
Resources,Corporate Finance,Supplies and Services,384999,Miscellaneous Expenses,04-Jul-17,3304066-649962,"3,977.50",WARD HADAWAY.
Adult and Health Services,Commissioning inc Supporting People,Third Party Payments,442002,Supporting People,05-Jul-17,3304832-1966485,"16,448.04",BID SERVICES WITH DEAF PEOPLE.
Adult and Health Services,Public Health,Third Party Payments,460803,Contract Payments,05-Jul-17,3304865-3980024191,"177,500.00",CO DURHAM & DARLINGTON NHS FOUNDATION TRUST.
Adult and Health Services,Commissioning inc Supporting People,Third Party Payments,442002,Supporting People,05-Jul-17,3304876-1966463,"19,868.48",CREATIVE SUPPORT LTD.
Adult and Health Services,Head of Adults,Third Party Payments,472101,Purchase of Care,05-Jul-17,3304882-3665,"1,972.50",DCS & D LTD T/A HERITAGE HEALTHCARE.
Adult and Health Services,Head of Adults,Third Party Payments,472101,Purchase of Care,05-Jul-17,3304882-3668,"1,972.50",DCS & D LTD T/A HERITAGE HEALTHCARE.
Adult and Health Services,Head of Adults,Third Party Payments,472101,Purchase of Care,05-Jul-17,3304882-3669,"1,084.88",DCS & D LTD T/A HERITAGE HEALTHCARE.
Adult and Health Services,Head of Adults,Supplies and Services,338045,Services,05-Jul-17,3304884-321456/INVCSM288,660,DERE STREET BARRISTERS.
Adult and Health Services,Commissioning inc Supporting People,Third Party Payments,442002,Supporting People,05-Jul-17,3304888-1966462,"5,668.48",DISC LTD.
Adult and Health Services,Commissioning inc Supporting People,Third Party Payments,442002,Supporting People,05-Jul-17,3304888-1966514,"27,885.68",DISC LTD.
Adult and Health Services,Commissioning inc Supporting People,Third Party Payments,441001,Supporting People,05-Jul-17,3304894-1966517,"20,819.76",DURHAM ACTION ON SINGLE HOUSING.
Adult and Health Services,Commissioning inc Supporting People,Third Party Payments,443001,Supporting People,05-Jul-17,3304894-1966520,"1,475.92",DURHAM ACTION ON SINGLE HOUSING.
Adult and Health Services,Commissioning inc Supporting People,Third Party Payments,443001,Supporting People,05-Jul-17,3304894-1966522,"1,423.21",DURHAM ACTION ON SINGLE HOUSING.
Adult and Health Services,Commissioning inc Supporting People,Third Party Payments,441001,Supporting People,05-Jul-17,3304901-1966481,"5,483.40",EAST DURHAM COMMUNITY INITIATIVES LTD.
Adult and Health Services,Commissioning inc Supporting People,Third Party Payments,442002,Supporting People,05-Jul-17,3304917-1966516,"19,776.44",FOUNDATION.
Adult and Health Services,Commissioning inc Supporting People,Third Party Payments,442002,Supporting People,05-Jul-17,3304918-1966539,"32,194.64",FOUR HOUSING GROUP & CARE & REPAIR HANDYPERSON SERVICE.*
Adult and Health Services,Commissioning inc Supporting People,Third Party Payments,442002,Supporting People,05-Jul-17,3304942-1966526,"3,297.48",HANOVER HOUSING ASSOCIATION.
Adult and Health Services,Commissioning inc Supporting People,Third Party Payments,441001,Supporting People,05-Jul-17,3304943-1966464,"18,082.80",HARBOUR SUPPORT SERVICES.
Adult and Health Services,Head of Adults,Premises,145051,Cleaning and Domestic Supplies,05-Jul-17,3305002-213190,"2,418.20",MAX RECYCLE T/A THE DURHAM COMPANY (TDC).
Adult and Health Services,Commissioning inc Supporting People,Third Party Payments,442002,Supporting People,05-Jul-17,3305004-1966465,"5,469.72",MENTAL HEALTH MATTERS.
Adult and Health Services,Commissioning inc Supporting People,Third Party Payments,442002,Supporting People,05-Jul-17,3305010-1966527,"2,620.48",MOVING ON.
Adult and Health Services,EnvironmentHealth & Consumer Protection,Premises,135005,Water Services,05-Jul-17,3305034-4033504,"2,614.65",NWG BUSINESS LTD (NORTHUMBRIAN WATER GROUP).
Adult and Health Services,Head of Adults,Third Party Payments,470101,Purchase of Care,05-Jul-17,3305053-32333,"1,475.20",PERCY HEDLEY FOUNDATION.
Adult and Health Services,Head of Adults,Third Party Payments,470101,Purchase of Care,05-Jul-17,3305053-32339,"1,494.00",PERCY HEDLEY FOUNDATION.
Adult and Health Services,Head of Adults,Third Party Payments,470101,Purchase of Care,05-Jul-17,3305053-32340,736,PERCY HEDLEY FOUNDATION.
Adult and Health Services,Commissioning inc Supporting People,Third Party Payments,479102,Purchase of Care,05-Jul-17,3305071-13268,"17,500.00",RETHINK MENTAL ILLNESS.
Adult and Health Services,Commissioning inc Supporting People,Third Party Payments,442002,Supporting People,05-Jul-17,3305072-1966467,"7,356.72",RICHMOND FELLOWSHIP.
Adult and Health Services,Commissioning inc Supporting People,Third Party Payments,444002,Supporting People,05-Jul-17,3305072-1966479,"1,294.44",RICHMOND FELLOWSHIP.
Adult and Health Services,Commissioning inc Supporting People,Third Party Payments,441001,Supporting People,05-Jul-17,3305072-1966480,"9,423.88",RICHMOND FELLOWSHIP.
Adult and Health Services,Commissioning inc Supporting People,Third Party Payments,442002,Supporting People,05-Jul-17,3305091-1966528,"6,331.08",SHAID.
Adult and Health Services,Head of Adults,Third Party Payments,478151,Purchase of Care,05-Jul-17,3305103-30617,"4,385.60",SOVEREIGN CARE NORTH EAST LTD T/A MAPLE HOUSE.
Adult and Health Services,Commissioning inc Supporting People,Third Party Payments,473111,Purchase of Care,05-Jul-17,3305110-LH489,"40,953.00",ST MARGARETS CENTRE.
Adult and Health Services,Commissioning inc Supporting People,Third Party Payments,442002,Supporting People,05-Jul-17,3305116-1966461,"113,942.68",STONHAM HOUSING ASSOCIATION LTD.
Adult and Health Services,Commissioning inc Supporting People,Third Party Payments,443001,Supporting People,05-Jul-17,3305116-1966483,"11,506.84",STONHAM HOUSING ASSOCIATION LTD.
Adult and Health Services,Commissioning inc Supporting People,Third Party Payments,443001,Supporting People,05-Jul-17,3305116-1966488,529.76,STONHAM HOUSING ASSOCIATION LTD.
Adult and Health Services,Commissioning inc Supporting People,Third Party Payments,443001,Supporting People,05-Jul-17,3305116-1966493,578.88,STONHAM HOUSING ASSOCIATION LTD.
Adult and Health Services,Commissioning inc Supporting People,Third Party Payments,441001,Supporting People,05-Jul-17,3305116-1966533,"54,465.72",STONHAM HOUSING ASSOCIATION LTD.
Adult and Health Services,Commissioning inc Supporting People,Third Party Payments,442002,Supporting People,05-Jul-17,3305116-1966537,"27,962.72",STONHAM HOUSING ASSOCIATION LTD.
Adult and Health Services,Commissioning inc Supporting People,Third Party Payments,441001,Supporting People,05-Jul-17,3305116-1966538,"15,342.48",STONHAM HOUSING ASSOCIATION LTD.
Adult and Health Services,Commissioning inc Supporting People,Third Party Payments,441001,Supporting People,05-Jul-17,3305132-1966486,"19,231.20",THE CYRENIANS LTD T/A CHANGING LIVES.
Adult and Health Services,Commissioning inc Supporting People,Third Party Payments,442002,Supporting People,05-Jul-17,3305138-1966504,"5,088.84",THIRTEEN CARE & SUPPORT.
Adult and Health Services,Commissioning inc Supporting People,Third Party Payments,441001,Supporting People,05-Jul-17,3305138-1966505,"7,776.68",THIRTEEN CARE & SUPPORT.
Adult and Health Services,Commissioning inc Supporting People,Third Party Payments,441001,Supporting People,05-Jul-17,3305138-1966506,"23,518.04",THIRTEEN CARE & SUPPORT.
Adult and Health Services,Commissioning inc Supporting People,Third Party Payments,441001,Supporting People,05-Jul-17,3305163-1966482,"2,367.20",WADDINGTON STREET CENTRE LTD.
Adult and Health Services,Commissioning inc Supporting People,Third Party Payments,441001,Supporting People,05-Jul-17,3305167-1966466,"7,157.00",WEAR VALLEY WOMENS AID.
Children and Young Peoples Services,Head of Looked After Provision Permanence and Care Leavers,Supplies and Services,352001,Conference Expenses,05-Jul-17,3304849-1,"1,750.00",CAROL ANDREWS.
Children and Young Peoples Services,Head of Looked After Provision Permanence and Care Leavers,Supplies and Services,372009,Subscriptions,05-Jul-17,3304850-55279,"2,995.00",CATCH 22.*
Children and Young Peoples Services,Head of Education,Supplies and Services,384199,Miscellaneous Expenses,05-Jul-17,3304866-12,560.4,COLETTE O`BRIEN.
Children and Young Peoples Services,Head of Early Help Assessment and Safeguarding,Employees,80025,Agency Staff,05-Jul-17,3304883-1003631,"148,664.67",DE POEL MANAGED SERVICES LTD.
Children and Young Peoples Services,Head of Early Help Assessment and Safeguarding,Supplies and Services,338044,Services,05-Jul-17,3304893-MB16C01790,611.66,DR PETER MORRELL.
Children and Young Peoples Services,Head of Early Help Assessment and Safeguarding,Third Party Payments,425027,Rendered by Voluntary Organisations,05-Jul-17,3304927-2017-06-281,"6,990.50",GATEWAY NORTH EAST.
Children and Young Peoples Services,Head of Early Help Assessment and Safeguarding,Supplies and Services,304245,Equipment and Materials,05-Jul-17,3304941-45496,890,HANDS FREE COMPUTING LTD.
Dedicated Schools Grant,Dedicated Schools Grant,Central Support and Capital,689996,Unclassified,05-Jul-17,3304955-CAS-07-2017-007,"33,718.00",HOPE WOOD ACADEMY.
Dedicated Schools Grant,Dedicated Schools Grant,Central Support and Capital,689996,Unclassified,05-Jul-17,3304955-CAS-07-2017-008,"12,028.00",HOPE WOOD ACADEMY.
Children and Young Peoples Services,Head of Early Help Assessment and Safeguarding,Supplies and Services,384871,Miscellaneous Expenses,05-Jul-17,3304957-4211,600,HSF TRAINING LTD.
Children and Young Peoples Services,Head of Education,Supplies and Services,338094,Services,05-Jul-17,3304984-2015033,892,LEISUREWORKS.
Children and Young Peoples Services,Head of Education,Supplies and Services,338094,Services,05-Jul-17,3304984-2015050,"1,484.00",LEISUREWORKS.
Children and Young Peoples Services,Head of Early Help Assessment and Safeguarding,Supplies and Services,384199,Miscellaneous Expenses,05-Jul-17,3305020-298/17,500,NASAM LTD T/A CDWES.
Children and Young Peoples Services,Head of Education,Third Party Payments,440999,Other Third Party Payments,05-Jul-17,3305040-117D,539.74,ORACLE TRAINING SOLUTIONS LTD.
Children and Young Peoples Services,Head of Education,Third Party Payments,440999,Other Third Party Payments,05-Jul-17,3305040-117E,539.74,ORACLE TRAINING SOLUTIONS LTD.
Children and Young Peoples Services,Head of Education,Supplies and Services,384199,Miscellaneous Expenses,05-Jul-17,3305041-17-119,"4,000.00",ORCHESTRA OF THE AGE OF ENLIGHTENMENT LTD.
Children and Young Peoples Services,Head of Early Help Assessment and Safeguarding,Third Party Payments,425023,Rendered by Voluntary Organisations,05-Jul-17,3305053-32338,"4,992.60",PERCY HEDLEY FOUNDATION.
Children and Young Peoples Services,Head of Education,Transport,230007,Contract Hire,05-Jul-17,3305113-13760,574,STATION TAXIS (SUNDERLAND).
Dedicated Schools Grant,Dedicated Schools Grant,Third Party Payments,440080,Other Third Party Payments,05-Jul-17,3305136-6417,"3,104.45",THE ROYAL NATIONAL COLLEGE FOR THE BLIND.
Dedicated Schools Grant,Dedicated Schools Grant,Third Party Payments,440080,Other Third Party Payments,05-Jul-17,3305136-6418,"2,834.00",THE ROYAL NATIONAL COLLEGE FOR THE BLIND.
Children and Young Peoples Services,Head of Looked After Provision Permanence and Care Leavers,Supplies and Services,344033,Telephones,05-Jul-17,3305150-203442,572.71,UNIFY BUSINESS SOLUTIONS LTD.
Dedicated Schools Grant,Dedicated Schools Grant,Third Party Payments,425005,Rendered by Voluntary Organisations,05-Jul-17,3305173-16,"18,830.30",WITHERSLACK GROUP LTD T/A ASHBROOKE SCHOOL.
Children and Young Peoples Services,Head of Education,Transfer Payments,510026,School Children,05-Jul-17,3305177-EDS005,777.6,YORK HOUSE NURSERY.
Regeneration and Local Services,Spatial Policy Planning Assets & Environment,Supplies and Services,336005,Advertising,05-Jul-17,3305027-20503914,721.59,NEWSQUEST (YORKSHIRE & NORTH EAST) LTD.
Regeneration and Local Services,Economic Development and Housing,Cap Exp on Grants & Other Financial Assistance (REFCUS),918401,Capital grants,05-Jul-17,3304949-RED-07-2017-011,"4,997.00",HES GROUP UK LTD.
Regeneration and Local Services,Economic Development and Housing,Cap Exp on Grants & Other Financial Assistance (REFCUS),918401,Capital grants,05-Jul-17,3304949-RED-07-2017-012,"2,971.00",HES GROUP UK LTD.
Regeneration and Local Services,Economic Development and Housing,Cap Exp on Grants & Other Financial Assistance (REFCUS),918401,Capital grants,05-Jul-17,3304949-RED-07-2017-014,"3,582.00",HES GROUP UK LTD.
Regeneration and Local Services,Economic Development and Housing,Cap Exp on Grants & Other Financial Assistance (REFCUS),918401,Capital grants,05-Jul-17,3305052-RED-07-2017-013,"5,930.00",PEART ACCESS RAMPS.
Regeneration and Local Services,Technical Services,Supplies and Services,342215,Computers and Communications,05-Jul-17,3305148-36332,"1,588.43",UK TELEMATICS LTD.
Regeneration and Local Services,Transport and Contracted Services,Supplies and Services,342051,Computers and Communications,05-Jul-17,3304976-ORD-12348-V3T5N9,"3,055.00",KEYSOFT SOLUTIONS LTD.
Regeneration and Local Services,Spatial Policy Planning Assets & Environment,Supplies and Services,352001,Conference Expenses,05-Jul-17,3305054-8371,796.5,PETERLEE TOWN COUNCIL.
Regeneration and Local Services,Economic Development and Housing,Construction Work,908105,Construction work,05-Jul-17,3304809-06909,550.45,ALL EVENTS SECURITY LTD (AES).
Regeneration and Local Services,Economic Development and Housing,Construction Work,908105,Construction work,05-Jul-17,3305075-9229,"1,015.00",RIVERGREEN DEVELOPMENTS PLC.
Regeneration and Local Services,Economic Development and Housing,Premises,120009,Energy Costs,05-Jul-17,3304903-000002904113,"3,709.72",EDF ENERGY CUSTOMERS PLC T/A EDF ENERGY.
Regeneration and Local Services,Economic Development and Housing,Premises,120009,Energy Costs,05-Jul-17,3305033-NNO7Y892,"9,007.44",NPOWER.
Regeneration and Local Services,Economic Development and Housing,Premises,120009,Energy Costs,05-Jul-17,3305033-NNO7Y894,"2,216.91",NPOWER.
Regeneration and Local Services,Economic Development and Housing,Premises,120009,Energy Costs,05-Jul-17,3305033-NNO7Y89W,"5,400.93",NPOWER.
Regeneration and Local Services,Direct Services,Supplies and Services,304221,Equipment and Materials,05-Jul-17,3304829-5858,860.72,BELL CONTROL SOLUTIONS LTD.
Regeneration and Local Services,Direct Services,Supplies and Services,304221,Equipment and Materials,05-Jul-17,3304965-20350,810.5,JACK COUPE & SONS LTD T/A COUPE LINE.
Regeneration and Local Services,Technical Services,Supplies and Services,304221,Equipment and Materials,05-Jul-17,3304994-114363,"1,789.20",MALLATITE LTD T/A MALLATITE PLASTICS LTD.
Regeneration and Local Services,Direct Services,Supplies and Services,304221,Equipment and Materials,05-Jul-17,3305062-62279,556.52,POLLOCK LIFTS.
Regeneration and Local Services,Direct Services,Supplies and Services,304221,Equipment and Materials,05-Jul-17,3305093-CD970515387,"2,625.80",SHERRIFF AMENITY.
Regeneration and Local Services,Technical Services,Supplies and Services,304221,Equipment and Materials,05-Jul-17,3305121-9036375534,966.8,TARMAC TRADING LTD.
Regeneration and Local Services,Direct Services,Supplies and Services,304221,Equipment and Materials,05-Jul-17,3305141-111016,"1,298.40",TOMMY WARDLE.
Regeneration and Local Services,Technical Services,Supplies and Services,304221,Equipment and Materials,05-Jul-17,3305147-174438,999.12,TYNEDALE ROADSTONE LTD.
Regeneration and Local Services,Technical Services,Supplies and Services,304221,Equipment and Materials,05-Jul-17,3305147-174440,"1,038.36",TYNEDALE ROADSTONE LTD.
Regeneration and Local Services,Technical Services,Supplies and Services,304221,Equipment and Materials,05-Jul-17,3305147-174441,"1,018.00",TYNEDALE ROADSTONE LTD.
Regeneration and Local Services,Technical Services,Supplies and Services,304221,Equipment and Materials,05-Jul-17,3305147-174442,"1,121.10",TYNEDALE ROADSTONE LTD.
Regeneration and Local Services,Technical Services,Supplies and Services,304221,Equipment and Materials,05-Jul-17,3305147-174623,706.12,TYNEDALE ROADSTONE LTD.
Regeneration and Local Services,Technical Services,Supplies and Services,304221,Equipment and Materials,05-Jul-17,3305164-20813,"1,451.30",WARD TIMBER LTD.
Regeneration and Local Services,Direct Services,Supplies and Services,304221,Equipment and Materials,05-Jul-17,3305174-43637694,"1,859.69",WOLSELEY UK LTD.
Regeneration and Local Services,Direct Services,Supplies and Services,304259,Equipment and Materials,05-Jul-17,3304902-7060480,"2,809.44",EAST RIDING HORTICULTURE LTD.
Regeneration and Local Services,Culture & Sport,Supplies and Services,304259,Equipment and Materials,05-Jul-17,3304967-33301,634.2,JAMES FLETCHER LTD T/A JAMES FLETCHER MARQUEES.
Regeneration and Local Services,Economic Development and Housing,Supplies and Services,384437,Miscellaneous Expenses,05-Jul-17,3304952-11714,"3,950.00",HODGSONS COACH OPERATORS LTD.
Regeneration and Local Services,Economic Development and Housing,Supplies and Services,384437,Miscellaneous Expenses,05-Jul-17,3305111-25647,"3,190.00",STANLEY TRAVEL (NORTH EAST) LTD.
Regeneration and Local Services,Spatial Policy Planning Assets & Environment,Supplies and Services,384199,Miscellaneous Expenses,05-Jul-17,307489-2017114,"1,350.00",NATURALLY WILD CONSULTANTS LTD.
Regeneration and Local Services,Spatial Policy Planning Assets & Environment,Supplies and Services,384199,Miscellaneous Expenses,05-Jul-17,307489-2017115,"2,100.00",NATURALLY WILD CONSULTANTS LTD.
Regeneration and Local Services,Culture & Sport,Supplies and Services,384199,Miscellaneous Expenses,05-Jul-17,3304822-100652,"250,000.00",ARTICHOKE TRUST.
Regeneration and Local Services,Culture & Sport,Supplies and Services,384199,Miscellaneous Expenses,05-Jul-17,3304974-0049,"11,108.22",K ROTHERY & SOND LTD T/A KENROSS SOUND.
Regeneration and Local Services,Business Support,Supplies and Services,340001,Postages,05-Jul-17,3305079-9054587219,"1,733.60",ROYAL MAIL GROUP PLC.
Regeneration and Local Services,Transport and Contracted Services,Vehicles Equipment Furniture and Fittings,912529,Purchase-equipment,05-Jul-17,3304826-49168,"1,020.00",BAYDALE CONTROL SYSTEMS LTD.
Regeneration and Local Services,Direct Services,Third Party Payments,430100,Rendered by Private Contractors,05-Jul-17,3304797-2471,"2,973.56",A & J GUTHRIE.
Regeneration and Local Services,Technical Services,Third Party Payments,430100,Rendered by Private Contractors,05-Jul-17,3304809-06908,"1,008.00",ALL EVENTS SECURITY LTD (AES).
Regeneration and Local Services,Direct Services,Third Party Payments,430100,Rendered by Private Contractors,05-Jul-17,3304828-DCC/2017031,"2,745.50",BEACON BUILDING & ASSOCIATED SERVICES LTD.
Regeneration and Local Services,Direct Services,Third Party Payments,430100,Rendered by Private Contractors,05-Jul-17,3304867-7384,"2,075.00",COMMERCIAL COVERINGS LTD.
Regeneration and Local Services,Direct Services,Third Party Payments,430100,Rendered by Private Contractors,05-Jul-17,3304889-TD001,"1,875.00",DNA PROTEC LTD.
Regeneration and Local Services,Technical Services,Third Party Payments,430100,Rendered by Private Contractors,05-Jul-17,3304939-41267,"12,082.80",HALL CONSTRUCTION SERVICES LTD.
Regeneration and Local Services,Technical Services,Third Party Payments,430100,Rendered by Private Contractors,05-Jul-17,3304939-41274,"119,260.98",HALL CONSTRUCTION SERVICES LTD.
Regeneration and Local Services,Technical Services,Third Party Payments,430100,Rendered by Private Contractors,05-Jul-17,3305024-NC8/C530/BW,"30,764.82",NEDCO CONTRACTS (NE) LTD.
Regeneration and Local Services,Technical Services,Third Party Payments,430100,Rendered by Private Contractors,05-Jul-17,3305030-DI20264800,"1,890.34",NORTHERN POWERGRID (NORTHEAST) LTD.
Regeneration and Local Services,Technical Services,Third Party Payments,430100,Rendered by Private Contractors,05-Jul-17,3305030-DI20272142,"2,226.05",NORTHERN POWERGRID (NORTHEAST) LTD.
Regeneration and Local Services,Technical Services,Third Party Payments,430100,Rendered by Private Contractors,05-Jul-17,3305067-2580/170562,"22,177.72",RAINTON CONSTRUCTION LTD.
Regeneration and Local Services,Technical Services,Third Party Payments,430100,Rendered by Private Contractors,05-Jul-17,3305085-1202,"1,102.00",SCHMUCK WHORLTON LTD.
Regeneration and Local Services,Culture & Sport,Premises,125009,Rents,05-Jul-17,3304958-10506,"36,141.25",IMPALA ESTATES LTD.
Regeneration and Local Services,Direct Services,Transport,210057,Repair and Maintenance of Vehicles,05-Jul-17,307502-INV476446,650.42,VERSALIFT DISTRIBUTORS (UK) LTD.
Regeneration and Local Services,Culture & Sport,Supplies and Services,338047,Services,05-Jul-17,3304970-MC/5409,"1,000.00",JORG BETTS ASSOCIATES LLP.
Regeneration and Local Services,Culture & Sport,Supplies and Services,338047,Services,05-Jul-17,3304990-0030,"8,750.00",LONDON CLASSIC THEATRE LTD.
Regeneration and Local Services,Culture & Sport,Supplies and Services,338047,Services,05-Jul-17,3305165-22502937,667.78,WARNER BROS ENTERTAINMENT UK LTD.
Regeneration and Local Services,Technical Services,Stock,926900,Stock in hand-Inventory system,05-Jul-17,3304843-1650/0128125,"1,001.93",BSS GROUP PLC.
Regeneration and Local Services,Technical Services,Stock,926900,Stock in hand-Inventory system,05-Jul-17,3304936-06/642021,"1,034.25",GREENHAM TRADING LTD.
Regeneration and Local Services,Technical Services,Stock,926900,Stock in hand-Inventory system,05-Jul-17,3304936-06/648387,614.63,GREENHAM TRADING LTD.
Regeneration and Local Services,Technical Services,Stock,926900,Stock in hand-Inventory system,05-Jul-17,3304936-06/648493,"1,923.62",GREENHAM TRADING LTD.
Regeneration and Local Services,Technical Services,Stock,926900,Stock in hand-Inventory system,05-Jul-17,3305096-238273,"3,386.40",SIGNPOST SOLUTIONS LTD.
Regeneration and Local Services,Technical Services,Stock,926900,Stock in hand-Inventory system,05-Jul-17,3305139-N/IN199110,"1,022.33",THOMAS OWEN & SONS (NEWCASTLE) LTD.
Regeneration and Local Services,Technical Services,Stock,926900,Stock in hand-Inventory system,05-Jul-17,3305139-N/IN199127,683.69,THOMAS OWEN & SONS (NEWCASTLE) LTD.
Regeneration and Local Services,Technical Services,Stock,926900,Stock in hand-Inventory system,05-Jul-17,3305143-100139,720,TOTAL RENTAL SOLUTIONS.
Regeneration and Local Services,Transport and Contracted Services,Premises,135005,Water Services,05-Jul-17,3305032-210340120093009,749.15,NORTHUMBRIAN WATER LTD.
Regeneration and Local Services,Economic Development and Housing,Premises,135005,Water Services,05-Jul-17,3305032-302866120011034,"1,333.50",NORTHUMBRIAN WATER LTD.
Regeneration and Local Services,Transport and Contracted Services,Premises,135005,Water Services,05-Jul-17,3305032-308243560018013,"2,493.10",NORTHUMBRIAN WATER LTD.
Regeneration and Local Services,Economic Development and Housing,Premises,135005,Water Services,05-Jul-17,3305034-4031300,"1,401.00",NWG BUSINESS LTD (NORTHUMBRIAN WATER GROUP).
Regeneration and Local Services,Transport and Contracted Services,Premises,135005,Water Services,05-Jul-17,3305034-4031868,"5,192.50",NWG BUSINESS LTD (NORTHUMBRIAN WATER GROUP).
Regeneration and Local Services,Transport and Contracted Services,Premises,135005,Water Services,05-Jul-17,3305034-4032825,"1,401.00",NWG BUSINESS LTD (NORTHUMBRIAN WATER GROUP).
Regeneration and Local Services,Transport and Contracted Services,Premises,135005,Water Services,05-Jul-17,3305034-4034870,"2,614.65",NWG BUSINESS LTD (NORTHUMBRIAN WATER GROUP).
Regeneration and Local Services,Transport and Contracted Services,Premises,135005,Water Services,05-Jul-17,3305034-4040792,784.75,NWG BUSINESS LTD (NORTHUMBRIAN WATER GROUP).
Resources,I.C.T. Services,Employees,40149,Recruitment Instruction and Training,05-Jul-17,3304881-201722,"1,934.40",DAWN PARKIN SOLUTIONS LTD.
Resources,Legal & Democratic Services,Supplies and Services,338042,Services,05-Jul-17,3304884-327632/INVLW126,"1,020.00",DERE STREET BARRISTERS.
Resources,Legal & Democratic Services,Supplies and Services,338042,Services,05-Jul-17,3304884-331266/INVKL17,"2,160.00",DERE STREET BARRISTERS.
Resources,I.C.T. Services,Supplies and Services,342037,Computers and Communications,05-Jul-17,3305120-125901,"1,613.00",SWITCHSHOP LTD.
Transformation and Partnerships,Partnerships & Community Engagement Div.,Supplies and Services,384086,Miscellaneous Expenses,05-Jul-17,3304925-VOUCHERRICJ01-17ROWJ01-17,500,GAINFORD VILLAGE HALL.
Adult and Health Services,Public Health,Third Party Payments,460803,Contract Payments,06-Jul-17,3305202-FJAV/00000090NRT,644.87,AR MCCONNELL LTD T/A THE VILLAGE PHARMACY.
Adult and Health Services,Public Health,Third Party Payments,460803,Contract Payments,06-Jul-17,3305206-DPQX/00000102NRT,539.01,ASDA PHARMACY.*
Adult and Health Services,Public Health,Third Party Payments,460803,Contract Payments,06-Jul-17,3305207-DTPB/00000092NRT,578.15,ASDA PHARMACY.*
Adult and Health Services,Head of Adults,Transport,230005,Contract Hire,06-Jul-17,3305212-DCC6JUNE17,"3,295.00",ATLAS TAXIS BISHOP AUCKLAND.
Adult and Health Services,Public Health,Third Party Payments,460803,Contract Payments,06-Jul-17,3305231-FCPT/00000066NRT,"1,680.58",BOOTS THE CHEMISTS LTD.*
Adult and Health Services,Public Health,Third Party Payments,460803,Contract Payments,06-Jul-17,3305238-FKAT/000000290NRT,591.62,BOOTS THE CHEMISTS LTD.*
Adult and Health Services,Public Health,Third Party Payments,460803,Contract Payments,06-Jul-17,3305240-DZJM/00000099NRT,"1,390.89",BOOTS THE CHEMISTS LTD.*
Adult and Health Services,Public Health,Third Party Payments,460803,Contract Payments,06-Jul-17,3305241-DZFZ/00000110NRT,759.03,BOOTS THE CHEMISTS LTD.*
Adult and Health Services,Public Health,Third Party Payments,460803,Contract Payments,06-Jul-17,3305252-DXNF/00000077NRT,"1,089.90",BRITTON & ROBSON LTD.
Adult and Health Services,Commissioning inc Supporting People,Third Party Payments,440051,Other Third Party Payments,06-Jul-17,3305308-MAY2017,"3,841.67",DERIC YOUTH BUS PROJECT.
Adult and Health Services,Head of Adults,Supplies and Services,338066,Services,06-Jul-17,3305315-310517130617,"1,057.63",DR ANDREW NTANDA.
Adult and Health Services,Head of Adults,Supplies and Services,338066,Services,06-Jul-17,3305316-310517130617,884.54,DR ARUNIMA GHOSH-NODIYAL.
Adult and Health Services,Head of Adults,Supplies and Services,338066,Services,06-Jul-17,3305317-310517130617,"1,073.85",DR DAVID NEILL T/A NOBAS LTD.
Adult and Health Services,Head of Adults,Supplies and Services,338066,Services,06-Jul-17,3305318-310517130617,"2,446.24",DR FARIBA MAHIN-BABAEI.
Adult and Health Services,Head of Adults,Supplies and Services,338066,Services,06-Jul-17,3305319-310517130617,"1,425.76",DR HEMANTH NAGARATHNAM.
Adult and Health Services,Head of Adults,Supplies and Services,338066,Services,06-Jul-17,3305320-310547130617,719.08,DR IPSITA MITRA.
Adult and Health Services,Head of Adults,Supplies and Services,338066,Services,06-Jul-17,3305321-310517130617,"1,134.91",DR RASHEED ABUZEID.
Adult and Health Services,Public Health,Third Party Payments,460803,Contract Payments,06-Jul-17,3305341-FBQJ/00000083NRT,599.51,FARAH CHEMISTS LTD.
Adult and Health Services,Public Health,Third Party Payments,460803,Contract Payments,06-Jul-17,3305385-DYBQ/00000083NRT,774.62,INTRAHEALTH LTD.*
Adult and Health Services,Public Health,Third Party Payments,460803,Contract Payments,06-Jul-17,3305387-DTJG/00000068NRT,892.7,J & J PHARMACY.
Adult and Health Services,Public Health,Third Party Payments,460803,Contract Payments,06-Jul-17,3305399-FKZD/00000045NRT,508.62,JOHN LOW LTD T/A MOORSIDE PHARMACY.
Adult and Health Services,Public Health,Third Party Payments,460803,Contract Payments,06-Jul-17,3305422-DZTR/00000096NRT,564.74,LLOYDS PHARMACY.
Adult and Health Services,Public Health,Third Party Payments,460803,Contract Payments,06-Jul-17,3305430-FPZD/00000078NRT,599.35,LYDON PHARMACY GROUP LTD.
Adult and Health Services,Public Health,Third Party Payments,460803,Contract Payments,06-Jul-17,3305433-LKWJ/00000096NRT,863.86,M & M PHARMACIES LTD.
Adult and Health Services,Public Health,Third Party Payments,460803,Contract Payments,06-Jul-17,3305434-DWMD/00000101NRT,571.33,M & M PHARMACIES LTD.
Adult and Health Services,Head of Adults,Third Party Payments,470101,Purchase of Care,06-Jul-17,3305492-32372,"16,841.72",PERCY HEDLEY FOUNDATION.
Adult and Health Services,Head of Adults,Supplies and Services,338066,Services,06-Jul-17,3305530-310517130617,"1,065.26",SHAN MEDICAL SERVICES LTD.
Adult and Health Services,Head of Adults,Supplies and Services,338066,Services,06-Jul-17,3305618-310517130617.,"1,062.69",ZM MEDICAL CONSULTANTS LIMITED.
Children and Young Peoples Services,Head of Early Help Assessment and Safeguarding,Supplies and Services,384302,Miscellaneous Expenses,06-Jul-17,3305214-SIN046591,"1,986.67",AWARD SCHEME LTD.
Children and Young Peoples Services,Head of Looked After Provision Permanence and Care Leavers,Supplies and Services,364352,Grants to Voluntary Organisations,06-Jul-17,3305276-1383,800,CITY OF SUNDERLAND YMCA LTD.
Children and Young Peoples Services,Head of Looked After Provision Permanence and Care Leavers,Supplies and Services,364352,Grants to Voluntary Organisations,06-Jul-17,3305276-1387,700,CITY OF SUNDERLAND YMCA LTD.
Children and Young Peoples Services,Head of Looked After Provision Permanence and Care Leavers,Supplies and Services,364352,Grants to Voluntary Organisations,06-Jul-17,3305276-1389,700,CITY OF SUNDERLAND YMCA LTD.
Children and Young Peoples Services,Head of Education,Third Party Payments,440999,Other Third Party Payments,06-Jul-17,3305310-0017,"2,143.97",DIETWISE NORTH EAST CIS.
Children and Young Peoples Services,Head of Education,Third Party Payments,440999,Other Third Party Payments,06-Jul-17,3305326-YEI3811/12/13,"6,094.68",EAST DURHAM BUSINESS SERVICE.
Children and Young Peoples Services,Head of Education,Supplies and Services,338094,Services,06-Jul-17,3305344-FTL0527,600,FINCHALE TRADING LTD.
Children and Young Peoples Services,Head of Education,Transfer Payments,510026,School Children,06-Jul-17,3305359-7498,525,GIANT STEPS LTD.
Children and Young Peoples Services,Head of Education,Transfer Payments,510026,School Children,06-Jul-17,3305378-ADDITIONALSUPPORTINNURSERY,"1,789.20",HOWLETCH & SHOTTON CHILDCARE LTD.
Children and Young Peoples Services,Head of Education,Vehicles Equipment Furniture and Fittings,912701,Computer equipment,06-Jul-17,3305381-VAL1CONSETTACADEMY,"168,564.00",INSPIREDSPACES DURHAM LTD.
Children and Young Peoples Services,Head of Education,Third Party Payments,440999,Other Third Party Payments,06-Jul-17,3305445-1311,"2,689.87",MBC CERAMICS.
Regeneration and Local Services,Economic Development and Housing,Cap Exp on Grants & Other Financial Assistance (REFCUS),918401,Capital grants,06-Jul-17,3305404-RED-07-2017-009,"5,000.00",REDACTED - PAYMENT TO INDIVIDUAL
Regeneration and Local Services,Economic Development and Housing,Cap Exp on Grants & Other Financial Assistance (REFCUS),918401,Capital grants,06-Jul-17,3305451-RED-07-2017-008,"5,000.00",REDACTED - PAYMENT TO INDIVIDUAL
Regeneration and Local Services,Economic Development and Housing,Cap Exp on Grants & Other Financial Assistance (REFCUS),918401,Capital grants,06-Jul-17,3305454-RED-07-2017-007,"5,000.00",REDACTED - PAYMENT TO INDIVIDUAL
Regeneration and Local Services,Economic Development and Housing,Cap Exp on Grants & Other Financial Assistance (REFCUS),918401,Capital grants,06-Jul-17,3305576-RED-07-2017-010,"2,230.00",THYSSENKRUPP ENCASA A DIVISION OF THYSSENKRUPP ACCESS LTD.
Regeneration and Local Services,Economic Development and Housing,Cap Exp on Grants & Other Financial Assistance (REFCUS),918401,Capital grants,06-Jul-17,3305580-RED-07-2017-006,"5,000.00",REDACTED - PAYMENT TO INDIVIDUAL
Regeneration and Local Services,Culture & Sport,Premises,145023,Cleaning and Domestic Supplies,06-Jul-17,3305247-22SI2225456,874.8,BRENNTAG UK LTD.
Regeneration and Local Services,Culture & Sport,Premises,145023,Cleaning and Domestic Supplies,06-Jul-17,3305247-22SI2226665,949,BRENNTAG UK LTD.
Regeneration and Local Services,Direct Services,Supplies and Services,328041,Clothing Uniforms and Laundry,06-Jul-17,3305573-N/IN194690,771.04,THOMAS OWEN & SONS (NEWCASTLE) LTD.
Regeneration and Local Services,Culture & Sport,Construction Work,908105,Construction work,06-Jul-17,3305428-51766,780,LUCION ENVIRONMENTAL LLP LTD.
Regeneration and Local Services,Economic Development and Housing,Premises,120021,Energy Costs,06-Jul-17,3305539-761630080/0040,761.8,SOUTHERN ELECTRIC.*
Regeneration and Local Services,Direct Services,Supplies and Services,304040,Equipment and Materials,06-Jul-17,3305305-3107,"2,206.40",DEMETER LTD.
Regeneration and Local Services,Technical Services,Supplies and Services,304221,Equipment and Materials,06-Jul-17,3305189-25010309,"1,259.02",AGGREGATE INDUSTRIES UK LTD.
Regeneration and Local Services,Technical Services,Supplies and Services,304221,Equipment and Materials,06-Jul-17,3305189-25010312,732.27,AGGREGATE INDUSTRIES UK LTD.
Regeneration and Local Services,Technical Services,Supplies and Services,304221,Equipment and Materials,06-Jul-17,3305189-25010313,637,AGGREGATE INDUSTRIES UK LTD.
Regeneration and Local Services,Technical Services,Supplies and Services,304221,Equipment and Materials,06-Jul-17,3305216-INV-0179,"2,400.00",BEAVER BRIDGE HIRE LTD.
Regeneration and Local Services,Technical Services,Supplies and Services,304221,Equipment and Materials,06-Jul-17,3305254-INV211520,674,BROXAP LTD.
Regeneration and Local Services,Direct Services,Supplies and Services,304221,Equipment and Materials,06-Jul-17,3305418-61340,680,LEISURETEQ.
Regeneration and Local Services,Direct Services,Supplies and Services,304221,Equipment and Materials,06-Jul-17,3305426-4046546,573.79,LONDON GENERAL SALES LTD.
Regeneration and Local Services,Direct Services,Supplies and Services,304221,Equipment and Materials,06-Jul-17,3305579-31102,880,TOTAL PUMP SOLUTIONS LTD.
Regeneration and Local Services,Technical Services,Supplies and Services,304221,Equipment and Materials,06-Jul-17,3305588-174469,"1,123.32",TYNEDALE ROADSTONE LTD.
Regeneration and Local Services,Technical Services,Supplies and Services,304221,Equipment and Materials,06-Jul-17,3305588-174470,536.2,TYNEDALE ROADSTONE LTD.
Regeneration and Local Services,Technical Services,Supplies and Services,304221,Equipment and Materials,06-Jul-17,3305588-174471,"1,011.99",TYNEDALE ROADSTONE LTD.
Regeneration and Local Services,Technical Services,Supplies and Services,304221,Equipment and Materials,06-Jul-17,3305588-174472,"1,028.18",TYNEDALE ROADSTONE LTD.
Regeneration and Local Services,Technical Services,Supplies and Services,304221,Equipment and Materials,06-Jul-17,3305588-174473,876.43,TYNEDALE ROADSTONE LTD.
Regeneration and Local Services,Direct Services,Supplies and Services,304259,Equipment and Materials,06-Jul-17,3305461-063683,"1,739.85",NEW ROW FARM NURSERIES.
Regeneration and Local Services,Direct Services,Supplies and Services,304259,Equipment and Materials,06-Jul-17,3305461-063720,"3,694.00",NEW ROW FARM NURSERIES.
Regeneration and Local Services,Direct Services,Supplies and Services,304259,Equipment and Materials,06-Jul-17,3305531-CD970516067,"2,959.00",SHERRIFF AMENITY.
Regeneration and Local Services,Transport and Contracted Services,Supplies and Services,304245,Equipment and Materials,06-Jul-17,3305255-52053,"1,590.00",BUDDI.
Regeneration and Local Services,Culture & Sport,Income,720810,Fees and Charges,06-Jul-17,3305283-PSINV02106,"4,745.28",COMPETITION LINE UK LTD.
Regeneration and Local Services,Economic Development and Housing,Supplies and Services,384437,Miscellaneous Expenses,06-Jul-17,3305395-20407,"2,599.00",JIM HUGHES COACHES LTD.
Regeneration and Local Services,Economic Development and Housing,Supplies and Services,384437,Miscellaneous Expenses,06-Jul-17,3305481-F44703231/1,824,P & O FERRIES HOLDINGS LTD.
Regeneration and Local Services,Economic Development and Housing,Supplies and Services,384437,Miscellaneous Expenses,06-Jul-17,3305481-F44703248/1,712,P & O FERRIES HOLDINGS LTD.
Regeneration and Local Services,Economic Development and Housing,Supplies and Services,384437,Miscellaneous Expenses,06-Jul-17,3305481-F44703262/1,812,P & O FERRIES HOLDINGS LTD.
Regeneration and Local Services,Economic Development and Housing,Supplies and Services,384437,Miscellaneous Expenses,06-Jul-17,3305481-F45541844/1,712,P & O FERRIES HOLDINGS LTD.
Regeneration and Local Services,Culture & Sport,Supplies and Services,384199,Miscellaneous Expenses,06-Jul-17,3305196-4100583256,"1,162.50",AMANDA WOODS.
Regeneration and Local Services,Economic Development and Housing,Supplies and Services,384199,Miscellaneous Expenses,06-Jul-17,3305460-NM31512,700,NEW MIND INTERNET CONSULTANCY LTD.
Regeneration and Local Services,Culture & Sport,Supplies and Services,384199,Miscellaneous Expenses,06-Jul-17,3305462-NEI-HCL-07-2017-001,"3,778.00",NEW WRITING NORTH LTD.
Regeneration and Local Services,Culture & Sport,Supplies and Services,384199,Miscellaneous Expenses,06-Jul-17,3305466-GTSS18RENT,"1,000.00",NICOLA MORRIS.
Regeneration and Local Services,Technical Services,Employees,40149,Recruitment Instruction and Training,06-Jul-17,3305507-5004,"1,240.00",Q1TUM.
Regeneration and Local Services,Transport and Contracted Services,Third Party Payments,430106,Rendered by Private Contractors,06-Jul-17,3305602-1528,"32,153.58",WEARDALE MOTOR SERVICES LTD.
Regeneration and Local Services,Direct Services,Third Party Payments,430100,Rendered by Private Contractors,06-Jul-17,3305279-12008,875,CLEVELAND METAL WINDOW SERVICES.
Regeneration and Local Services,Culture & Sport,Third Party Payments,430100,Rendered by Private Contractors,06-Jul-17,3305283-PSINV02105,"7,532.30",COMPETITION LINE UK LTD.
Regeneration and Local Services,Culture & Sport,Third Party Payments,430100,Rendered by Private Contractors,06-Jul-17,3305283-PSINV02107,"27,650.28",COMPETITION LINE UK LTD.
Regeneration and Local Services,Technical Services,Third Party Payments,430100,Rendered by Private Contractors,06-Jul-17,3305414-1965,"62,192.30",L & G PLANT HIRE & SALES LTD.
Regeneration and Local Services,Technical Services,Third Party Payments,430100,Rendered by Private Contractors,06-Jul-17,3305472-DI20264798,"7,532.95",NORTHERN POWERGRID (NORTHEAST) LTD.
Regeneration and Local Services,Technical Services,Third Party Payments,430100,Rendered by Private Contractors,06-Jul-17,3305472-DI20264799,"6,992.93",NORTHERN POWERGRID (NORTHEAST) LTD.
Regeneration and Local Services,Technical Services,Third Party Payments,430100,Rendered by Private Contractors,06-Jul-17,3305472-DI20270441,709.41,NORTHERN POWERGRID (NORTHEAST) LTD.
Regeneration and Local Services,Direct Services,Third Party Payments,430100,Rendered by Private Contractors,06-Jul-17,3305478-19233,780,OLIVERS TREE SERVICES LTD.
Regeneration and Local Services,Direct Services,Third Party Payments,430101,Rendered by Private Contractors,06-Jul-17,3305312-IV889660,"2,360.68",DIRECT TYRE MANAGEMENT (DTM).
Regeneration and Local Services,Direct Services,Third Party Payments,430101,Rendered by Private Contractors,06-Jul-17,3305312-IV894272,642.1,DIRECT TYRE MANAGEMENT (DTM).
Regeneration and Local Services,Direct Services,Third Party Payments,430101,Rendered by Private Contractors,06-Jul-17,3305312-IV897386,"2,758.90",DIRECT TYRE MANAGEMENT (DTM).
Regeneration and Local Services,Direct Services,Third Party Payments,430101,Rendered by Private Contractors,06-Jul-17,3305312-IV897389,"2,324.05",DIRECT TYRE MANAGEMENT (DTM).
Regeneration and Local Services,Direct Services,Transport,215005,Running Costs of Vehicles,06-Jul-17,3305477-250781,"13,455.00",OIL NRG LTD.
Regeneration and Local Services,Spatial Policy Planning Assets & Environment,Supplies and Services,338066,Services,06-Jul-17,3305436-126123,"2,842.43",M BRYSON T/A M & R SIGNS.
Regeneration and Local Services,Technical Services,Stock,926900,Stock in hand-Inventory system,06-Jul-17,3305362-06/648719,"2,115.68",GREENHAM TRADING LTD.
Regeneration and Local Services,Technical Services,Stock,926900,Stock in hand-Inventory system,06-Jul-17,3305382-586807,"2,424.80",INSTARMAC GROUP PLC.
Regeneration and Local Services,Technical Services,Stock,926900,Stock in hand-Inventory system,06-Jul-17,3305485-XL202287,"4,284.00",PARK ELECTRICAL DISTRIBUTORS LTD.
Resources,Legal & Democratic Services,Supplies and Services,340001,Postages,06-Jul-17,3305187-PSI0017335,587.41,ADARE INSPIRED COMMUNICATIONS.
Resources,Financial Services,Supplies and Services,384199,Miscellaneous Expenses,06-Jul-17,3305188-8020931016,809.97,ADVANCED PAYMENT SOLUTIONS LTD.
Resources,Internal Audit and Insurance,Supplies and Services,342033,Computers and Communications,06-Jul-17,3305304-7402367790,"11,456.20",DELL COMPUTER CORPORATION LTD.
Resources,Legal & Democratic Services,Supplies and Services,338042,Services,06-Jul-17,3305306-327844,850,DERE STREET BARRISTERS.
Resources,Financial Services,Supplies and Services,304516,Equipment and Materials,06-Jul-17,3305369-45530,821,HANDS FREE COMPUTING LTD.
Resources,I.C.T. Services,Stock,926900,Stock in hand-Inventory system,06-Jul-17,3305616-BP36824,566.92,XMA LTD.
Transformation and Partnerships,Partnerships & Community Engagement Div.,Supplies and Services,384086,Miscellaneous Expenses,06-Jul-17,3305294-VOUCHER16NB-3TWN041,"2,000.00",CROOK & DISTRICT SPORTS & ATHLETIC CLUB JUNIOR SECTION.
Transformation and Partnerships,Partnerships & Community Engagement Div.,Supplies and Services,384086,Miscellaneous Expenses,06-Jul-17,3305300-VOUCHER16NB-BASH069,"2,000.00",DAISY ARTS.
Transformation and Partnerships,Partnerships & Community Engagement Div.,Supplies and Services,384086,Miscellaneous Expenses,06-Jul-17,3305322-CORC01-17MAVE01-17,500,DURHAM CITY BAPTIST CHURCH.
Transformation and Partnerships,Partnerships & Community Engagement Div.,Cap Exp on Grants & Other Financial Assistance (REFCUS),918004,Contributions to other bodies,06-Jul-17,3305323-VOUCHER16NB-DCTY041,"1,400.00",DURHAM CITY GYMNASTICS CLUB CIC.
Transformation and Partnerships,Partnerships & Community Engagement Div.,Cap Exp on Grants & Other Financial Assistance (REFCUS),918004,Contributions to other bodies,06-Jul-17,3305331-VOUCHER16NB-CHES075,"1,572.10",EDMONDSLEY PARISH COUNCIL.
Transformation and Partnerships,Partnerships & Community Engagement Div.,Cap Exp on Grants & Other Financial Assistance (REFCUS),918004,Contributions to other bodies,06-Jul-17,3305338-VOUCHER16NB-MDUR045,"2,400.00",ESH VILLAGE RESIDENTS ASSOCIATION.
Transformation and Partnerships,Partnerships & Community Engagement Div.,Supplies and Services,384086,Miscellaneous Expenses,06-Jul-17,3305367-AVEB03-17,500,HALF MOON FOOTBALL CLUB.
Transformation and Partnerships,Partnerships & Community Engagement Div.,Cap Exp on Grants & Other Financial Assistance (REFCUS),918007,Acquisition of share capital (REFCUS),06-Jul-17,3305459-VOUCHER16NB-MDUR046,"2,221.20",NEW BRANCEPETH RESIDENTS ASSOCIATION.
Transformation and Partnerships,Partnerships & Community Engagement Div.,Supplies and Services,384086,Miscellaneous Expenses,06-Jul-17,3305527-BELJ01-17,800,SEAHAM ATHLETIC FOOTBALL CLUB.
Transformation and Partnerships,Partnerships & Community Engagement Div.,Cap Exp on Grants & Other Financial Assistance (REFCUS),918004,Contributions to other bodies,06-Jul-17,3305532-VOUCHER16NB-DCTY053,"7,552.80",SHINCLIFFE PARISH COUNCIL.
Transformation and Partnerships,Partnerships & Community Engagement Div.,Cap Exp on Grants & Other Financial Assistance (REFCUS),918004,Contributions to other bodies,06-Jul-17,3305545-VOUCHER16NB-DCTY051,"10,000.00",ST MARY`S SHINCLIFFE PCC.
Adult and Health Services,Public Health,Third Party Payments,460803,Contract Payments,07-Jul-17,3305679-DTZQ/00000077NRT,"1,038.19",BESTWAY NATIONAL CHEMIST LTD T/A WELL.
Adult and Health Services,Head of Adults,Supplies and Services,304516,Equipment and Materials,07-Jul-17,3305683-78,"1,061.00",BILL SCOTT TAXIS LTD.
Adult and Health Services,Public Health,Third Party Payments,460803,Contract Payments,07-Jul-17,3305686-FTCK/00000067NRT,659.16,BLUE HOUSE RETAIL LTD T/A TAYLORS PHARMACY.
Adult and Health Services,Public Health,Third Party Payments,460803,Contract Payments,07-Jul-17,3305689-FPPB/00000103NRT,630.82,BOOTS THE CHEMISTS LTD.*
Adult and Health Services,Commissioning inc Supporting People,Third Party Payments,479111,Purchase of Care,07-Jul-17,3305726-CACD370,"15,000.00",CITIZENS ADVICE COUNTY DURHAM.
Adult and Health Services,Commissioning inc Supporting People,Third Party Payments,479111,Purchase of Care,07-Jul-17,3305726-CACD371,"15,000.00",CITIZENS ADVICE COUNTY DURHAM.
Adult and Health Services,Head of Adults,Third Party Payments,472101,Purchase of Care,07-Jul-17,3305750-3666,"1,647.04",DCS & D LTD T/A HERITAGE HEALTHCARE.
Adult and Health Services,Head of Adults,Third Party Payments,472101,Purchase of Care,07-Jul-17,3305750-3670,"1,084.88",DCS & D LTD T/A HERITAGE HEALTHCARE.
Adult and Health Services,Head of Adults,Supplies and Services,338066,Services,07-Jul-17,3305763-140617060717,700,DR ARUNIMA GHOSH-NODIYAL.
Adult and Health Services,Head of Adults,Supplies and Services,338066,Services,07-Jul-17,3305765-140617060717,"1,315.63",DR IPSITA MITRA.
Adult and Health Services,Head of Adults,Supplies and Services,338066,Services,07-Jul-17,3305767-140617060717,751.52,DR MARK S APPLETON.
Adult and Health Services,Head of Adults,Supplies and Services,338066,Services,07-Jul-17,3305768-140617060717,"2,720.40",DR RASHEED ABUZEID.
Adult and Health Services,Head of Adults,Supplies and Services,338066,Services,07-Jul-17,3305769-140617060717,"3,913.92",DR STEPHEN WILKINSON.
Adult and Health Services,Head of Adults,Premises,125009,Rents,07-Jul-17,3305806-FTL0543,"4,250.00",FINCHALE TRADING LTD.
Adult and Health Services,Head of Adults,Transport,230005,Contract Hire,07-Jul-17,3305878-112-30/6/17,"1,572.50",KEN CHAMBERS T/A SHILDON TRANSPORT LTD.
Adult and Health Services,Head of Adults,Third Party Payments,470101,Purchase of Care,07-Jul-17,3305894-RINVTP/00447009,"12,911.88",LEONARD CHESHIRE DISABILITY.
Adult and Health Services,Commissioning inc Supporting People,Third Party Payments,479101,Purchase of Care,07-Jul-17,3305908-8461,"11,583.33",MAIN - TAKING AUTISM PERSONALLY.
Adult and Health Services,Head of Adults,Transport,230005,Contract Hire,07-Jul-17,3305928-25,"1,540.00",MR JOHN KNIGHTON T/A JK TAXIS.
Adult and Health Services,Public Health,Premises,125009,Rents,07-Jul-17,3305944-48518891,"5,000.00",NHS PROPERTY SERVICES LTD.
Adult and Health Services,Public Health,Premises,125009,Rents,07-Jul-17,3305944-48518962,"5,000.00",NHS PROPERTY SERVICES LTD.
Adult and Health Services,Public Health,Premises,125009,Rents,07-Jul-17,3305944-48519010,"5,000.00",NHS PROPERTY SERVICES LTD.
Adult and Health Services,Public Health,Premises,125009,Rents,07-Jul-17,3305944-48519205,"5,000.00",NHS PROPERTY SERVICES LTD.
Adult and Health Services,Public Health,Third Party Payments,460803,Contract Payments,07-Jul-17,3305946-FNTN/00000072NRT,700.19,NORCHEM HEALTHCARE LTD.
Adult and Health Services,Head of Adults,Third Party Payments,472101,Purchase of Care,07-Jul-17,3305948-0000033494,687.75,NORTH EAST AUTISM SOCIETY.
Adult and Health Services,Head of Adults,Third Party Payments,478151,Purchase of Care,07-Jul-17,3305958-29500,787.5,OAKLEA TRUST.
Adult and Health Services,Head of Adults,Transport,230005,Contract Hire,07-Jul-17,3305977-0557,968,PETER`S PRIVATE HIRE/PETER BEST.
Adult and Health Services,Public Health,Third Party Payments,460803,Contract Payments,07-Jul-17,3305979-FTDK/00000098NRT,822.8,PHILLIPS CHEMISTS LTD.
Adult and Health Services,Head of Adults,Third Party Payments,478151,Purchase of Care,07-Jul-17,3305991-00002847,"1,788.40",POTENSIAL LTD T/A POTENS
Adult and Health Services,Public Health,Third Party Payments,460803,Contract Payments,07-Jul-17,3306027-FBGG/00000057NRT,566.22,SHOTTON PHARMACY.
Adult and Health Services,Head of Adults,Transport,230005,Contract Hire,07-Jul-17,3306028-72703,"1,700.00",SHOTTON PRIVATE HIRE.
Adult and Health Services,Public Health,Third Party Payments,460803,Contract Payments,07-Jul-17,3306098-FFRV/00000066NRT,"1,256.87",W SMITH (DURHAM) LTD.
Adult and Health Services,Head of Adults,Transport,230005,Contract Hire,07-Jul-17,3306102-1106-28/6/17,"1,320.00",WAYNE`S TAXIS.
Adult and Health Services,Head of Adults,Transport,230005,Contract Hire,07-Jul-17,3306106-5927,"1,529.00",WEARDALE PRIVATE HIRE.
Adult and Health Services,Public Health,Third Party Payments,460803,Contract Payments,07-Jul-17,3306110-DWFD/00000074NRT,714.55,WHITWORTH CHEMISTS LTD.
Adult and Health Services,Head of Adults,Supplies and Services,338045,Services,07-Jul-17,3306119-233483-6/6/17,"10,200.00",ZENITH CHAMBERS.
Adult and Health Services,Head of Adults,Supplies and Services,338066,Services,07-Jul-17,3306120-140617060717,"1,268.41",ZM MEDICAL CONSULTANTS LIMITED.
Children and Young Peoples Services,Head of Education,Transport,230007,Contract Hire,07-Jul-17,3305629-61701,704,24/7 TAXI SERVICES LTD.
Children and Young Peoples Services,Head of Education,Transport,230006,Contract Hire,07-Jul-17,3305629-61707,904.6,24/7 TAXI SERVICES LTD.
Children and Young Peoples Services,Head of Education,Transport,230006,Contract Hire,07-Jul-17,3305629-61711,"1,660.00",24/7 TAXI SERVICES LTD.
Children and Young Peoples Services,Head of Education,Transport,230012,Contract Hire,07-Jul-17,3305629-61706,753.7,24/7 TAXI SERVICES LTD.
Children and Young Peoples Services,Head of Education,Transport,230008,Contract Hire,07-Jul-17,3305629-61704,"1,725.00",24/7 TAXI SERVICES LTD.
Children and Young Peoples Services,Head of Education,Transport,230008,Contract Hire,07-Jul-17,3305629-61705,"1,943.83",24/7 TAXI SERVICES LTD.
Children and Young Peoples Services,Head of Education,Transport,230008,Contract Hire,07-Jul-17,3305629-61708,"2,280.00",24/7 TAXI SERVICES LTD.
Children and Young Peoples Services,Head of Education,Transport,230008,Contract Hire,07-Jul-17,3305629-61709,"1,000.00",24/7 TAXI SERVICES LTD.
Children and Young Peoples Services,Head of Education,Transport,230008,Contract Hire,07-Jul-17,3305629-61713,"1,204.20",24/7 TAXI SERVICES LTD.
Children and Young Peoples Services,Head of Education,Transport,230008,Contract Hire,07-Jul-17,3305629-61714,"1,780.00",24/7 TAXI SERVICES LTD.
Children and Young Peoples Services,Head of Education,Transport,230009,Contract Hire,07-Jul-17,3305636-JUNE-03,900,A & P TAXIS.
Children and Young Peoples Services,Head of Education,Transport,230006,Contract Hire,07-Jul-17,3305638-HA220790,"1,280.00",A MURRAY TRAVEL.
Children and Young Peoples Services,Head of Education,Transport,230008,Contract Hire,07-Jul-17,3305638-A220788,"1,787.00",A MURRAY TRAVEL.
Children and Young Peoples Services,Head of Education,Transport,230008,Contract Hire,07-Jul-17,3305638-EA220784,"1,620.00",A MURRAY TRAVEL.
Children and Young Peoples Services,Head of Education,Transport,230006,Contract Hire,07-Jul-17,3305655-DC6/17,900,ANDY`S TAXIS.
Children and Young Peoples Services,Head of Education,Transport,230012,Contract Hire,07-Jul-17,3305666-JUNE2017-03,837,ARMSTRONG`S TAXIS.
Children and Young Peoples Services,Head of Education,Transport,230008,Contract Hire,07-Jul-17,3305666-JUNE2017-01,"1,710.00",ARMSTRONG`S TAXIS.
Children and Young Peoples Services,Head of Education,Transport,230008,Contract Hire,07-Jul-17,3305669-301617,"2,165.60",AVALON TAXIS.
Children and Young Peoples Services,Head of Looked After Provision Permanence and Care Leavers,Supplies and Services,304259,Equipment and Materials,07-Jul-17,3305673-6741,"1,672.00",BARRONS CONTRACTS.
Children and Young Peoples Services,Head of Education,Third Party Payments,440999,Other Third Party Payments,07-Jul-17,3305702-179,524.67,CAPITAL 4 TRAINING LTD
Children and Young Peoples Services,Head of Looked After Provision Permanence and Care Leavers,Employees,80025,Agency Staff,07-Jul-17,3305716-03946423,538.5,CER (A DIVISION OF MONARCH EDUCATION LTD).
Children and Young Peoples Services,Head of Looked After Provision Permanence and Care Leavers,Employees,80025,Agency Staff,07-Jul-17,3305716-03946424,590,CER (A DIVISION OF MONARCH EDUCATION LTD).
Children and Young Peoples Services,Head of Early Help Assessment and Safeguarding,Supplies and Services,338044,Services,07-Jul-17,3305733-101695,906.74,COMPLEMENT GENOMICS LTD.
Children and Young Peoples Services,Head of Early Help Assessment and Safeguarding,Supplies and Services,338042,Services,07-Jul-17,3305753-324166/INVVCH44,900,DERE STREET BARRISTERS.
Children and Young Peoples Services,Head of Looked After Provision Permanence and Care Leavers,Third Party Payments,425021,Rendered by Voluntary Organisations,07-Jul-17,3305781-MP001,"8,571.43",DUTY OF CARE LTD.
Dedicated Schools Grant,Dedicated Schools Grant,Supplies and Services,338027,Services,07-Jul-17,3305798-61,"2,420.00",EMILY BACKES T/A TALKINDALES.
Children and Young Peoples Services,Head of Education,Transfer Payments,510026,School Children,07-Jul-17,3305854-192680,848.88,HOUSE OF EDEN CHILDRENS NURSERY.
Children and Young Peoples Services,Childrens Services Operational Support,Supplies and Services,338089,Services,07-Jul-17,3305856-4212,600,HSF TRAINING LTD.
Children and Young Peoples Services,Head of Education,Transport,230007,Contract Hire,07-Jul-17,3305862-1952,640,J YOUNG T/A VIP TAXIS.
Children and Young Peoples Services,Head of Education,Transport,230012,Contract Hire,07-Jul-17,3305862-1959,"1,560.00",J YOUNG T/A VIP TAXIS.
Children and Young Peoples Services,Head of Education,Transport,230008,Contract Hire,07-Jul-17,3305862-1951,"1,365.20",J YOUNG T/A VIP TAXIS.
Children and Young Peoples Services,Head of Education,Transport,230008,Contract Hire,07-Jul-17,3305862-1955,"1,007.00",J YOUNG T/A VIP TAXIS.
Children and Young Peoples Services,Head of Education,Transport,230008,Contract Hire,07-Jul-17,3305862-1956,"1,121.00",J YOUNG T/A VIP TAXIS.
Children and Young Peoples Services,Head of Education,Transport,230008,Contract Hire,07-Jul-17,3305886-50,"1,360.00",L & R PRIVATE HIRE.
Children and Young Peoples Services,Head of Education,Transport,230006,Contract Hire,07-Jul-17,3305892-1121,"1,900.00",LD TAXIS.
Children and Young Peoples Services,Head of Education,Transport,230006,Contract Hire,07-Jul-17,3305892-1123,600,LD TAXIS.
Children and Young Peoples Services,Head of Education,Transport,230006,Contract Hire,07-Jul-17,3305892-1124,576,LD TAXIS.
Children and Young Peoples Services,Head of Education,Transport,230008,Contract Hire,07-Jul-17,3305892-1122,"1,550.00",LD TAXIS.
Children and Young Peoples Services,Head of Education,Transport,230007,Contract Hire,07-Jul-17,3305899-3631,891,LINCAB TAXIS.
Children and Young Peoples Services,Head of Education,Transport,230007,Contract Hire,07-Jul-17,3305899-3643,"1,173.30",LINCAB TAXIS.
Children and Young Peoples Services,Head of Education,Transport,230006,Contract Hire,07-Jul-17,3305899-3640,"1,936.00",LINCAB TAXIS.
Children and Young Peoples Services,Head of Education,Transport,230006,Contract Hire,07-Jul-17,3305899-3641,"1,962.00",LINCAB TAXIS.
Children and Young Peoples Services,Head of Education,Transport,230012,Contract Hire,07-Jul-17,3305899-3638,"1,514.00",LINCAB TAXIS.
Children and Young Peoples Services,Head of Education,Transport,230012,Contract Hire,07-Jul-17,3305899-3639,"1,294.00",LINCAB TAXIS.
Children and Young Peoples Services,Head of Education,Transport,230008,Contract Hire,07-Jul-17,3305899-3642,"1,696.50",LINCAB TAXIS.
Dedicated Schools Grant,Dedicated Schools Grant,Transport,230010,Contract Hire,07-Jul-17,3305899-3644,"3,038.50",LINCAB TAXIS.
Children and Young Peoples Services,Head of Early Help Assessment and Safeguarding,Supplies and Services,384302,Miscellaneous Expenses,07-Jul-17,3305900-009,750,LITTLE CHEFS BIG CHEFS CIC.
Children and Young Peoples Services,Head of Education,Transport,230006,Contract Hire,07-Jul-17,3305904-61,992,LUMLEY TAXIS.
Children and Young Peoples Services,Head of Education,Transport,230012,Contract Hire,07-Jul-17,3305904-60,506,LUMLEY TAXIS.
Dedicated Schools Grant,Dedicated Schools Grant,Transport,230010,Contract Hire,07-Jul-17,3305905-09,"2,040.00",M&C`S CABS LTD.
Children and Young Peoples Services,Head of Education,Transport,230012,Contract Hire,07-Jul-17,3305912-480617,"1,020.00",MARK MUSGROVE T/A MARKS TAXIS.
Children and Young Peoples Services,Head of Education,Transport,230008,Contract Hire,07-Jul-17,3305912-380617,790,MARK MUSGROVE T/A MARKS TAXIS.
Children and Young Peoples Services,Head of Education,Transport,230008,Contract Hire,07-Jul-17,3305919-MCD36154,"2,724.00",MCDONALD TRAVEL.
Children and Young Peoples Services,Head of Education,Transport,230008,Contract Hire,07-Jul-17,3305919-MCD36155,"2,002.00",MCDONALD TRAVEL.
Children and Young Peoples Services,Head of Education,Transport,230008,Contract Hire,07-Jul-17,3305919-MCD36156,"1,628.00",MCDONALD TRAVEL.
Children and Young Peoples Services,Head of Education,Transport,230006,Contract Hire,07-Jul-17,3305920-26A,"1,871.00",MICHAEL A BODDY T/A MBS TAXIS.
Children and Young Peoples Services,Head of Education,Transport,230008,Contract Hire,07-Jul-17,3305920-9F,"1,235.00",MICHAEL A BODDY T/A MBS TAXIS.
Children and Young Peoples Services,Head of Education,Transport,230007,Contract Hire,07-Jul-17,3305921-00904,"1,600.00",MICHAELS TRAVEL.
Children and Young Peoples Services,Head of Education,Transport,230007,Contract Hire,07-Jul-17,3305927-67,"1,020.00",MR JOHN ALLINSON T/A AALPHA TAXIS.
Children and Young Peoples Services,Head of Education,Transport,230006,Contract Hire,07-Jul-17,3305934-010,"1,089.00",MT`S CABS.
Children and Young Peoples Services,Head of Education,Supplies and Services,352001,Conference Expenses,07-Jul-17,3305950-1978,695,NORTHERN GUILD LTD.
Children and Young Peoples Services,Head of Looked After Provision Permanence and Care Leavers,Third Party Payments,425040,Rendered by Voluntary Organisations,07-Jul-17,3305955-107978,627.2,NOVA PAYROLL MANAGEMENT SERVICES LTD T/A PIN POINT RECRUITMENT.
Children and Young Peoples Services,Head of Education,Transport,230007,Contract Hire,07-Jul-17,3305970-1581,"1,600.00",PAUL WATSON TRAVEL.
Children and Young Peoples Services,Head of Education,Transport,230007,Contract Hire,07-Jul-17,3305970-1582,"2,400.00",PAUL WATSON TRAVEL.
Children and Young Peoples Services,Head of Education,Supplies and Services,304259,Equipment and Materials,07-Jul-17,3305972-1349853,"4,800.00",PEARSON EDUCATION LTD.
Children and Young Peoples Services,Head of Education,Transport,230008,Contract Hire,07-Jul-17,3305977-0551,"1,785.00",PETER`S PRIVATE HIRE/PETER BEST.
Children and Young Peoples Services,Head of Education,Transport,230008,Contract Hire,07-Jul-17,3305977-0553,"2,160.00",PETER`S PRIVATE HIRE/PETER BEST.
Children and Young Peoples Services,Head of Education,Transport,230008,Contract Hire,07-Jul-17,3305977-0559,"1,308.00",PETER`S PRIVATE HIRE/PETER BEST.
Dedicated Schools Grant,Dedicated Schools Grant,Transport,230010,Contract Hire,07-Jul-17,3305977-0556,"2,160.00",PETER`S PRIVATE HIRE/PETER BEST.
Children and Young Peoples Services,Head of Education,Transfer Payments,510026,School Children,07-Jul-17,3305988-14/6/17,"2,289.60",PLAYDAY NURSERY.
Children and Young Peoples Services,Head of Education,Transport,230007,Contract Hire,07-Jul-17,3305810-0389,540,REDACTED - PAYMENT TO INDIVIDUAL
Children and Young Peoples Services,Head of Education,Transport,230009,Contract Hire,07-Jul-17,3305810-0388,600,REDACTED - PAYMENT TO INDIVIDUAL
Children and Young Peoples Services,Head of Education,Transport,230003,Contract Hire,07-Jul-17,3306014-3208/10,"1,780.00",S & S TRAVEL LTD.
Children and Young Peoples Services,Head of Education,Transport,230008,Contract Hire,07-Jul-17,3306014-S017/10,"1,740.00",S & S TRAVEL LTD.
Children and Young Peoples Services,Head of Education,Transport,230008,Contract Hire,07-Jul-17,3306014-W056/10,"2,490.00",S & S TRAVEL LTD.
Children and Young Peoples Services,Head of Education,Transport,230008,Contract Hire,07-Jul-17,3306014-W085/21,"1,900.00",S & S TRAVEL LTD.
Children and Young Peoples Services,Head of Education,Transport,230008,Contract Hire,07-Jul-17,3306025-21-M002,"1,200.00",SHARON`S TAXI.
Children and Young Peoples Services,Head of Education,Transport,230012,Contract Hire,07-Jul-17,3306028-72702,"1,520.00",SHOTTON PRIVATE HIRE.
Children and Young Peoples Services,Head of Education,Transport,230008,Contract Hire,07-Jul-17,3306028-72704,"3,200.00",SHOTTON PRIVATE HIRE.
Children and Young Peoples Services,Head of Education,Transport,230012,Contract Hire,07-Jul-17,3306031-755,"2,090.00",SIMONS TAXIS.
Children and Young Peoples Services,Head of Education,Transport,230008,Contract Hire,07-Jul-17,3306031-756,"1,720.00",SIMONS TAXIS.
Children and Young Peoples Services,Head of Education,Transport,230006,Contract Hire,07-Jul-17,3306037-161-JUN17,"1,064.00",SODA TAXIS.
Children and Young Peoples Services,Head of Education,Transport,230008,Contract Hire,07-Jul-17,3306037-009-JUN17,840,SODA TAXIS.
Children and Young Peoples Services,Head of Education,Transport,230008,Contract Hire,07-Jul-17,3306037-129-M040,995,SODA TAXIS.
Children and Young Peoples Services,Head of Education,Transport,230008,Contract Hire,07-Jul-17,3306037-149,"1,100.00",SODA TAXIS.
Children and Young Peoples Services,Head of Education,Transport,230007,Contract Hire,07-Jul-17,3306054-4961WS,720,T MOORE & SON.
Children and Young Peoples Services,Head of Education,Transport,230007,Contract Hire,07-Jul-17,3306054-4972PA,632,T MOORE & SON.
Children and Young Peoples Services,Head of Education,Transport,230007,Contract Hire,07-Jul-17,3306054-4983SB,"1,600.00",T MOORE & SON.
Children and Young Peoples Services,Head of Education,Transport,230007,Contract Hire,07-Jul-17,3306054-4994TS,950.4,T MOORE & SON.
Children and Young Peoples Services,Head of Education,Transport,230008,Contract Hire,07-Jul-17,3306054-495OS,"1,589.00",T MOORE & SON.
Children and Young Peoples Services,Head of Education,Supplies and Services,332047,Printing Stationery and Gen Off Exps,07-Jul-17,3306058-INV32206,798,TEAM VALLEY PRINTERS LTD T/A TEAM VALLEY GROUP.
Children and Young Peoples Services,Head of Education,Supplies and Services,384302,Miscellaneous Expenses,07-Jul-17,3306065-18,"3,300.00",THE BARN AT EASINGTON.
Children and Young Peoples Services,Head of Education,Transport,230007,Contract Hire,07-Jul-17,3306099-86-30/6/17,912,WALTONS TAXIS.
Children and Young Peoples Services,Head of Education,Transport,230008,Contract Hire,07-Jul-17,3306102-1105,"2,400.00",WAYNE`S TAXIS.
Children and Young Peoples Services,Head of Education,Transport,230009,Contract Hire,07-Jul-17,3306103-5206/10,920,WAYSIDE TAXIS.
Children and Young Peoples Services,Head of Education,Transport,230006,Contract Hire,07-Jul-17,3306103-N301/10,"1,900.00",WAYSIDE TAXIS.
Children and Young Peoples Services,Head of Education,Transport,230008,Contract Hire,07-Jul-17,3306103-A128/10,"1,500.00",WAYSIDE TAXIS.
Children and Young Peoples Services,Head of Education,Transport,230008,Contract Hire,07-Jul-17,3306103-E013/10,"1,600.00",WAYSIDE TAXIS.
Children and Young Peoples Services,Head of Education,Transport,230008,Contract Hire,07-Jul-17,3306103-E144/10,"1,400.00",WAYSIDE TAXIS.
Children and Young Peoples Services,Head of Education,Transport,230008,Contract Hire,07-Jul-17,3306103-M039/10,"1,600.00",WAYSIDE TAXIS.
Children and Young Peoples Services,Head of Education,Transport,230008,Contract Hire,07-Jul-17,3306103-W018/10,"1,900.00",WAYSIDE TAXIS.
Children and Young Peoples Services,Head of Education,Transport,230007,Contract Hire,07-Jul-17,3306104-1056,"1,000.00",WE CONNOR.
Children and Young Peoples Services,Head of Education,Transport,230007,Contract Hire,07-Jul-17,3306106-5917,640,WEARDALE PRIVATE HIRE.
Children and Young Peoples Services,Head of Education,Transport,230007,Contract Hire,07-Jul-17,3306106-5918,"1,350.00",WEARDALE PRIVATE HIRE.
Children and Young Peoples Services,Head of Education,Transport,230007,Contract Hire,07-Jul-17,3306106-5919,"4,085.80",WEARDALE PRIVATE HIRE.
Children and Young Peoples Services,Head of Education,Transport,230007,Contract Hire,07-Jul-17,3306106-5921,"3,598.00",WEARDALE PRIVATE HIRE.
Children and Young Peoples Services,Head of Education,Transport,230007,Contract Hire,07-Jul-17,3306108-DC122,"1,200.00",WHITTONSTALL TAXIS SERVICE.
Regeneration and Local Services,Economic Development and Housing,Cap Exp on Grants & Other Financial Assistance (REFCUS),918401,Capital grants,07-Jul-17,3305837-RED-07-2017-037,"4,880.00",HANDICARE ACCESSIBILITY LTD.
Regeneration and Local Services,Economic Development and Housing,Cap Exp on Grants & Other Financial Assistance (REFCUS),918401,Capital grants,07-Jul-17,3305842-RED-07-2017-023,"3,187.00",HES GROUP UK LTD.
Regeneration and Local Services,Economic Development and Housing,Cap Exp on Grants & Other Financial Assistance (REFCUS),918401,Capital grants,07-Jul-17,3305842-RED-07-2017-024,"3,287.00",HES GROUP UK LTD.
Regeneration and Local Services,Economic Development and Housing,Cap Exp on Grants & Other Financial Assistance (REFCUS),918401,Capital grants,07-Jul-17,3305842-RED-07-2017-026,"3,365.00",HES GROUP UK LTD.
Regeneration and Local Services,Economic Development and Housing,Cap Exp on Grants & Other Financial Assistance (REFCUS),918401,Capital grants,07-Jul-17,3305842-RED-07-2017-027,"3,285.00",HES GROUP UK LTD.
Regeneration and Local Services,Economic Development and Housing,Cap Exp on Grants & Other Financial Assistance (REFCUS),918401,Capital grants,07-Jul-17,3305842-RED-07-2017-028,"3,435.00",HES GROUP UK LTD.
Regeneration and Local Services,Economic Development and Housing,Cap Exp on Grants & Other Financial Assistance (REFCUS),918401,Capital grants,07-Jul-17,3305842-RED-07-2017-029,"3,395.00",HES GROUP UK LTD.
Regeneration and Local Services,Economic Development and Housing,Cap Exp on Grants & Other Financial Assistance (REFCUS),918401,Capital grants,07-Jul-17,3305842-RED-07-2017-030,"3,065.00",HES GROUP UK LTD.
Regeneration and Local Services,Economic Development and Housing,Cap Exp on Grants & Other Financial Assistance (REFCUS),918401,Capital grants,07-Jul-17,3305842-RED-07-2017-035,"2,165.00",HES GROUP UK LTD.
Regeneration and Local Services,Economic Development and Housing,Cap Exp on Grants & Other Financial Assistance (REFCUS),918401,Capital grants,07-Jul-17,3305842-RED-07-2017-038,"2,995.00",HES GROUP UK LTD.
Regeneration and Local Services,Economic Development and Housing,Cap Exp on Grants & Other Financial Assistance (REFCUS),918401,Capital grants,07-Jul-17,3305842-RED-07-2017-039,"4,331.00",HES GROUP UK LTD.
Regeneration and Local Services,Economic Development and Housing,Cap Exp on Grants & Other Financial Assistance (REFCUS),918401,Capital grants,07-Jul-17,3305842-RED-07-2017-044,"3,222.00",HES GROUP UK LTD.
Regeneration and Local Services,Economic Development and Housing,Cap Exp on Grants & Other Financial Assistance (REFCUS),918401,Capital grants,07-Jul-17,3305973-RED-07-2017-025,"1,663.00",PEART ACCESS RAMPS.
Regeneration and Local Services,Economic Development and Housing,Cap Exp on Grants & Other Financial Assistance (REFCUS),918401,Capital grants,07-Jul-17,3305973-RED-07-2017-031,"1,424.00",PEART ACCESS RAMPS.
Regeneration and Local Services,Economic Development and Housing,Cap Exp on Grants & Other Financial Assistance (REFCUS),918401,Capital grants,07-Jul-17,3305973-RED-07-2017-032,"1,761.00",PEART ACCESS RAMPS.
Regeneration and Local Services,Economic Development and Housing,Cap Exp on Grants & Other Financial Assistance (REFCUS),918401,Capital grants,07-Jul-17,3305973-RED-07-2017-041,"1,061.00",PEART ACCESS RAMPS.
Regeneration and Local Services,Economic Development and Housing,Cap Exp on Grants & Other Financial Assistance (REFCUS),918401,Capital grants,07-Jul-17,3306075-RED-07-2017-033,"2,134.00",THYSSENKRUPP ENCASA A DIVISION OF THYSSENKRUPP ACCESS LTD.
Regeneration and Local Services,Economic Development and Housing,Cap Exp on Grants & Other Financial Assistance (REFCUS),918401,Capital grants,07-Jul-17,3306075-RED-07-2017-036,"1,887.00",THYSSENKRUPP ENCASA A DIVISION OF THYSSENKRUPP ACCESS LTD.
Regeneration and Local Services,Economic Development and Housing,Cap Exp on Grants & Other Financial Assistance (REFCUS),918401,Capital grants,07-Jul-17,3306075-RED-07-2017-043,"1,760.00",THYSSENKRUPP ENCASA A DIVISION OF THYSSENKRUPP ACCESS LTD.
Regeneration and Local Services,Economic Development and Housing,Cap Exp on Grants & Other Financial Assistance (REFCUS),918401,Capital grants,07-Jul-17,3306080-RED-07-2017-042,"2,784.10",TOTAL HYGIENE LTD.
Regeneration and Local Services,Direct Services,Supplies and Services,328041,Clothing Uniforms and Laundry,07-Jul-17,3305832-157866,764.2,GUSTHARTS.
Regeneration and Local Services,Direct Services,Supplies and Services,328041,Clothing Uniforms and Laundry,07-Jul-17,3306073-N/IN198255,748.8,THOMAS OWEN & SONS (NEWCASTLE) LTD.
Regeneration and Local Services,Direct Services,Supplies and Services,328041,Clothing Uniforms and Laundry,07-Jul-17,3306073-N/IN198310,922.88,THOMAS OWEN & SONS (NEWCASTLE) LTD.
Regeneration and Local Services,Direct Services,Debtors,930046,Debtor-leasing,07-Jul-17,3305698-114212,"45,800.00",BRIAN ROBINSON MACHINERY LTD.
Regeneration and Local Services,Direct Services,Supplies and Services,304221,Equipment and Materials,07-Jul-17,3305646-16476,"1,095.00",ADC ELECTRICAL LTD.
Regeneration and Local Services,Technical Services,Supplies and Services,304221,Equipment and Materials,07-Jul-17,3305649-25018077,"3,834.47",AGGREGATE INDUSTRIES UK LTD.
Regeneration and Local Services,Technical Services,Supplies and Services,304221,Equipment and Materials,07-Jul-17,3305649-25018078,"1,231.43",AGGREGATE INDUSTRIES UK LTD.
Regeneration and Local Services,Direct Services,Supplies and Services,304221,Equipment and Materials,07-Jul-17,3305705-851701250,"8,624.22",CARLISLE CONSTRUCTION MATERIALS LTD.
Regeneration and Local Services,Technical Services,Supplies and Services,304221,Equipment and Materials,07-Jul-17,3305725-1067,"3,573.00",CIS STREET FURNITURE LTD.
Regeneration and Local Services,Technical Services,Supplies and Services,304221,Equipment and Materials,07-Jul-17,3305863-090915,921.49,J9 LTD T/A BARRIERS DIRECT.
Regeneration and Local Services,Technical Services,Supplies and Services,304221,Equipment and Materials,07-Jul-17,3305874-BI1226993,823.95,JT DOVE LTD.
Regeneration and Local Services,Direct Services,Supplies and Services,304221,Equipment and Materials,07-Jul-17,3305874-BII226982,504,JT DOVE LTD.
Regeneration and Local Services,Technical Services,Supplies and Services,304221,Equipment and Materials,07-Jul-17,3306049-094743,"1,127.16",STONEGRAVE AGGREGATES LTD.
Regeneration and Local Services,Direct Services,Supplies and Services,304221,Equipment and Materials,07-Jul-17,3306113-43732178,688.75,WOLSELEY UK LTD.
Regeneration and Local Services,Culture & Sport,Supplies and Services,304259,Equipment and Materials,07-Jul-17,3305651-101286,"1,173.15",ALISON BLACK LTD T/A SPORTMAX.
Regeneration and Local Services,Direct Services,Supplies and Services,304259,Equipment and Materials,07-Jul-17,3305787-7031334,"1,676.02",EAST RIDING HORTICULTURE LTD.
Regeneration and Local Services,Direct Services,Supplies and Services,304259,Equipment and Materials,07-Jul-17,3305827-150237,"1,216.53",GREEN-TECH LTD.
Regeneration and Local Services,Direct Services,Supplies and Services,304259,Equipment and Materials,07-Jul-17,3305827-151002,675,GREEN-TECH LTD.
Regeneration and Local Services,Direct Services,Supplies and Services,304259,Equipment and Materials,07-Jul-17,3305827-151010,"1,231.02",GREEN-TECH LTD.
Regeneration and Local Services,Direct Services,Supplies and Services,304259,Equipment and Materials,07-Jul-17,3305832-158874,"1,299.67",GUSTHARTS.
Regeneration and Local Services,Direct Services,Supplies and Services,304259,Equipment and Materials,07-Jul-17,3306008-103685,780,RICKERBY LTD.
Regeneration and Local Services,Direct Services,Supplies and Services,304259,Equipment and Materials,07-Jul-17,3306008-766187,"3,000.00",RICKERBY LTD.
Regeneration and Local Services,Direct Services,Supplies and Services,304357,Equipment and Materials,07-Jul-17,3305813-DCC180617,"19,560.90",GAP GROUP LTD.
Regeneration and Local Services,Spatial Policy Planning Assets & Environment,Supplies and Services,384540,Miscellaneous Expenses,07-Jul-17,3305773-154861,"7,548.00",DTW ADVERTISING & MARKETING LTD T/A DTW.
Regeneration and Local Services,Culture & Sport,Supplies and Services,384199,Miscellaneous Expenses,07-Jul-17,3305903-2017/004,"4,050.00",LUCY JENKINS (VISUAL ARTS).
Regeneration and Local Services,Culture & Sport,Supplies and Services,340001,Postages,07-Jul-17,3305939-NEI-HCL-07-2017-002,"1,500.00",NEOPOST LTD.
Regeneration and Local Services,Culture & Sport,Supplies and Services,324001,Provisions,07-Jul-17,3305706-843895057,"1,299.95",CARLSBERG UK LTD.
Regeneration and Local Services,Culture & Sport,Supplies and Services,324001,Provisions,07-Jul-17,3305707-843855793,"1,013.36",CARLSBERG UK LTD.
Regeneration and Local Services,Culture & Sport,Supplies and Services,324001,Provisions,07-Jul-17,3305707-843877750,558.43,CARLSBERG UK LTD.
Regeneration and Local Services,Culture & Sport,Supplies and Services,324001,Provisions,07-Jul-17,3305707-843881656,"1,005.31",CARLSBERG UK LTD.
Regeneration and Local Services,Spatial Policy Planning Assets & Environment,Employees,40149,Recruitment Instruction and Training,07-Jul-17,3305643-14/7278,835,ACAS.
Regeneration and Local Services,Direct Services,Third Party Payments,430121,Rendered by Private Contractors,07-Jul-17,3306094-20878,690.13,VIRIDIAN SYSTEMS LTD.
Regeneration and Local Services,Technical Services,Third Party Payments,430100,Rendered by Private Contractors,07-Jul-17,3305876-21624,"2,933.95",KAEFER LTD.
Regeneration and Local Services,Direct Services,Third Party Payments,430100,Rendered by Private Contractors,07-Jul-17,3305880-100906,"2,480.00",KERNOCK PARK PLANTS LTD.
Regeneration and Local Services,Technical Services,Third Party Payments,430100,Rendered by Private Contractors,07-Jul-17,3305964-SIN7049907,"2,137.25",OWEN PUGH GDC LTD.*
Regeneration and Local Services,Direct Services,Third Party Payments,430100,Rendered by Private Contractors,07-Jul-17,3305993-144927,780,PREMIER TRAFFIC MANAGEMENT LTD.
Regeneration and Local Services,Direct Services,Third Party Payments,430100,Rendered by Private Contractors,07-Jul-17,3305993-144928,580,PREMIER TRAFFIC MANAGEMENT LTD.
Regeneration and Local Services,Direct Services,Third Party Payments,430100,Rendered by Private Contractors,07-Jul-17,3306071-0000100022,"42,228.33",THE SEKURA GROUP.
Regeneration and Local Services,Technical Services,Third Party Payments,430101,Rendered by Private Contractors,07-Jul-17,3305982-4790,"3,061.94",PINKNEY BUILDING CONTRACTORS LTD.
Regeneration and Local Services,Direct Services,Transport,215005,Running Costs of Vehicles,07-Jul-17,3305960-252017,"12,530.69",OIL NRG LTD.
Regeneration and Local Services,Direct Services,Transport,215022,Running Costs of Vehicles,07-Jul-17,3305960-252018,898.8,OIL NRG LTD.
Regeneration and Local Services,Direct Services,Premises,108099,Service Repairs and Maintenance,07-Jul-17,3305719-B4797,572,CHARLETON FENCING.
Regeneration and Local Services,Culture & Sport,Premises,108099,Service Repairs and Maintenance,07-Jul-17,3306035-RS/21770,"1,000.00",SMITH ENGINEERING (GB) LTD.
Regeneration and Local Services,Spatial Policy Planning Assets & Environment,Supplies and Services,338027,Services,07-Jul-17,3305745-100035735,"5,950.00",CUNDALL.
Regeneration and Local Services,Direct Services,Supplies and Services,338078,Services,07-Jul-17,3306016-7103,"1,641.00",SAFEGUARD SECURITY (NE) LTD.
Regeneration and Local Services,Technical Services,Stock,926900,Stock in hand-Inventory system,07-Jul-17,3305717-76542,"2,637.84",CHANTER BIOMED UK LTD.
Regeneration and Local Services,Technical Services,Stock,926900,Stock in hand-Inventory system,07-Jul-17,3305791-059-206487,564.7,EDMUNDSON ELECTRICAL LTD.
Regeneration and Local Services,Technical Services,Stock,926900,Stock in hand-Inventory system,07-Jul-17,3305829-06/649515,"1,676.58",GREENHAM TRADING LTD.
Regeneration and Local Services,Technical Services,Stock,926900,Stock in hand-Inventory system,07-Jul-17,3306036-190504,"2,109.60",SNAPFAST.
Regeneration and Local Services,Technical Services,Stock,926900,Stock in hand-Inventory system,07-Jul-17,3306036-190505,"2,109.60",SNAPFAST.
Regeneration and Local Services,Technical Services,Stock,926900,Stock in hand-Inventory system,07-Jul-17,3306073-N/IN199318,"2,131.87",THOMAS OWEN & SONS (NEWCASTLE) LTD.
Regeneration and Local Services,Technical Services,Stock,926900,Stock in hand-Inventory system,07-Jul-17,3306078-105391,"3,115.00",TOFCO LTD.
Regeneration and Local Services,Technical Services,Stock,926900,Stock in hand-Inventory system,07-Jul-17,3306113-43731227,713.9,WOLSELEY UK LTD.
Regeneration and Local Services,Transport and Contracted Services,Premises,135005,Water Services,07-Jul-17,3305954-225545540108024,"2,493.10",NORTHUMBRIAN WATER LTD.
Regeneration and Local Services,Culture & Sport,Premises,135005,Water Services,07-Jul-17,3305954-225733450031030,"4,142.80",NORTHUMBRIAN WATER LTD.
Regeneration and Local Services,Transport and Contracted Services,Premises,135005,Water Services,07-Jul-17,3305954-308089680019011,"2,493.10",NORTHUMBRIAN WATER LTD.
Regeneration and Local Services,Culture & Sport,Premises,135005,Water Services,07-Jul-17,3305954-310297770018014,"4,639.60",NORTHUMBRIAN WATER LTD.
Regeneration and Local Services,Transport and Contracted Services,Premises,135005,Water Services,07-Jul-17,3305954-31083195001X009,749.15,NORTHUMBRIAN WATER LTD.
Regeneration and Local Services,Transport and Contracted Services,Premises,135005,Water Services,07-Jul-17,3305954-310867560015009,"1,333.50",NORTHUMBRIAN WATER LTD.
Regeneration and Local Services,Transport and Contracted Services,Premises,135005,Water Services,07-Jul-17,3305954-311979880013008,749.15,NORTHUMBRIAN WATER LTD.
Resources,I.C.T. Services,Stock,926900,Stock in hand-Inventory system,07-Jul-17,3305752-7402367977,"1,905.65",DELL COMPUTER CORPORATION LTD.
Resources,I.C.T. Services,Stock,926900,Stock in hand-Inventory system,07-Jul-17,3305752-7402368023,"6,321.00",DELL COMPUTER CORPORATION LTD.
Resources,Legal & Democratic Services,Supplies and Services,338042,Services,07-Jul-17,3305753-327844-14/6/17,"1,800.00",DERE STREET BARRISTERS.
Resources,Legal & Democratic Services,Premises,125009,Rents,07-Jul-17,3306010-9244,539.9,RIVERGREEN DEVELOPMENTS PLC.
Transformation and Partnerships,Partnerships & Community Engagement Div.,Transfer Payments,525030,Other,07-Jul-17,3305785-VOUCHER15AB-EDUR00415WR-EDUR001,"11,017.50",EAST DURHAM COMMUNITY DEVELOPMENT TRUST LTD.
Adult and Health Services,Public Health,Third Party Payments,460802,Contract Payments,10-Jul-17,3306199-FMG71/MAY2017/EOHC,665.56,BOOTS THE CHEMISTS LTD.*
Adult and Health Services,Public Health,Third Party Payments,460802,Contract Payments,10-Jul-17,3306201-FD330/MAY2017/EOHC,570.48,BOOTS THE CHEMISTS LTD.*
Adult and Health Services,Head of Adults,Supplies and Services,338366,Services,10-Jul-17,3306221-41782,"1,934.70",CARE ABILITY.
Adult and Health Services,Public Health,Third Party Payments,460802,Contract Payments,10-Jul-17,3306235-A83050IUCDQ41617,"1,974.82",CESTRIA HEALTH CENTRE.
Adult and Health Services,Head of Adults,Third Party Payments,472101,Purchase of Care,10-Jul-17,3306246-CTHOC02217JE,"1,004.62",CITYTRUST HEALTHCARE.
Adult and Health Services,Public Health,Third Party Payments,460802,Contract Payments,10-Jul-17,3306248-A83011IUCDQ41617,"5,988.85",CLAYPATH & UNIVERSITY MEDICAL GROUP.
Adult and Health Services,Public Health,Third Party Payments,460803,Contract Payments,10-Jul-17,3306271-002201718,"7,560.00",COUNTY DURHAM & DARLINGTON LOCAL PHARMACEUTICAL COMMITTEE.
Adult and Health Services,Public Health,Third Party Payments,460803,Contract Payments,10-Jul-17,3306271-00320172018,"65,890.48",COUNTY DURHAM & DARLINGTON LOCAL PHARMACEUTICAL COMMITTEE.
Adult and Health Services,Head of Adults,Transport,230005,Contract Hire,10-Jul-17,3306290-06/2017-DW129COVER,564,DIANE GOOCH T/A COLLINS TAXIS.
Adult and Health Services,Public Health,Third Party Payments,460803,Contract Payments,10-Jul-17,3306365-2510010418,"937,416.67",HARROGATE & DISTRICT NHS FOUNDATION TRUST.
Adult and Health Services,Head of Adults,Transport,230005,Contract Hire,10-Jul-17,3306394-IR1706003,"1,724.00",I & R EXECUTIVE TRAVEL.
Adult and Health Services,Head of Adults,Transport,230005,Contract Hire,10-Jul-17,3306394-IR1706005,"1,100.00",I & R EXECUTIVE TRAVEL.
Adult and Health Services,Head of Adults,Transport,230005,Contract Hire,10-Jul-17,3306424-DM14921,"1,422.00",JOVIAL PRIVATE HIRE.
Adult and Health Services,Commissioning inc Supporting People,Third Party Payments,479101,Purchase of Care,10-Jul-17,3306479-8462,"11,583.33",MAIN - TAKING AUTISM PERSONALLY.
Adult and Health Services,Head of Adults,Transport,230005,Contract Hire,10-Jul-17,3306507-JUNE2017,600,MR D DONNELLY.
Adult and Health Services,Head of Adults,Transport,230005,Contract Hire,10-Jul-17,3306514-201723,700,MR JR FORT.
Adult and Health Services,Public Health,Supplies and Services,384155,Miscellaneous Expenses,10-Jul-17,3306543-1000052471,"63,274.43",NHS BUSINESS SERVICES AUTHORITY (NHSBSA).
Adult and Health Services,Head of Adults,Transport,230005,Contract Hire,10-Jul-17,3306616-22,"1,100.00",ROUTE 1.
Adult and Health Services,Commissioning inc Supporting People,Supplies and Services,384956,Miscellaneous Expenses,10-Jul-17,3306628-170602,"1,600.00",SCILS.
Adult and Health Services,Head of Adults,Transport,230005,Contract Hire,10-Jul-17,3306665-170629,500,STEVEN PRATT T/A PTL TAXIS DURHAM.
Adult and Health Services,Public Health,Third Party Payments,460802,Contract Payments,10-Jul-17,3306694-A83035IUCDQ41617,"3,212.04",THE WEARDALE PRACTICE.
Adult and Health Services,Public Health,Third Party Payments,460803,Contract Payments,10-Jul-17,3306727-GF006,"2,679.00",WADDINGTON STREET CENTRE LTD.
Adult and Health Services,Public Health,Third Party Payments,460802,Contract Payments,10-Jul-17,3306731-A83024IUCDQ41617,"4,415.75",WEST RAINTON SURGERY.
Children and Young Peoples Services,Head of Education,Transport,230008,Contract Hire,10-Jul-17,3306124-567,600,A BARKER.
Children and Young Peoples Services,Head of Education,Transport,230007,Contract Hire,10-Jul-17,3306128-F44/SJ,748,AABAT TAXIS.
Children and Young Peoples Services,Head of Education,Transport,230012,Contract Hire,10-Jul-17,3306130-6/1/17,"1,426.00",ABA TAXIS.
Children and Young Peoples Services,Head of Education,Transport,230007,Contract Hire,10-Jul-17,3306132-41-30/6/17,"1,180.00",ABLE NOVAK TAXIS.
Children and Young Peoples Services,Head of Education,Transport,230007,Contract Hire,10-Jul-17,3306133-612,950,AC TAXIS.
Children and Young Peoples Services,Head of Education,Transport,230004,Contract Hire,10-Jul-17,3306133-613,920,AC TAXIS.
Children and Young Peoples Services,Head of Looked After Provision Permanence and Care Leavers,Third Party Payments,486043,Service Level Agreements,10-Jul-17,3306142-6490A,"2,053.80",AFTER ADOPTION.
Children and Young Peoples Services,Head of Education,Supplies and Services,338001,Services,10-Jul-17,3306169-17009097,"13,600.00",ATKINS GLOBAL.
Children and Young Peoples Services,Head of Education,Transport,230008,Contract Hire,10-Jul-17,3306190-0023,800,BL CARS.
Children and Young Peoples Services,Head of Education,Transport,230007,Contract Hire,10-Jul-17,3306191-43-30/6/17,"1,200.00",BL TAXIS.
Children and Young Peoples Services,Head of Education,Transport,230006,Contract Hire,10-Jul-17,3306195-1435,"3,333.20",BOBBY DOVE.
Children and Young Peoples Services,Head of Education,Transport,230008,Contract Hire,10-Jul-17,3306195-1436,"2,187.00",BOBBY DOVE.
Children and Young Peoples Services,Head of Education,Transport,230008,Contract Hire,10-Jul-17,3306375-417,"1,335.89",HEPWORTHS LUXURY TRAVEL.
Children and Young Peoples Services,Head of Education,Transport,230008,Contract Hire,10-Jul-17,3306375-418,"2,096.84",HEPWORTHS LUXURY TRAVEL.
Children and Young Peoples Services,Head of Education,Transport,230006,Contract Hire,10-Jul-17,3306394-IR1706004,"1,200.00",I & R EXECUTIVE TRAVEL.
Children and Young Peoples Services,Head of Education,Transport,230008,Contract Hire,10-Jul-17,3306394-IR1706001,"2,168.20",I & R EXECUTIVE TRAVEL.
Children and Young Peoples Services,Head of Education,Transport,230008,Contract Hire,10-Jul-17,3306394-IR1706002,"2,643.20",I & R EXECUTIVE TRAVEL.
Children and Young Peoples Services,Head of Education,Transport,230012,Contract Hire,10-Jul-17,3306395-43,"1,235.00",IAN SHEPLEY T/A SHEPPA`S TAXIS.
Children and Young Peoples Services,Head of Education,Transport,230008,Contract Hire,10-Jul-17,3306408-1949,680,J YOUNG T/A VIP TAXIS.
Children and Young Peoples Services,Head of Education,Transport,230008,Contract Hire,10-Jul-17,3306410-0521,"1,159.00",JACKSON`S TAXI.
Children and Young Peoples Services,Head of Education,Transport,230008,Contract Hire,10-Jul-17,3306413-A088J,"1,200.00",JAFFAS TAXIS.
Children and Young Peoples Services,Head of Education,Transport,230008,Contract Hire,10-Jul-17,3306413-A116J,"1,200.00",JAFFAS TAXIS.
Children and Young Peoples Services,Head of Education,Transport,230009,Contract Hire,10-Jul-17,3306424-723110-30/6/17,"1,600.00",JOVIAL PRIVATE HIRE.
Children and Young Peoples Services,Head of Education,Transport,230008,Contract Hire,10-Jul-17,3306424-3032,"1,660.00",JOVIAL PRIVATE HIRE.
Children and Young Peoples Services,Head of Education,Transport,230008,Contract Hire,10-Jul-17,3306424-M03632,980,JOVIAL PRIVATE HIRE.
Children and Young Peoples Services,Head of Education,Transport,230006,Contract Hire,10-Jul-17,3306429-F702-30/6/17,"1,880.00",K & R TAXIS (STANLEY).
Children and Young Peoples Services,Head of Education,Transport,230012,Contract Hire,10-Jul-17,3306429-M004,"1,520.00",K & R TAXIS (STANLEY).
Children and Young Peoples Services,Head of Education,Transport,230008,Contract Hire,10-Jul-17,3306432-10-N079-30/6/17,864,KD TAXIS.
Children and Young Peoples Services,Head of Education,Transport,230008,Contract Hire,10-Jul-17,3306445-5D-30/6/17,"1,160.00",L & R PRIVATE HIRE.
Children and Young Peoples Services,Head of Education,Transport,230008,Contract Hire,10-Jul-17,3306454-185,840,LEE`S TAXIS (SACRISTON).
Children and Young Peoples Services,Head of Education,Transport,230008,Contract Hire,10-Jul-17,3306454-186,"2,009.00",LEE`S TAXIS (SACRISTON).
Children and Young Peoples Services,Head of Education,Transport,230008,Contract Hire,10-Jul-17,3306454-187,"2,410.11",LEE`S TAXIS (SACRISTON).
Children and Young Peoples Services,Head of Education,Transport,230006,Contract Hire,10-Jul-17,3306471-15,"1,680.00",LORRAINES TAXIS.
Children and Young Peoples Services,Head of Education,Transport,230008,Contract Hire,10-Jul-17,3306471-14,"1,800.00",LORRAINES TAXIS.
Children and Young Peoples Services,Head of Education,Transport,230006,Contract Hire,10-Jul-17,3306492-26B,500,MICHAEL A BODDY T/A MBS TAXIS.
Children and Young Peoples Services,Head of Education,Transport,230008,Contract Hire,10-Jul-17,3306493-INV124,640,MICHAEL COBB (T/A HAIL TAXIS).
Children and Young Peoples Services,Head of Education,Transport,230006,Contract Hire,10-Jul-17,3306509-120-30/6/17,540,MR DAVID CULLEN.
Children and Young Peoples Services,Head of Education,Transport,230006,Contract Hire,10-Jul-17,3306510-00617,632,MR DEREK HENDERSON.
Children and Young Peoples Services,Head of Education,Transport,230008,Contract Hire,10-Jul-17,3306517-29B,"1,340.00",MR RAYMOND RENWICK.
Children and Young Peoples Services,Head of Education,Transport,230008,Contract Hire,10-Jul-17,3306517-30A,"1,440.00",MR RAYMOND RENWICK.
Children and Young Peoples Services,Head of Education,Transport,230008,Contract Hire,10-Jul-17,3306538-032,"1,200.00",NEIL PASSMOOR T/A NEIL`S TAXI.
Children and Young Peoples Services,Head of Education,Transport,230008,Contract Hire,10-Jul-17,3306538-32,"1,700.00",NEIL PASSMOOR T/A NEIL`S TAXI.
Children and Young Peoples Services,Head of Education,Third Party Payments,440999,Other Third Party Payments,10-Jul-17,3306548-2009,574.6,NORTH EAST DANCE CIC.
Children and Young Peoples Services,Head of Education,Transport,230008,Contract Hire,10-Jul-17,3306571-10,"1,295.91",PAUL ROSE T/A PAUL`S TAXIS.
Children and Young Peoples Services,Head of Education,Transport,230007,Contract Hire,10-Jul-17,3306572-1580,"1,200.00",PAUL WATSON TRAVEL.
Children and Young Peoples Services,Head of Education,Transport,230007,Contract Hire,10-Jul-17,3306572-1582-CONTRACT3047,"2,200.00",PAUL WATSON TRAVEL.
Children and Young Peoples Services,Head of Education,Transport,230008,Contract Hire,10-Jul-17,3306575-DCC152,"2,660.00",PAUL`S TAXIS..
Dedicated Schools Grant,Dedicated Schools Grant,Transport,230009,Contract Hire,10-Jul-17,3306575-DCC151,960,PAUL`S TAXIS..
Children and Young Peoples Services,Head of Early Help Assessment and Safeguarding,Premises,120009,Energy Costs,10-Jul-17,3306580-C1664,"1,115.41",PETERLEE TOWN COUNCIL.
Children and Young Peoples Services,Head of Education,Transport,230008,Contract Hire,10-Jul-17,3306582-786,"3,567.00",PG TRIPS.
Children and Young Peoples Services,Head of Education,Transport,230008,Contract Hire,10-Jul-17,3306584-20247,"3,384.56",PHOENIX TAXIS T/A PRATT`S TAXIS.
Children and Young Peoples Services,Head of Education,Transport,230012,Contract Hire,10-Jul-17,3306593-1250,"1,240.00",PODA LTD.
Children and Young Peoples Services,Head of Education,Transport,230008,Contract Hire,10-Jul-17,3306593-1248,"1,832.00",PODA LTD.
Children and Young Peoples Services,Head of Education,Transport,230008,Contract Hire,10-Jul-17,3306593-1249,900,PODA LTD.
Children and Young Peoples Services,Head of Education,Supplies and Services,377015,County Durham Development,10-Jul-17,3306607-INV44990,"2,747.54",RAMSIDE HALL HOTEL & GOLF CLUB.*
Children and Young Peoples Services,Head of Early Help Assessment and Safeguarding,Supplies and Services,364305,Grants to Voluntary Organisations,10-Jul-17,3306459-CAS-07-2017-021,505.04,REDACTED - PAYMENT TO INDIVIDUAL
Children and Young Peoples Services,Head of Education,Transport,230008,Contract Hire,10-Jul-17,3306611-191,"2,649.00",ROBBIE`S PRIVATE HIRE.
Children and Young Peoples Services,Head of Education,Transport,230006,Contract Hire,10-Jul-17,3306613-1711,"1,146.00",RON`S TAXIS (FISHBURN).
Children and Young Peoples Services,Head of Education,Transport,230008,Contract Hire,10-Jul-17,3306613-1709,"2,000.00",RON`S TAXIS (FISHBURN).
Children and Young Peoples Services,Head of Education,Transport,230008,Contract Hire,10-Jul-17,3306618-W048/10,"1,780.00",S & S TRAVEL LTD.
Children and Young Peoples Services,Head of Education,Transport,230008,Contract Hire,10-Jul-17,3306618-W052/10-JUN17,"1,900.00",S & S TRAVEL LTD.
Children and Young Peoples Services,Head of Education,Transport,230008,Contract Hire,10-Jul-17,3306618-W067/20,"2,185.50",S & S TRAVEL LTD.
Children and Young Peoples Services,Head of Education,Transport,230013,Contract Hire,10-Jul-17,3306665-170630,"1,000.00",STEVEN PRATT T/A PTL TAXIS DURHAM.
Children and Young Peoples Services,Head of Education,Transport,230008,Contract Hire,10-Jul-17,3306665-170628,"1,200.00",STEVEN PRATT T/A PTL TAXIS DURHAM.
Children and Young Peoples Services,Head of Education,Transport,230008,Contract Hire,10-Jul-17,3306682-DCC/2016/154,"1,540.50",TAYLOR`S TAXIS.
Children and Young Peoples Services,Head of Education,Transport,230008,Contract Hire,10-Jul-17,3306682-DCC/2016/155,"1,620.00",TAYLOR`S TAXIS.
Children and Young Peoples Services,Head of Looked After Provision Permanence and Care Leavers,Employees,80025,Agency Staff,10-Jul-17,3306726-267901,540,VISION FOR EDUCATION LTD.
Children and Young Peoples Services,Head of Looked After Provision Permanence and Care Leavers,Employees,80025,Agency Staff,10-Jul-17,3306726-267902,850,VISION FOR EDUCATION LTD.
Children and Young Peoples Services,Head of Education,Transport,230008,Contract Hire,10-Jul-17,3306730-A072/10,"1,340.00",WAYSIDE TAXIS.
Children and Young Peoples Services,Head of Early Help Assessment and Safeguarding,Third Party Payments,425023,Rendered by Voluntary Organisations,10-Jul-17,3306740-402,"55,510.85",WITHERSLACK GROUP LTD.
Regeneration and Local Services,Technical Services,Supplies and Services,336005,Advertising,10-Jul-17,3306542-20543152,527.33,NEWSQUEST (YORKSHIRE & NORTH EAST) LTD.
Regeneration and Local Services,Spatial Policy Planning Assets & Environment,Supplies and Services,336005,Advertising,10-Jul-17,3306542-20565721,566.97,NEWSQUEST (YORKSHIRE & NORTH EAST) LTD.
Regeneration and Local Services,Transport and Contracted Services,Other Expenses,914002,Capital - Advertisments,10-Jul-17,3306423-4294823,945,JOHNSTON PUBLISHING LTD.
Regeneration and Local Services,Economic Development and Housing,Premises,106082,Centrally Controlled Rep and Maint,10-Jul-17,3306136-IN3319,"10,082.91",ACROL AIR CONDITIONING CO LTD.
Regeneration and Local Services,Culture & Sport,Premises,106082,Centrally Controlled Rep and Maint,10-Jul-17,3306161-28306,600,AQUAJET DRAIN CLEANING LTD.
Regeneration and Local Services,Economic Development and Housing,Premises,106082,Centrally Controlled Rep and Maint,10-Jul-17,3306161-28400,540,AQUAJET DRAIN CLEANING LTD.
Regeneration and Local Services,Direct Services,Premises,106082,Centrally Controlled Rep and Maint,10-Jul-17,3306233-88801,851.75,CENTRAL POWER SERVICES LTD (CPS).
Regeneration and Local Services,Culture & Sport,Premises,106082,Centrally Controlled Rep and Maint,10-Jul-17,3306279-SIN150968,578,DALESAUNA LTD.
Regeneration and Local Services,Direct Services,Premises,106082,Centrally Controlled Rep and Maint,10-Jul-17,3306370-OP/006777,"1,395.00",HCL SAFETY LTD.
Regeneration and Local Services,Culture & Sport,Premises,106082,Centrally Controlled Rep and Maint,10-Jul-17,3306384-7080622811,522.79,HONEYWELL NOVAR SYSTEMS LTD.
Regeneration and Local Services,Culture & Sport,Premises,145023,Cleaning and Domestic Supplies,10-Jul-17,3306208-22SI2226804,708.8,BRENNTAG UK LTD.
Regeneration and Local Services,Culture & Sport,Supplies and Services,328041,Clothing Uniforms and Laundry,10-Jul-17,3306419-8338,531.64,JG UNIFORMS.
Regeneration and Local Services,Direct Services,Supplies and Services,328041,Clothing Uniforms and Laundry,10-Jul-17,3306695-N/IN199469,"1,994.68",THOMAS OWEN & SONS (NEWCASTLE) LTD.
Regeneration and Local Services,Spatial Policy Planning Assets & Environment,Construction Work,908105,Construction work,10-Jul-17,3306376-160,"17,811.40",HERITAGE BUILDING & CONSERVATION.
Regeneration and Local Services,Technical Services,Construction Work,908105,Construction work,10-Jul-17,3306409-20518,"3,701.50",JACK COUPE & SONS LTD T/A COUPE LINE.
Regeneration and Local Services,Direct Services,Construction Work,908105,Construction work,10-Jul-17,3306421-00608,"4,640.00",JN KEARTON.
Regeneration and Local Services,Technical Services,Construction Work,908105,Construction work,10-Jul-17,3306638-1096,"9,600.00",SHERIFF TECHNOLOGIES LTD.
Regeneration and Local Services,Economic Development and Housing,Supplies and Services,377015,County Durham Development,10-Jul-17,3306170-1696,"1,636.00",AUTO ITEMS LTD.
Regeneration and Local Services,Economic Development and Housing,Creditors,952029,Creditor-returnable bonds,10-Jul-17,3306241-RED-07-2017-021,"1,250.00",CHROME PSG LTD.
Regeneration and Local Services,Economic Development and Housing,Supplies and Services,304337,Equipment and Materials,10-Jul-17,3306588-211237,764.88,PIGMENT PRODUCTIONS LTD.
Regeneration and Local Services,Technical Services,Supplies and Services,304221,Equipment and Materials,10-Jul-17,3306143-25025616,596.91,AGGREGATE INDUSTRIES UK LTD.
Regeneration and Local Services,Technical Services,Supplies and Services,304221,Equipment and Materials,10-Jul-17,3306143-25025618,"1,231.43",AGGREGATE INDUSTRIES UK LTD.
Regeneration and Local Services,Technical Services,Supplies and Services,304221,Equipment and Materials,10-Jul-17,3306143-25025619,"1,955.59",AGGREGATE INDUSTRIES UK LTD.
Regeneration and Local Services,Technical Services,Supplies and Services,304221,Equipment and Materials,10-Jul-17,3306143-25025620,963.07,AGGREGATE INDUSTRIES UK LTD.
Regeneration and Local Services,Technical Services,Supplies and Services,304221,Equipment and Materials,10-Jul-17,3306143-25025621,570.57,AGGREGATE INDUSTRIES UK LTD.
Regeneration and Local Services,Technical Services,Supplies and Services,304221,Equipment and Materials,10-Jul-17,3306143-25032385,"1,252.75",AGGREGATE INDUSTRIES UK LTD.
Regeneration and Local Services,Technical Services,Supplies and Services,304221,Equipment and Materials,10-Jul-17,3306143-25032386,"1,558.36",AGGREGATE INDUSTRIES UK LTD.
Regeneration and Local Services,Technical Services,Supplies and Services,304221,Equipment and Materials,10-Jul-17,3306143-25032387,620.84,AGGREGATE INDUSTRIES UK LTD.
Regeneration and Local Services,Technical Services,Supplies and Services,304221,Equipment and Materials,10-Jul-17,3306143-25032389,634.52,AGGREGATE INDUSTRIES UK LTD.
Regeneration and Local Services,Technical Services,Supplies and Services,304221,Equipment and Materials,10-Jul-17,3306143-25032390,"2,699.24",AGGREGATE INDUSTRIES UK LTD.
Regeneration and Local Services,Technical Services,Supplies and Services,304221,Equipment and Materials,10-Jul-17,3306159-13338,"2,333.46",APOLLO PRODUCTS LTD.
Regeneration and Local Services,Direct Services,Supplies and Services,304221,Equipment and Materials,10-Jul-17,3306182-DUR/164638,760.76,BEMCO LTD.
Regeneration and Local Services,Direct Services,Supplies and Services,304221,Equipment and Materials,10-Jul-17,3306335-OP/I086761,"1,531.20",FLEMING & CO (MACHINERY) LTD.
Regeneration and Local Services,Technical Services,Supplies and Services,304221,Equipment and Materials,10-Jul-17,3306403-587396,"2,800.00",INSTARMAC GROUP PLC.
Regeneration and Local Services,Technical Services,Supplies and Services,304221,Equipment and Materials,10-Jul-17,3306437-10248,"3,544.33",KEN THOMAS (SITE CLEARANCE LTD).
Regeneration and Local Services,Technical Services,Supplies and Services,304221,Equipment and Materials,10-Jul-17,3306547-010525,785.92,NORTH EAST CONCRETE LTD.
Regeneration and Local Services,Direct Services,Supplies and Services,304221,Equipment and Materials,10-Jul-17,3306565-BR570802,597.09,PARK ELECTRICAL DISTRIBUTORS LTD.
Regeneration and Local Services,Direct Services,Supplies and Services,304221,Equipment and Materials,10-Jul-17,3306677-2396936,815.59,T CROSSLING & CO LTD.
Regeneration and Local Services,Technical Services,Supplies and Services,304221,Equipment and Materials,10-Jul-17,3306679-9036405261,539.01,TARMAC TRADING LTD.
Regeneration and Local Services,Technical Services,Supplies and Services,304221,Equipment and Materials,10-Jul-17,3306712-174603,"1,115.55",TYNEDALE ROADSTONE LTD.
Regeneration and Local Services,Technical Services,Supplies and Services,304221,Equipment and Materials,10-Jul-17,3306712-174622,654,TYNEDALE ROADSTONE LTD.
Regeneration and Local Services,Direct Services,Supplies and Services,304221,Equipment and Materials,10-Jul-17,3306742-43752136,"1,020.65",WOLSELEY UK LTD.
Regeneration and Local Services,Direct Services,Supplies and Services,304221,Equipment and Materials,10-Jul-17,3306742-43752139,"1,858.91",WOLSELEY UK LTD.
Regeneration and Local Services,Direct Services,Supplies and Services,304221,Equipment and Materials,10-Jul-17,3306742-43794396,"1,558.20",WOLSELEY UK LTD.
Regeneration and Local Services,Direct Services,Supplies and Services,304259,Equipment and Materials,10-Jul-17,3306175-INV115011,697,AZTEC CHEMICALS LTD.
Regeneration and Local Services,Direct Services,Supplies and Services,304259,Equipment and Materials,10-Jul-17,3306377-2369,700,HEXHAM MACHINERY CENTRE.
Regeneration and Local Services,Direct Services,Supplies and Services,304259,Equipment and Materials,10-Jul-17,3306540-063653,575.54,NEW ROW FARM NURSERIES.
Regeneration and Local Services,Direct Services,Supplies and Services,304259,Equipment and Materials,10-Jul-17,3306590-104306,618.8,PLANTSCAPE.
Regeneration and Local Services,Culture & Sport,Supplies and Services,304252,Equipment and Materials,10-Jul-17,3306160-70018364,"1,546.09",APPLIED TRADING LTD.
Regeneration and Local Services,Culture & Sport,Supplies and Services,304252,Equipment and Materials,10-Jul-17,3306685-27123,800,TECHNOGRID LTD.
Regeneration and Local Services,Technical Services,Supplies and Services,304357,Equipment and Materials,10-Jul-17,3306342-DCC250617,"19,320.60",GAP GROUP LTD.
Regeneration and Local Services,Culture & Sport,Income,720810,Fees and Charges,10-Jul-17,3306255-PSINV02108,"19,364.64",COMPETITION LINE UK LTD.
Regeneration and Local Services,Culture & Sport,Supplies and Services,384199,Miscellaneous Expenses,10-Jul-17,3306259-3481,"3,950.00",CONTINENTAL DRIFTS LTD.
Regeneration and Local Services,Culture & Sport,Supplies and Services,384199,Miscellaneous Expenses,10-Jul-17,3306360-4100581530,"4,000.00",GRESHAUNA SANDERS.
Regeneration and Local Services,Direct Services,Supplies and Services,384199,Miscellaneous Expenses,10-Jul-17,3306553-914033271,"2,951.24",NORTHUMBRIAN WATER LTD.
Regeneration and Local Services,Economic Development and Housing,Supplies and Services,384199,Miscellaneous Expenses,10-Jul-17,3306601-271863,723.6,QUICKSILVER MOVING & STORAGE.
Regeneration and Local Services,Culture & Sport,Supplies and Services,324117,Provisions,10-Jul-17,3306223-843903561,890.44,CARLSBERG UK LTD.
Regeneration and Local Services,Direct Services,Vehicles Equipment Furniture and Fittings,912541,Purchase-vehicles,10-Jul-17,3306579-683226,"10,352.41",PENTAGON FLEET MANCHESTER.
Regeneration and Local Services,Direct Services,Vehicles Equipment Furniture and Fittings,912541,Purchase-vehicles,10-Jul-17,3306579-683228,"10,352.41",PENTAGON FLEET MANCHESTER.
Regeneration and Local Services,Direct Services,Vehicles Equipment Furniture and Fittings,912541,Purchase-vehicles,10-Jul-17,3306579-683230,"10,352.41",PENTAGON FLEET MANCHESTER.
Regeneration and Local Services,Direct Services,Vehicles Equipment Furniture and Fittings,912541,Purchase-vehicles,10-Jul-17,3306579-683232,"10,352.41",PENTAGON FLEET MANCHESTER.
Regeneration and Local Services,Direct Services,Vehicles Equipment Furniture and Fittings,912541,Purchase-vehicles,10-Jul-17,3306579-683234,"10,352.41",PENTAGON FLEET MANCHESTER.
Regeneration and Local Services,Direct Services,Vehicles Equipment Furniture and Fittings,912541,Purchase-vehicles,10-Jul-17,3306579-683238,"10,352.41",PENTAGON FLEET MANCHESTER.
Regeneration and Local Services,Direct Services,Vehicles Equipment Furniture and Fittings,912541,Purchase-vehicles,10-Jul-17,3306579-683240,"10,352.41",PENTAGON FLEET MANCHESTER.
Regeneration and Local Services,Direct Services,Vehicles Equipment Furniture and Fittings,912541,Purchase-vehicles,10-Jul-17,3306579-683242,"10,352.41",PENTAGON FLEET MANCHESTER.
Regeneration and Local Services,Technical Services,Employees,40149,Recruitment Instruction and Training,10-Jul-17,3306405-Y14265,"1,325.00",INSTITUTION OF LIGHTING PROFESSIONALS (ILP).
Regeneration and Local Services,Direct Services,Third Party Payments,430121,Rendered by Private Contractors,10-Jul-17,3306171-3354,"4,880.00",AUTOMATIC FLARE SYSTEMS LTD.
Regeneration and Local Services,Direct Services,Third Party Payments,430100,Rendered by Private Contractors,10-Jul-17,3306230-2781,"2,360.87",CATHEDRAL LOCK & SAFE SERVICES LTD.
Regeneration and Local Services,Direct Services,Third Party Payments,430100,Rendered by Private Contractors,10-Jul-17,3306230-2794,"1,372.58",CATHEDRAL LOCK & SAFE SERVICES LTD.
Regeneration and Local Services,Direct Services,Third Party Payments,430100,Rendered by Private Contractors,10-Jul-17,3306311-G148/2017,"7,292.96",EDEN LODGE FARM.
Regeneration and Local Services,Direct Services,Third Party Payments,430100,Rendered by Private Contractors,10-Jul-17,3306337-10030406,"12,624.18",FORTERRA BUILDING PRODUCTS LTD.
Regeneration and Local Services,Direct Services,Third Party Payments,430100,Rendered by Private Contractors,10-Jul-17,3306537-NC3/C521/BW,"22,267.33",NEDCO CONTRACTS (NE) LTD.
Regeneration and Local Services,Transport and Contracted Services,Third Party Payments,430100,Rendered by Private Contractors,10-Jul-17,3306554-044597,"26,316.68",NSL LTD.
Regeneration and Local Services,Transport and Contracted Services,Third Party Payments,430100,Rendered by Private Contractors,10-Jul-17,3306554-044598,"1,470.56",NSL LTD.
Regeneration and Local Services,Transport and Contracted Services,Third Party Payments,430100,Rendered by Private Contractors,10-Jul-17,3306554-044599,"46,267.67",NSL LTD.
Regeneration and Local Services,Transport and Contracted Services,Third Party Payments,430100,Rendered by Private Contractors,10-Jul-17,3306554-044600,"3,141.40",NSL LTD.
Regeneration and Local Services,Transport and Contracted Services,Third Party Payments,430100,Rendered by Private Contractors,10-Jul-17,3306554-044601,"5,219.40",NSL LTD.
Regeneration and Local Services,Transport and Contracted Services,Third Party Payments,430100,Rendered by Private Contractors,10-Jul-17,3306554-044714,"5,765.76",NSL LTD.
Regeneration and Local Services,Transport and Contracted Services,Third Party Payments,430100,Rendered by Private Contractors,10-Jul-17,3306554-044715,921.5,NSL LTD.
Regeneration and Local Services,Transport and Contracted Services,Third Party Payments,430100,Rendered by Private Contractors,10-Jul-17,3306554-044716,"9,797.18",NSL LTD.
Regeneration and Local Services,Transport and Contracted Services,Third Party Payments,430100,Rendered by Private Contractors,10-Jul-17,3306554-055602,"16,873.87",NSL LTD.
Regeneration and Local Services,Direct Services,Premises,108099,Service Repairs and Maintenance,10-Jul-17,3306384-7080619198,"1,263.62",HONEYWELL NOVAR SYSTEMS LTD.
Regeneration and Local Services,Technical Services,Supplies and Services,338027,Services,10-Jul-17,3306141-28311419,"1,456.40",AECOM LTD.
Regeneration and Local Services,Technical Services,Supplies and Services,338027,Services,10-Jul-17,3306411-B225H005-027,"1,081.97",JACOBS UK LTD.
Regeneration and Local Services,Technical Services,Supplies and Services,338027,Services,10-Jul-17,3306411-B225H009-009,"6,419.49",JACOBS UK LTD.
Regeneration and Local Services,Culture & Sport,Supplies and Services,338047,Services,10-Jul-17,3306378-HBBATH67,700,HILARITY BITES COMEDY CLUB.
Regeneration and Local Services,Culture & Sport,Supplies and Services,338047,Services,10-Jul-17,3306487-000832,"3,025.04",MARK LUNDQUIST MLM CONCERTS LTD.
Regeneration and Local Services,Spatial Policy Planning Assets & Environment,Supplies and Services,338066,Services,10-Jul-17,3306401-3512,711,INGRAM AV LTD T/A INGRAMSOUNDS.
Regeneration and Local Services,Technical Services,Stock,926900,Stock in hand-Inventory system,10-Jul-17,3306426-G0I262/D,"11,850.00",JT DOVE LTD.
Regeneration and Local Services,Direct Services,Stock,926900,Stock in hand-Inventory system,10-Jul-17,3306441-SI02-0149697,751.81,KILLGERM CHEMICALS LTD.
Regeneration and Local Services,Technical Services,Stock,926900,Stock in hand-Inventory system,10-Jul-17,3306742-42536618,610.55,WOLSELEY UK LTD.
Regeneration and Local Services,Technical Services,Stock,926900,Stock in hand-Inventory system,10-Jul-17,3306742-43794392,641.14,WOLSELEY UK LTD.
Resources,Internal Audit and Insurance,Supplies and Services,352001,Conference Expenses,10-Jul-17,3306237-INV000050133,650,CHARTERED INSTITUTE OF INTERNAL AUDITORS.
Resources,I.C.T. Services,Stock,926900,Stock in hand-Inventory system,10-Jul-17,3306287-7402368444,544.64,DELL COMPUTER CORPORATION LTD.
Resources,I.C.T. Services,Stock,926900,Stock in hand-Inventory system,10-Jul-17,3306287-7402368477,691.77,DELL COMPUTER CORPORATION LTD.
Resources,Legal & Democratic Services,Supplies and Services,338042,Services,10-Jul-17,3306288-328751/INVKR8,900,DERE STREET BARRISTERS.
Resources,Legal & Democratic Services,Supplies and Services,338042,Services,10-Jul-17,3306288-331273/INVLW129,540,DERE STREET BARRISTERS.
Resources,I.C.T. Services,Income,710261,Other Grants and Contributions,10-Jul-17,3306344-102085574,"81,059.00",GATESHEAD COUNCIL.
Resources,I.C.T. Services,Supplies and Services,304303,Equipment and Materials,10-Jul-17,3306402-3424602,"1,360.00",INSIGHT DIRECT (UK) LTD.
Resources,Financial Services,Supplies and Services,384180,Miscellaneous Expenses,10-Jul-17,3306469-0965513,"4,609.12",LOOMIS UK LTD.
Resources,I.C.T. Services,Debtors,930167,Debtor-Telephone Holding Account,10-Jul-17,3306480-149326,"15,404.97",MAINTEL EUROPE LTD.
Resources,I.C.T. Services,Stock,926900,Stock in hand-Inventory system,10-Jul-17,3306747-BP67360,688.8,XMA LTD.
Transformation and Partnerships,Partnerships & Community Engagement Div.,Supplies and Services,384086,Miscellaneous Expenses,10-Jul-17,3306304-VOUCHER16NB-STAN048,"2,000.00",DURHAM POLICE & CRIME COMMISSIONER.
Transformation and Partnerships,Partnerships & Community Engagement Div.,Transfer Payments,525030,Other,10-Jul-17,3306304-VOUCHER16AB-CHES006SGF031,892,DURHAM POLICE & CRIME COMMISSIONER.
Transformation and Partnerships,Comms & Information Management,Supplies and Services,384199,Miscellaneous Expenses,10-Jul-17,3306397-108270,855,IDOX SOFTWARE LTD.
Adult and Health Services,Head of Adults,Transport,230005,Contract Hire,11-Jul-17,3307484-0022A,"1,320.00",AIRPORT TAXIS 4U.
Adult and Health Services,Head of Adults,Transport,230005,Contract Hire,11-Jul-17,3307496-DCC05JUNE17,990,ATLAS TAXIS BISHOP AUCKLAND.
Adult and Health Services,Head of Adults,Transport,230005,Contract Hire,11-Jul-17,3307496-DCC1JUNE17,"1,870.00",ATLAS TAXIS BISHOP AUCKLAND.
Adult and Health Services,Head of Adults,Transport,230005,Contract Hire,11-Jul-17,3307496-DCC4JUNE17,700,ATLAS TAXIS BISHOP AUCKLAND.
Adult and Health Services,Head of Adults,Transport,230005,Contract Hire,11-Jul-17,3307497-03606,752,ATLAS TAXIS CONSETT.
Adult and Health Services,Head of Adults,Transport,230005,Contract Hire,11-Jul-17,3307500-18,621,AXLE TAXIS.
Adult and Health Services,Head of Adults,Transport,230005,Contract Hire,11-Jul-17,3307514-1478,"1,100.00",BOBBY DOVE.
Adult and Health Services,Public Health,Third Party Payments,460802,Contract Payments,11-Jul-17,3307520-FYR53/MAY2017/EOHC,"2,638.47",BOOTS THE CHEMISTS LTD.*
Adult and Health Services,Public Health,Third Party Payments,460802,Contract Payments,11-Jul-17,3307523-FKP88/MAY2017/EOHC,736.87,BOOTS THE CHEMISTS LTD.*
Adult and Health Services,Head of Adults,Transport,230005,Contract Hire,11-Jul-17,3307564-INV-100250,503.88,CROFT BUSINESS SERVICES (UK) LTD T/A CROFT TAXIS.
Adult and Health Services,Head of Adults,Transport,230005,Contract Hire,11-Jul-17,3307564-INV-100251,"2,087.14",CROFT BUSINESS SERVICES (UK) LTD T/A CROFT TAXIS.
Adult and Health Services,Head of Adults,Transport,230005,Contract Hire,11-Jul-17,3307601-100336,"1,760.00",G & P JOHNSON LTD T/A NIGHTINGALE COACHES.
Adult and Health Services,Head of Adults,Transport,230005,Contract Hire,11-Jul-17,3307601-100337,"1,316.00",G & P JOHNSON LTD T/A NIGHTINGALE COACHES.
Adult and Health Services,Head of Adults,Transport,230005,Contract Hire,11-Jul-17,3307601-100338,"1,176.00",G & P JOHNSON LTD T/A NIGHTINGALE COACHES.
Adult and Health Services,Head of Adults,Transport,230005,Contract Hire,11-Jul-17,3307601-100339,990,G & P JOHNSON LTD T/A NIGHTINGALE COACHES.
Adult and Health Services,Head of Adults,Transport,230005,Contract Hire,11-Jul-17,3307601-100340,946,G & P JOHNSON LTD T/A NIGHTINGALE COACHES.
Adult and Health Services,Head of Adults,Transport,230005,Contract Hire,11-Jul-17,3307642-DM14710,868,JOVIAL PRIVATE HIRE.
Adult and Health Services,Commissioning inc Supporting People,Third Party Payments,470111,Purchase of Care,11-Jul-17,3307657-RINVTP/00447019,"3,994.97",LEONARD CHESHIRE DISABILITY.
Adult and Health Services,Head of Adults,Transport,230005,Contract Hire,11-Jul-17,3307693-EDB06-17,"1,140.00",MR CT WALKER T/A CW TAXIS.
Adult and Health Services,Head of Adults,Transport,230005,Contract Hire,11-Jul-17,3307693-RCC06-17,"1,235.32",MR CT WALKER T/A CW TAXIS.
Adult and Health Services,Head of Adults,Transport,230005,Contract Hire,11-Jul-17,3307801-B891,"1,588.84",TALBOTS TRAVEL LTD.
Adult and Health Services,Head of Adults,Transport,230005,Contract Hire,11-Jul-17,3307820-0001880,"1,020.00",TONY RIDLEY T/A COLORS TAXIS LTD.
Adult and Health Services,Head of Adults,Transport,230005,Contract Hire,11-Jul-17,3307826-3317,620,TRANSPORT.ADVENTURE.XI.
Children and Young Peoples Services,Head of Education,Transport,230008,Contract Hire,11-Jul-17,3307472-N17300617,"1,820.00",1ST AID COMMERCIALS LTD.
Children and Young Peoples Services,Head of Education,Transport,230008,Contract Hire,11-Jul-17,3307472-N64300617,"2,360.00",1ST AID COMMERCIALS LTD.
Children and Young Peoples Services,Head of Education,Transport,230007,Contract Hire,11-Jul-17,3307473-JUNE-01,"1,400.00",A & P TAXIS.
Children and Young Peoples Services,Head of Education,Transport,230007,Contract Hire,11-Jul-17,3307473-JUNE-02,"1,400.00",A & P TAXIS.
Children and Young Peoples Services,Head of Education,Transport,230013,Contract Hire,11-Jul-17,3307477-W3/SE,540,AABAT TAXIS.
Children and Young Peoples Services,Head of Education,Transport,230007,Contract Hire,11-Jul-17,3307477-W25/SN,500,AABAT TAXIS.
Children and Young Peoples Services,Head of Education,Transport,230007,Contract Hire,11-Jul-17,3307477-W8/SK,"1,200.00",AABAT TAXIS.
Children and Young Peoples Services,Head of Education,Transport,230006,Contract Hire,11-Jul-17,3307477-W12/ST,"2,160.00",AABAT TAXIS.
Children and Young Peoples Services,Head of Education,Transport,230012,Contract Hire,11-Jul-17,3307477-W11/SS,"1,216.00",AABAT TAXIS.
Children and Young Peoples Services,Head of Education,Transport,230008,Contract Hire,11-Jul-17,3307477-W10/SR,"1,780.00",AABAT TAXIS.
Children and Young Peoples Services,Head of Education,Transport,230008,Contract Hire,11-Jul-17,3307477-W27/SY,"2,263.00",AABAT TAXIS.
Children and Young Peoples Services,Head of Education,Transport,230008,Contract Hire,11-Jul-17,3307477-W7/SJ,"1,780.00",AABAT TAXIS.
Children and Young Peoples Services,Head of Education,Transport,230012,Contract Hire,11-Jul-17,3307478-O352,"2,640.00",ABC & OUSTON CABS.
Children and Young Peoples Services,Head of Education,Transport,230012,Contract Hire,11-Jul-17,3307478-O353,"1,680.00",ABC & OUSTON CABS.
Children and Young Peoples Services,Head of Education,Transport,230008,Contract Hire,11-Jul-17,3307478-O354,"1,140.00",ABC & OUSTON CABS.
Children and Young Peoples Services,Head of Education,Transport,230008,Contract Hire,11-Jul-17,3307479-40-JUNE2017,"1,000.00",ABLE NOVAK TAXIS.
Children and Young Peoples Services,Head of Education,Transport,230008,Contract Hire,11-Jul-17,3307479-44-JUNE2017,860,ABLE NOVAK TAXIS.
Dedicated Schools Grant,Dedicated Schools Grant,Transport,230010,Contract Hire,11-Jul-17,3307482-556,"1,220.00",ADAMSONS TAXIS.
Children and Young Peoples Services,Head of Education,Transport,230008,Contract Hire,11-Jul-17,3307485-153910,"1,320.50",ALAN SOUTHERN T/A ALANS TAXIS PELTON FELL.
Children and Young Peoples Services,Head of Education,Transport,230008,Contract Hire,11-Jul-17,3307485-388910,"1,557.50",ALAN SOUTHERN T/A ALANS TAXIS PELTON FELL.
Children and Young Peoples Services,Head of Education,Transport,230007,Contract Hire,11-Jul-17,3307486-124,"1,444.00",ALANS TAXIS BARNARD CASTLE.
Children and Young Peoples Services,Head of Education,Transport,230007,Contract Hire,11-Jul-17,3307487-173AT,520,AMBER TRAVEL.
Children and Young Peoples Services,Head of Education,Transport,230008,Contract Hire,11-Jul-17,3307488-0033,"1,300.00",ANDREW SIMPSON T/A ANDY`S CABS.
Children and Young Peoples Services,Head of Education,Transport,230007,Contract Hire,11-Jul-17,3307489-119,560,ANDY CABS.
Children and Young Peoples Services,Head of Education,Transport,230008,Contract Hire,11-Jul-17,3307489-120,"1,100.00",ANDY CABS.
Children and Young Peoples Services,Head of Education,Transport,230007,Contract Hire,11-Jul-17,3307495-585,980.1,AT TAXIS LTD.
Children and Young Peoples Services,Head of Education,Transport,230008,Contract Hire,11-Jul-17,3307495-586,"1,262.90",AT TAXIS LTD.
Dedicated Schools Grant,Dedicated Schools Grant,Transport,230010,Contract Hire,11-Jul-17,3307495-587,"1,360.00",AT TAXIS LTD.
Dedicated Schools Grant,Dedicated Schools Grant,Transport,230010,Contract Hire,11-Jul-17,3307495-588,"1,564.20",AT TAXIS LTD.
Children and Young Peoples Services,Head of Education,Transport,230006,Contract Hire,11-Jul-17,3307496-DCC12JUNE17,"1,080.00",ATLAS TAXIS BISHOP AUCKLAND.
Children and Young Peoples Services,Head of Education,Transport,230008,Contract Hire,11-Jul-17,3307496-DCC02JUNE17,"1,976.25",ATLAS TAXIS BISHOP AUCKLAND.
Children and Young Peoples Services,Head of Education,Transport,230008,Contract Hire,11-Jul-17,3307496-DCC11JUNE17,"2,204.00",ATLAS TAXIS BISHOP AUCKLAND.
Children and Young Peoples Services,Head of Education,Transport,230008,Contract Hire,11-Jul-17,3307496-DCC13JUNE17,"1,780.00",ATLAS TAXIS BISHOP AUCKLAND.
Children and Young Peoples Services,Head of Education,Transport,230008,Contract Hire,11-Jul-17,3307496-DCC7JUNE17,"2,500.00",ATLAS TAXIS BISHOP AUCKLAND.
Children and Young Peoples Services,Head of Education,Transport,230008,Contract Hire,11-Jul-17,3307496-DCC8JUNE17,"2,185.00",ATLAS TAXIS BISHOP AUCKLAND.
Children and Young Peoples Services,Head of Education,Transport,230013,Contract Hire,11-Jul-17,3307497-03604,624,ATLAS TAXIS CONSETT.
Children and Young Peoples Services,Head of Education,Transport,230007,Contract Hire,11-Jul-17,3307497-03602,540,ATLAS TAXIS CONSETT.
Children and Young Peoples Services,Head of Education,Transport,230007,Contract Hire,11-Jul-17,3307497-03603,740,ATLAS TAXIS CONSETT.
Children and Young Peoples Services,Head of Education,Transport,230006,Contract Hire,11-Jul-17,3307497-03605,"1,033.00",ATLAS TAXIS CONSETT.
Children and Young Peoples Services,Head of Education,Transport,230006,Contract Hire,11-Jul-17,3307497-03607,512,ATLAS TAXIS CONSETT.
Children and Young Peoples Services,Head of Education,Transport,230006,Contract Hire,11-Jul-17,3307497-03608,662.8,ATLAS TAXIS CONSETT.
Children and Young Peoples Services,Head of Early Help Assessment and Safeguarding,Supplies and Services,384302,Miscellaneous Expenses,11-Jul-17,3307499-SIN042089,592.5,AWARD SCHEME LTD.
Children and Young Peoples Services,Head of Early Help Assessment and Safeguarding,Supplies and Services,384302,Miscellaneous Expenses,11-Jul-17,3307499-SIN047173,"2,060.00",AWARD SCHEME LTD.
Children and Young Peoples Services,Head of Education,Transport,230008,Contract Hire,11-Jul-17,3307501-668,"1,498.60",BEELINE MINI BUSES.
Children and Young Peoples Services,Head of Education,Transport,230008,Contract Hire,11-Jul-17,3307501-669,698.2,BEELINE MINI BUSES.
Children and Young Peoples Services,Head of Education,Transport,230008,Contract Hire,11-Jul-17,3307501-670,"1,552.00",BEELINE MINI BUSES.
Children and Young Peoples Services,Head of Education,Transport,230012,Contract Hire,11-Jul-17,3307502-SMITH/10JUNE17,"1,622.79",BEELINE PRIVATE HIRE.
Children and Young Peoples Services,Head of Education,Transport,230008,Contract Hire,11-Jul-17,3307502-SMITH/JUNE17,"1,406.60",BEELINE PRIVATE HIRE.
Children and Young Peoples Services,Head of Education,Transport,230008,Contract Hire,11-Jul-17,3307503-68,873,BEELINE TAXIS.
Children and Young Peoples Services,Head of Education,Transport,230003,Contract Hire,11-Jul-17,3307504-STJOHNSRC0617,"7,520.00",BELL BROTHERS TRAVEL.
Children and Young Peoples Services,Head of Education,Transport,230008,Contract Hire,11-Jul-17,3307511-159,"1,165.60",BG TAXIS.
Children and Young Peoples Services,Head of Education,Transport,230009,Contract Hire,11-Jul-17,3307513-05-G026,800,BILL SCOTT TAXIS LTD.
Children and Young Peoples Services,Head of Education,Transport,230007,Contract Hire,11-Jul-17,3307515-60,800,BOBS TAXIS.
Children and Young Peoples Services,Head of Education,Transport,230008,Contract Hire,11-Jul-17,3307532-BZ00228,"1,620.00",BREZ`S TAXIS.
Children and Young Peoples Services,Head of Education,Transport,230008,Contract Hire,11-Jul-17,3307533-7,580,BRIAN PURVIS T/A BJ`S TAXIS.
Children and Young Peoples Services,Head of Education,Transport,230007,Contract Hire,11-Jul-17,3307536-3260010-30/6/17,600,C & R TAXIS.
Children and Young Peoples Services,Head of Education,Transport,230008,Contract Hire,11-Jul-17,3307536-M108010,"1,425.00",C & R TAXIS.
Children and Young Peoples Services,Head of Education,Transport,230008,Contract Hire,11-Jul-17,3307536-W153010,"1,050.00",C & R TAXIS.
Children and Young Peoples Services,Head of Education,Transport,230008,Contract Hire,11-Jul-17,3307537-BIL0106,"1,787.00",CA MUSGROVE.
Children and Young Peoples Services,Head of Education,Transport,230008,Contract Hire,11-Jul-17,3307550-CW10,825,CHIPPERS TAXIS.
Children and Young Peoples Services,Head of Education,Transport,230008,Contract Hire,11-Jul-17,3307550-SS10,756,CHIPPERS TAXIS.
Children and Young Peoples Services,Head of Education,Transport,230008,Contract Hire,11-Jul-17,3307550-SW10,918,CHIPPERS TAXIS.
Children and Young Peoples Services,Head of Education,Transport,230006,Contract Hire,11-Jul-17,3307552-F714,848,CLARKS MINIBUSES & TAXIS.
Children and Young Peoples Services,Head of Education,Transport,230007,Contract Hire,11-Jul-17,3307554-973,"1,000.00",CLIVE HUBERY.
Children and Young Peoples Services,Head of Education,Transport,230003,Contract Hire,11-Jul-17,3307556-C/9825,"2,441.50",COCHRANES T/A KELVIN TRAVEL.
Children and Young Peoples Services,Head of Education,Transport,230003,Contract Hire,11-Jul-17,3307556-C/9826,"2,631.50",COCHRANES T/A KELVIN TRAVEL.
Children and Young Peoples Services,Head of Education,Transport,230003,Contract Hire,11-Jul-17,3307556-C/9827,"6,441.00",COCHRANES T/A KELVIN TRAVEL.
Children and Young Peoples Services,Head of Education,Transport,230007,Contract Hire,11-Jul-17,3307557-3219/06-17,600,COLVIN`S CABS.
Children and Young Peoples Services,Head of Education,Transport,230006,Contract Hire,11-Jul-17,3307559-1177,"1,880.00",CONNORS MINI BUSES.*
Children and Young Peoples Services,Head of Education,Transport,230008,Contract Hire,11-Jul-17,3307559-1174,"1,720.00",CONNORS MINI BUSES.*
Children and Young Peoples Services,Head of Education,Transport,230008,Contract Hire,11-Jul-17,3307559-1175,"1,720.00",CONNORS MINI BUSES.*
Children and Young Peoples Services,Head of Education,Transport,230008,Contract Hire,11-Jul-17,3307559-1176,"1,806.00",CONNORS MINI BUSES.*
Children and Young Peoples Services,Head of Education,Transport,230007,Contract Hire,11-Jul-17,3307561-DCC/4118/JUNE17,"4,720.00",COUNTY COACHES.
Children and Young Peoples Services,Head of Education,Transport,230006,Contract Hire,11-Jul-17,3307562-N220/JUNE/17,849.6,CRAIG RAMSHAW T/A CRAIG`S CABS.
Children and Young Peoples Services,Head of Education,Transport,230008,Contract Hire,11-Jul-17,3307562-N069/JUNE/17,"1,538.00",CRAIG RAMSHAW T/A CRAIG`S CABS.
Children and Young Peoples Services,Head of Education,Transport,230008,Contract Hire,11-Jul-17,3307564-INV-100247,"3,018.53",CROFT BUSINESS SERVICES (UK) LTD T/A CROFT TAXIS.
Children and Young Peoples Services,Head of Education,Transport,230008,Contract Hire,11-Jul-17,3307564-INV-100254,"2,061.12",CROFT BUSINESS SERVICES (UK) LTD T/A CROFT TAXIS.
Children and Young Peoples Services,Head of Education,Transport,230008,Contract Hire,11-Jul-17,3307564-INV-100255,"2,447.58",CROFT BUSINESS SERVICES (UK) LTD T/A CROFT TAXIS.
Children and Young Peoples Services,Head of Education,Transport,230008,Contract Hire,11-Jul-17,3307564-INV-100256,797.6,CROFT BUSINESS SERVICES (UK) LTD T/A CROFT TAXIS.
Children and Young Peoples Services,Head of Education,Transport,230008,Contract Hire,11-Jul-17,3307564-INV-100257,"1,651.00",CROFT BUSINESS SERVICES (UK) LTD T/A CROFT TAXIS.
Children and Young Peoples Services,Head of Education,Transport,230008,Contract Hire,11-Jul-17,3307564-INV-100258,"1,178.40",CROFT BUSINESS SERVICES (UK) LTD T/A CROFT TAXIS.
Children and Young Peoples Services,Head of Education,Transport,230008,Contract Hire,11-Jul-17,3307564-INV-100259,574.4,CROFT BUSINESS SERVICES (UK) LTD T/A CROFT TAXIS.
Dedicated Schools Grant,Dedicated Schools Grant,Transport,230010,Contract Hire,11-Jul-17,3307565-25,"1,482.00",CUTHBERT CABS.
Children and Young Peoples Services,Head of Education,Transport,230008,Contract Hire,11-Jul-17,3307568-TOW010,"1,000.00",D IRVING T/A BJ TAXIS.
Children and Young Peoples Services,Head of Education,Transport,230007,Contract Hire,11-Jul-17,3307569-193,790,D MCDONNELL.
Children and Young Peoples Services,Head of Education,Transport,230007,Contract Hire,11-Jul-17,3307570-1533,800,DA TAXIS.
Children and Young Peoples Services,Head of Education,Transport,230006,Contract Hire,11-Jul-17,3307570-1531,682.5,DA TAXIS.
Children and Young Peoples Services,Head of Education,Transport,230008,Contract Hire,11-Jul-17,3307570-1528,"1,436.00",DA TAXIS.
Children and Young Peoples Services,Head of Education,Transport,230008,Contract Hire,11-Jul-17,3307570-1532,"1,380.00",DA TAXIS.
Children and Young Peoples Services,Head of Education,Transport,230006,Contract Hire,11-Jul-17,3307571-229,638,DA TRAVEL.
Children and Young Peoples Services,Head of Education,Transport,230008,Contract Hire,11-Jul-17,3307571-230,"1,740.00",DA TRAVEL.
Children and Young Peoples Services,Head of Education,Transport,230008,Contract Hire,11-Jul-17,3307571-232,532,DA TRAVEL.
Children and Young Peoples Services,Head of Education,Transport,230008,Contract Hire,11-Jul-17,3307573-3137,"1,908.60",DAVES MINIBUSES.
Children and Young Peoples Services,Head of Education,Transport,230008,Contract Hire,11-Jul-17,3307573-3138,"1,627.80",DAVES MINIBUSES.
Children and Young Peoples Services,Head of Education,Transport,230008,Contract Hire,11-Jul-17,3307573-3139,"2,260.00",DAVES MINIBUSES.
Children and Young Peoples Services,Head of Education,Transport,230008,Contract Hire,11-Jul-17,3307573-3140,"2,000.00",DAVES MINIBUSES.
Children and Young Peoples Services,Head of Education,Transport,230008,Contract Hire,11-Jul-17,3307573-3141,"2,550.00",DAVES MINIBUSES.
Children and Young Peoples Services,Head of Education,Transport,230012,Contract Hire,11-Jul-17,3307574-A27,"1,800.00",DAVES TAXIS.
Children and Young Peoples Services,Head of Education,Transport,230008,Contract Hire,11-Jul-17,3307574-A28,"1,500.00",DAVES TAXIS.
Children and Young Peoples Services,Head of Education,Transport,230008,Contract Hire,11-Jul-17,3307574-A29,700,DAVES TAXIS.
Children and Young Peoples Services,Head of Education,Transport,230008,Contract Hire,11-Jul-17,3307576-0036,"3,000.00",DAVID WALKER TAXIS.
Children and Young Peoples Services,Head of Education,Transport,230006,Contract Hire,11-Jul-17,3307581-17/31,"1,156.00",DMG PRIVATE HIRE.
Children and Young Peoples Services,Head of Education,Transport,230012,Contract Hire,11-Jul-17,3307581-17/32,"1,390.80",DMG PRIVATE HIRE.
Children and Young Peoples Services,Head of Education,Transport,230007,Contract Hire,11-Jul-17,3307584-24821,"2,803.20",DURHAM CITY COACHES.
Children and Young Peoples Services,Head of Education,Transport,230003,Contract Hire,11-Jul-17,3307584-24822,"2,700.00",DURHAM CITY COACHES.
Children and Young Peoples Services,Head of Education,Transport,230003,Contract Hire,11-Jul-17,3307601-100316,"2,613.20",G & P JOHNSON LTD T/A NIGHTINGALE COACHES.
Children and Young Peoples Services,Head of Education,Transport,230003,Contract Hire,11-Jul-17,3307601-100317,"2,040.00",G & P JOHNSON LTD T/A NIGHTINGALE COACHES.
Children and Young Peoples Services,Head of Education,Transport,230003,Contract Hire,11-Jul-17,3307601-100318,"1,880.00",G & P JOHNSON LTD T/A NIGHTINGALE COACHES.
Children and Young Peoples Services,Head of Education,Transport,230008,Contract Hire,11-Jul-17,3307601-100320,"1,300.00",G & P JOHNSON LTD T/A NIGHTINGALE COACHES.
Children and Young Peoples Services,Head of Education,Transport,230008,Contract Hire,11-Jul-17,3307601-100321,"1,300.00",G & P JOHNSON LTD T/A NIGHTINGALE COACHES.
Children and Young Peoples Services,Head of Education,Transport,230008,Contract Hire,11-Jul-17,3307601-100323,"1,480.00",G & P JOHNSON LTD T/A NIGHTINGALE COACHES.
Children and Young Peoples Services,Head of Education,Transport,230008,Contract Hire,11-Jul-17,3307601-100324,"1,420.00",G & P JOHNSON LTD T/A NIGHTINGALE COACHES.
Children and Young Peoples Services,Head of Education,Transport,230008,Contract Hire,11-Jul-17,3307601-100325,"1,700.00",G & P JOHNSON LTD T/A NIGHTINGALE COACHES.
Children and Young Peoples Services,Head of Education,Transport,230008,Contract Hire,11-Jul-17,3307601-100326,"1,100.00",G & P JOHNSON LTD T/A NIGHTINGALE COACHES.
Children and Young Peoples Services,Head of Education,Transport,230008,Contract Hire,11-Jul-17,3307601-100327,"1,020.00",G & P JOHNSON LTD T/A NIGHTINGALE COACHES.
Children and Young Peoples Services,Head of Education,Transport,230008,Contract Hire,11-Jul-17,3307601-100328,"1,680.00",G & P JOHNSON LTD T/A NIGHTINGALE COACHES.
Children and Young Peoples Services,Head of Education,Transport,230008,Contract Hire,11-Jul-17,3307601-100329,900,G & P JOHNSON LTD T/A NIGHTINGALE COACHES.
Children and Young Peoples Services,Head of Education,Transport,230008,Contract Hire,11-Jul-17,3307601-100330,"1,840.00",G & P JOHNSON LTD T/A NIGHTINGALE COACHES.
Children and Young Peoples Services,Head of Education,Transport,230008,Contract Hire,11-Jul-17,3307601-100331,"1,700.00",G & P JOHNSON LTD T/A NIGHTINGALE COACHES.
Children and Young Peoples Services,Head of Education,Transport,230008,Contract Hire,11-Jul-17,3307601-100332,"1,130.00",G & P JOHNSON LTD T/A NIGHTINGALE COACHES.
Dedicated Schools Grant,Dedicated Schools Grant,Transport,230007,Contract Hire,11-Jul-17,3307601-100293,"1,235.00",G & P JOHNSON LTD T/A NIGHTINGALE COACHES.
Dedicated Schools Grant,Dedicated Schools Grant,Transport,230010,Contract Hire,11-Jul-17,3307601-100315,"1,560.00",G & P JOHNSON LTD T/A NIGHTINGALE COACHES.
Dedicated Schools Grant,Dedicated Schools Grant,Transport,230008,Contract Hire,11-Jul-17,3307601-100318A,760,G & P JOHNSON LTD T/A NIGHTINGALE COACHES.
Dedicated Schools Grant,Dedicated Schools Grant,Transport,230007,Contract Hire,11-Jul-17,3307605-009,"1,134.00",GAVIN ELLIOTT T/A LOCATION TAXIS.
Children and Young Peoples Services,Head of Education,Transport,230006,Contract Hire,11-Jul-17,3307617-11,724,HARDIP SINGH MAHIL T/A AMBER CARS.
Children and Young Peoples Services,Head of Education,Transport,230008,Contract Hire,11-Jul-17,3307617-2,800,HARDIP SINGH MAHIL T/A AMBER CARS.
Children and Young Peoples Services,Head of Education,Transport,230006,Contract Hire,11-Jul-17,3307619-HT276,"2,350.00",HARRY`S TAXI`S.
Children and Young Peoples Services,Head of Education,Transport,230008,Contract Hire,11-Jul-17,3307619-HT277,"2,600.00",HARRY`S TAXI`S.
Children and Young Peoples Services,Head of Education,Transport,230008,Contract Hire,11-Jul-17,3307619-HT279,"1,800.00",HARRY`S TAXI`S.
Children and Young Peoples Services,Head of Education,Transport,230008,Contract Hire,11-Jul-17,3307621-10-W075-30/6/17,900,HENRY FOREMAN T/A HENRY`S TAXIS.
Children and Young Peoples Services,Head of Education,Transport,230008,Contract Hire,11-Jul-17,3307624-INV163,"1,300.00",HORNDALE TAXIS LTD.
Children and Young Peoples Services,Head of Education,Transport,230012,Contract Hire,11-Jul-17,3307634-30/06/17D,"1,200.00",JL EBDON. T/A DIAL-A-CAB.
Children and Young Peoples Services,Head of Education,Transport,230008,Contract Hire,11-Jul-17,3307634-30/06/17A,"1,060.00",JL EBDON. T/A DIAL-A-CAB.
Children and Young Peoples Services,Head of Education,Transport,230008,Contract Hire,11-Jul-17,3307634-30/06/17B,"1,760.00",JL EBDON. T/A DIAL-A-CAB.
Children and Young Peoples Services,Head of Education,Transport,230008,Contract Hire,11-Jul-17,3307634-30/06/17C,"1,934.50",JL EBDON. T/A DIAL-A-CAB.
Children and Young Peoples Services,Head of Education,Transport,230008,Contract Hire,11-Jul-17,3307634-30/06/17E,"1,360.00",JL EBDON. T/A DIAL-A-CAB.
Children and Young Peoples Services,Head of Education,Transport,230008,Contract Hire,11-Jul-17,3307634-30/06/17F,"1,960.00",JL EBDON. T/A DIAL-A-CAB.
Children and Young Peoples Services,Head of Education,Transport,230008,Contract Hire,11-Jul-17,3307634-30/06/17G,"1,200.00",JL EBDON. T/A DIAL-A-CAB.
Children and Young Peoples Services,Head of Education,Transport,230003,Contract Hire,11-Jul-17,3307635-2017/11,"1,664.00",JM HUMBLE COACH HIRE.
Children and Young Peoples Services,Head of Education,Transport,230003,Contract Hire,11-Jul-17,3307635-2017/12,"1,020.00",JM HUMBLE COACH HIRE.
Children and Young Peoples Services,Head of Education,Transport,230008,Contract Hire,11-Jul-17,3307635-2017/10,896,JM HUMBLE COACH HIRE.
Children and Young Peoples Services,Head of Education,Transport,230012,Contract Hire,11-Jul-17,3307636-N078-30/6/17,"1,000.00",JMR TAXIS.
Children and Young Peoples Services,Head of Education,Transport,230008,Contract Hire,11-Jul-17,3307645-03-30/6/17,"3,975.00",KD TAXIS.
Children and Young Peoples Services,Head of Education,Transport,230006,Contract Hire,11-Jul-17,3307646-00798,700,KENNAS CABS.
Children and Young Peoples Services,Head of Education,Transport,230008,Contract Hire,11-Jul-17,3307646-00799,940,KENNAS CABS.
Children and Young Peoples Services,Head of Education,Transport,230008,Contract Hire,11-Jul-17,3307647-010617,"2,033.00",KEVIN EDMUNDSON.
Dedicated Schools Grant,Dedicated Schools Grant,Transport,230010,Contract Hire,11-Jul-17,3307650-3-30/6/17,"1,750.00",KT TAXIS.
Children and Young Peoples Services,Head of Education,Transport,230007,Contract Hire,11-Jul-17,3307655-3769,"2,702.60",LEE`S COACHES LTD.
Children and Young Peoples Services,Head of Education,Transport,230007,Contract Hire,11-Jul-17,3307655-3771,"12,500.00",LEE`S COACHES LTD.
Children and Young Peoples Services,Head of Education,Transport,230007,Contract Hire,11-Jul-17,3307655-3772,"1,980.00",LEE`S COACHES LTD.
Children and Young Peoples Services,Head of Education,Transport,230003,Contract Hire,11-Jul-17,3307655-3795,"12,652.50",LEE`S COACHES LTD.
Children and Young Peoples Services,Head of Education,Transport,230008,Contract Hire,11-Jul-17,3307663-3439,"1,550.00",LOCAL TRANSPORT LTD.
Children and Young Peoples Services,Head of Education,Transport,230006,Contract Hire,11-Jul-17,3307673-31,"1,400.00",MALCOLM CARR T/A CARLY CABS.
Children and Young Peoples Services,Head of Education,Transport,230008,Contract Hire,11-Jul-17,3307677-000013,"2,600.00",MARK HUSBAND T/A TEAK`S TAXIS.
Children and Young Peoples Services,Head of Education,Transport,230008,Contract Hire,11-Jul-17,3307678-10-JUNE2017,"1,455.00",MARK SUMMERS T/A MARK`S TAXI.
Children and Young Peoples Services,Head of Education,Transport,230008,Contract Hire,11-Jul-17,3307684-00905,"3,060.00",MICHAELS TRAVEL.
Children and Young Peoples Services,Head of Education,Transport,230007,Contract Hire,11-Jul-17,3307685-0086,784,MICKS TAXIS - MURTON.
Children and Young Peoples Services,Head of Education,Transport,230007,Contract Hire,11-Jul-17,3307690-905,"1,540.00",MR AD HOWARD T/A TOFT HILL TAXIS.
Children and Young Peoples Services,Head of Education,Transport,230007,Contract Hire,11-Jul-17,3307693-HLA06-17,"1,276.00",MR CT WALKER T/A CW TAXIS.
Children and Young Peoples Services,Head of Education,Transport,230008,Contract Hire,11-Jul-17,3307693-EL06-17,"1,590.80",MR CT WALKER T/A CW TAXIS.
Children and Young Peoples Services,Head of Education,Transport,230008,Contract Hire,11-Jul-17,3307693-TDW06-17,976,MR CT WALKER T/A CW TAXIS.
Children and Young Peoples Services,Head of Education,Transport,230008,Contract Hire,11-Jul-17,3307693-WAL206-17,"1,387.00",MR CT WALKER T/A CW TAXIS.
Children and Young Peoples Services,Head of Education,Transport,230008,Contract Hire,11-Jul-17,3307693-WINDS06-17,"2,127.12",MR CT WALKER T/A CW TAXIS.
Children and Young Peoples Services,Head of Education,Transport,230007,Contract Hire,11-Jul-17,3307695-UBH/06/17,"1,040.00",MR J AGAR T/A PARK TAXIS.
Children and Young Peoples Services,Head of Education,Transport,230008,Contract Hire,11-Jul-17,3307695-SFB/06/17,"1,680.00",MR J AGAR T/A PARK TAXIS.
Dedicated Schools Grant,Dedicated Schools Grant,Transport,230010,Contract Hire,11-Jul-17,3307695-DB/06/17,"1,400.00",MR J AGAR T/A PARK TAXIS.
Children and Young Peoples Services,Head of Education,Transport,230008,Contract Hire,11-Jul-17,3307699-2971,"1,809.20",MR S BOWERS T/A DH7 TAXIS.
Children and Young Peoples Services,Head of Education,Transport,230008,Contract Hire,11-Jul-17,3307699-2972,"1,627.80",MR S BOWERS T/A DH7 TAXIS.
Children and Young Peoples Services,Head of Education,Transport,230008,Contract Hire,11-Jul-17,3307699-2973,800,MR S BOWERS T/A DH7 TAXIS.
Dedicated Schools Grant,Dedicated Schools Grant,Transport,230010,Contract Hire,11-Jul-17,3307699-2975,560,MR S BOWERS T/A DH7 TAXIS.
Dedicated Schools Grant,Dedicated Schools Grant,Transport,230010,Contract Hire,11-Jul-17,3307699-2976,"1,176.00",MR S BOWERS T/A DH7 TAXIS.
Children and Young Peoples Services,Head of Education,Transport,230008,Contract Hire,11-Jul-17,3307700-AA381,"2,608.20",MR T GUNN.
Children and Young Peoples Services,Head of Education,Transport,230010,Contract Hire,11-Jul-17,3307705-JUNE-01,600,NC TAXI`S.
Children and Young Peoples Services,Head of Looked After Provision Permanence and Care Leavers,Third Party Payments,425040,Rendered by Voluntary Organisations,11-Jul-17,3307715-108357,"1,964.80",NOVA PAYROLL MANAGEMENT SERVICES LTD T/A PIN POINT RECRUITMENT.
Children and Young Peoples Services,Head of Education,Transport,230012,Contract Hire,11-Jul-17,3307725-SC-118,"1,800.00",PAUL BURRELL T/A PAUL BURRELL TAXIS.
Children and Young Peoples Services,Head of Education,Transport,230008,Contract Hire,11-Jul-17,3307725-SC-119,"1,900.00",PAUL BURRELL T/A PAUL BURRELL TAXIS.
Children and Young Peoples Services,Head of Education,Supplies and Services,338027,Services,11-Jul-17,3307726-007,500,PAULA BENTON.
Children and Young Peoples Services,Head of Education,Transport,230009,Contract Hire,11-Jul-17,3307727-DCC/7271/06/2017,900,PB PRIVATE HIRE.
Children and Young Peoples Services,Head of Education,Transport,230008,Contract Hire,11-Jul-17,3307727-DCC/M003/06/2017,"1,300.00",PB PRIVATE HIRE.
Children and Young Peoples Services,Head of Education,Transport,230008,Contract Hire,11-Jul-17,3307727-DCC/M043/06/2017,840,PB PRIVATE HIRE.
Children and Young Peoples Services,Head of Education,Transport,230008,Contract Hire,11-Jul-17,3307733-0561,"2,180.00",PETER`S PRIVATE HIRE/PETER BEST.
Dedicated Schools Grant,Dedicated Schools Grant,Transport,230010,Contract Hire,11-Jul-17,3307733-0560,930,PETER`S PRIVATE HIRE/PETER BEST.
Children and Young Peoples Services,Head of Education,Transport,230007,Contract Hire,11-Jul-17,3307752-52A,"1,286.60",RAYNERS COACHES.
Children and Young Peoples Services,Head of Education,Transport,230007,Contract Hire,11-Jul-17,3307752-52C,"6,030.60",RAYNERS COACHES.
Children and Young Peoples Services,Head of Education,Transport,230006,Contract Hire,11-Jul-17,3307754-RDS028,675,RDS TAXI.
Children and Young Peoples Services,Head of Education,Transport,230006,Contract Hire,11-Jul-17,3307694-KDKWOL/M18,676.5,REDACTED - PAYMENT TO INDIVIDUAL
Children and Young Peoples Services,Head of Looked After Provision Permanence and Care Leavers,Supplies and Services,364352,Grants to Voluntary Organisations,11-Jul-17,3307083-CAS-07-2017-024,738,REDACTED - PAYMENT TO INDIVIDUAL
Children and Young Peoples Services,Head of Looked After Provision Permanence and Care Leavers,Third Party Payments,440027,Other Third Party Payments,11-Jul-17,3306790-1204748,"1,926.30",REDACTED - PAYMENT TO INDIVIDUAL
Children and Young Peoples Services,Head of Looked After Provision Permanence and Care Leavers,Third Party Payments,440027,Other Third Party Payments,11-Jul-17,3306891-1205096,706.23,REDACTED - PAYMENT TO INDIVIDUAL
Children and Young Peoples Services,Head of Education,Transport,230008,Contract Hire,11-Jul-17,3307758-3082,720,RICHIES TAXIS.
Children and Young Peoples Services,Head of Education,Transport,230008,Contract Hire,11-Jul-17,3307761-1063,"1,480.00",ROAD RUNNERS (NE) LTD.
Children and Young Peoples Services,Head of Education,Transport,230008,Contract Hire,11-Jul-17,3307761-1070,"1,160.00",ROAD RUNNERS (NE) LTD.
Children and Young Peoples Services,Head of Education,Transport,230008,Contract Hire,11-Jul-17,3307766-1708,"2,000.00",RON`S TAXIS (FISHBURN).
Children and Young Peoples Services,Head of Education,Transport,230008,Contract Hire,11-Jul-17,3307765-0041,"1,800.00",RONS TAXI (CHESTER LE ST).
Children and Young Peoples Services,Head of Education,Transport,230012,Contract Hire,11-Jul-17,3307782-439A,"1,300.00",SJ MACKENZIE T/A SCOTTS TAXIS.
Children and Young Peoples Services,Head of Education,Transport,230008,Contract Hire,11-Jul-17,3307782-433A,"2,640.00",SJ MACKENZIE T/A SCOTTS TAXIS.
Children and Young Peoples Services,Head of Education,Transport,230008,Contract Hire,11-Jul-17,3307782-434A,"1,500.00",SJ MACKENZIE T/A SCOTTS TAXIS.
Children and Young Peoples Services,Head of Education,Transport,230008,Contract Hire,11-Jul-17,3307782-443A,"1,100.00",SJ MACKENZIE T/A SCOTTS TAXIS.
Children and Young Peoples Services,Head of Education,Transport,230008,Contract Hire,11-Jul-17,3307782-444A,545,SJ MACKENZIE T/A SCOTTS TAXIS.
Children and Young Peoples Services,Head of Education,Transport,230007,Contract Hire,11-Jul-17,3307790-5336,"1,360.00",STEPHEN MAUDE LTD T/A MAUDES COACHES.
Children and Young Peoples Services,Head of Education,Supplies and Services,377015,County Durham Development,11-Jul-17,3307791-1778,800,STEVE WALLS T/A SBW ENTERTAINMENT LTD..
Children and Young Peoples Services,Head of Education,Transport,230008,Contract Hire,11-Jul-17,3307792-15,"1,598.00",STEVEN HENDERSON T/A HENDYS TAXIS.
Children and Young Peoples Services,Head of Education,Transport,230003,Contract Hire,11-Jul-17,3307799-52206,"3,677.10",T MOORE & SON.
Children and Young Peoples Services,Head of Education,Transport,230007,Contract Hire,11-Jul-17,3307800-1443,600,TALBOTS TAXIS.
Children and Young Peoples Services,Head of Education,Transport,230008,Contract Hire,11-Jul-17,3307801-B893,660,TALBOTS TRAVEL LTD.
Children and Young Peoples Services,Head of Education,Transport,230007,Contract Hire,11-Jul-17,3307802-06/2017/001,640,TARNS TAXIS LTD.
Children and Young Peoples Services,Head of Education,Transport,230008,Contract Hire,11-Jul-17,3307802-06/2017/004,"1,200.00",TARNS TAXIS LTD.
Children and Young Peoples Services,Head of Education,Transport,230008,Contract Hire,11-Jul-17,3307802-06/2017/006,"1,344.00",TARNS TAXIS LTD.
Children and Young Peoples Services,Head of Education,Transport,230008,Contract Hire,11-Jul-17,3307802-06/2017/007,967.5,TARNS TAXIS LTD.
Children and Young Peoples Services,Head of Education,Transport,230008,Contract Hire,11-Jul-17,3307804-DCC/2016/152,"1,740.00",TAYLOR`S TAXIS.
Children and Young Peoples Services,Head of Education,Transport,230008,Contract Hire,11-Jul-17,3307804-DCC/2016/153,"1,444.00",TAYLOR`S TAXIS.
Children and Young Peoples Services,Head of Education,Transport,230007,Contract Hire,11-Jul-17,3307807-4001/6A,"2,500.00",TED WILFORD COACHES.
Children and Young Peoples Services,Head of Education,Transport,230007,Contract Hire,11-Jul-17,3307807-5038/T43,"4,510.80",TED WILFORD COACHES.
Children and Young Peoples Services,Head of Education,Transport,230007,Contract Hire,11-Jul-17,3307807-5150,"1,400.00",TED WILFORD COACHES.
Children and Young Peoples Services,Head of Education,Transport,230007,Contract Hire,11-Jul-17,3307807-6032/H27,"1,800.00",TED WILFORD COACHES.
Children and Young Peoples Services,Head of Early Help Assessment and Safeguarding,Third Party Payments,410037,Rendered by Other Local Authorities,11-Jul-17,3307819-SII704968,"3,894.00",THE YOUTH JUSTICE BOARD.
Children and Young Peoples Services,Head of Education,Transport,230006,Contract Hire,11-Jul-17,3307820-0001876,"2,000.00",TONY RIDLEY T/A COLORS TAXIS LTD.
Children and Young Peoples Services,Head of Education,Transport,230008,Contract Hire,11-Jul-17,3307820-0001879,"1,700.00",TONY RIDLEY T/A COLORS TAXIS LTD.
Children and Young Peoples Services,Head of Education,Transport,230012,Contract Hire,11-Jul-17,3307821-31MO,880,TONYS TAXIS (A BIRCH).
Children and Young Peoples Services,Head of Education,Transport,230007,Contract Hire,11-Jul-17,3307826-02717,600,TRANSPORT.ADVENTURE.XI.
Dedicated Schools Grant,Dedicated Schools Grant,Transport,230010,Contract Hire,11-Jul-17,3307827-26011,"1,132.00",TRAVEL 6.
Children and Young Peoples Services,Head of Education,Transport,230008,Contract Hire,11-Jul-17,3307829-10,"2,590.00",TRIDENT TAXIS.
Children and Young Peoples Services,Head of Education,Transport,230008,Contract Hire,11-Jul-17,3307829-23,840,TRIDENT TAXIS.
Children and Young Peoples Services,Head of Education,Transport,230008,Contract Hire,11-Jul-17,3307832-10-30/6/17,"1,050.50",TW TINKLER T/A TT TAXIS.
Children and Young Peoples Services,Head of Looked After Provision Permanence and Care Leavers,Supplies and Services,344033,Telephones,11-Jul-17,3307836-203688,572.7,UNIFY BUSINESS SOLUTIONS LTD.
Children and Young Peoples Services,Head of Education,Transport,230012,Contract Hire,11-Jul-17,3307849-0617,"1,600.00",WEST AUCKLAND TOWN TRAVEL (WATT).
Regeneration and Local Services,Direct Services,Construction Work,908105,Construction work,11-Jul-17,3307637-00700,"4,640.00",JN KEARTON.
Regeneration and Local Services,Culture & Sport,Construction Work,908105,Construction work,11-Jul-17,3307651-INV01385923,"3,660.00",LANES GROUP PLC.
Regeneration and Local Services,Direct Services,Fees,901002,Professional fees,11-Jul-17,3307498-ANL2017/76,"19,415.00",AURA NEWCASTLE LTD.
Regeneration and Local Services,Direct Services,Supplies and Services,304221,Equipment and Materials,11-Jul-17,3307539-851701470,"1,928.11",CARLISLE CONSTRUCTION MATERIALS LTD.
Regeneration and Local Services,Technical Services,Supplies and Services,304221,Equipment and Materials,11-Jul-17,3307543-3009585074,727.43,CEMEX UK MATERIALS LTD.
Regeneration and Local Services,Technical Services,Supplies and Services,304221,Equipment and Materials,11-Jul-17,3307594-ES3684,"1,092.00",EVERSHED PRODUCTS.
Regeneration and Local Services,Direct Services,Supplies and Services,304221,Equipment and Materials,11-Jul-17,3307709-063662,"2,000.00",NEW ROW FARM NURSERIES.
Regeneration and Local Services,Technical Services,Supplies and Services,304221,Equipment and Materials,11-Jul-17,3307714-91404172X,737.81,NORTHUMBRIAN WATER LTD.
Regeneration and Local Services,Direct Services,Supplies and Services,304221,Equipment and Materials,11-Jul-17,3307853-42036607,"2,018.72",WOLSELEY UK LTD.
Regeneration and Local Services,Direct Services,Supplies and Services,304259,Equipment and Materials,11-Jul-17,3307759-771341,883.6,RICKERBY LTD.
Regeneration and Local Services,Technical Services,Supplies and Services,384194,Miscellaneous Expenses,11-Jul-17,3307712-84760,"1,843.40",NIRAMAX GROUP LTD.
Regeneration and Local Services,Economic Development and Housing,Supplies and Services,384437,Miscellaneous Expenses,11-Jul-17,3307558-73097,"3,600.00",COMPASS ROYSTON TRAVEL LTD.
Regeneration and Local Services,Economic Development and Housing,Supplies and Services,384437,Miscellaneous Expenses,11-Jul-17,3307788-48029,"2,435.00",STANLEY TRAVEL (NORTH EAST) LTD.
Regeneration and Local Services,Spatial Policy Planning Assets & Environment,Supplies and Services,384199,Miscellaneous Expenses,11-Jul-17,3307563-204,"1,200.00",CREATIVE YOUTH OPPORTUNITIES.
Regeneration and Local Services,Direct Services,Vehicles Equipment Furniture and Fittings,912541,Purchase-vehicles,11-Jul-17,3307729-683236,"10,353.41",PENTAGON FLEET MANCHESTER.
Regeneration and Local Services,Direct Services,Vehicles Equipment Furniture and Fittings,912541,Purchase-vehicles,11-Jul-17,3307729-686659,"10,352.41",PENTAGON FLEET MANCHESTER.
Regeneration and Local Services,Direct Services,Third Party Payments,430100,Rendered by Private Contractors,11-Jul-17,3307855-C364/833REVA,"23,304.56",WRAM FABRICATIONS LTD.
Regeneration and Local Services,Direct Services,Premises,108099,Service Repairs and Maintenance,11-Jul-17,3307637-00609B,510,JN KEARTON.
Regeneration and Local Services,Culture & Sport,Supplies and Services,338047,Services,11-Jul-17,3307840-22314154162-1,"1,090.49",UNIVERSAL PICTURES INTERNATIONAL UK & EIRE LTD.
Resources,Legal & Democratic Services,Supplies and Services,338042,Services,11-Jul-17,3307578-327439/INVCSM284,"17,375.00",DERE STREET BARRISTERS.
Resources,Legal & Democratic Services,Supplies and Services,338042,Services,11-Jul-17,3307578-328699/INVSPA163,720,DERE STREET BARRISTERS.
Resources,I.C.T. Services,Supplies and Services,332029,Printing Stationery and Gen Off Exps,11-Jul-17,3307775-92242204,"1,650.00",PARAGON GROUP UK LTD T/A SERVICE POINT (UK) LTD.
Resources,I.C.T. Services,Supplies and Services,332029,Printing Stationery and Gen Off Exps,11-Jul-17,3307775-92246065,550,PARAGON GROUP UK LTD T/A SERVICE POINT (UK) LTD.
Resources,I.C.T. Services,Supplies and Services,332029,Printing Stationery and Gen Off Exps,11-Jul-17,3307775-92252215,750,PARAGON GROUP UK LTD T/A SERVICE POINT (UK) LTD.
Resources,Legal & Democratic Services,Creditors,952238,Chairmans Charity,11-Jul-17,3307751-PROFORMA27062017,"1,000.00",RAMSIDE HALL HOTEL & GOLF CLUB.*
Resources,I.C.T. Services,Supplies and Services,340001,Postages,11-Jul-17,3307768-9054579967,"14,086.01",ROYAL MAIL GROUP PLC.
Adult and Health Services,Head of Adults,Third Party Payments,470101,Purchase of Care,12-Jul-17,3308150-2387485,"6,031.16",3 RED ADMIRAL COURT.
Adult and Health Services,Head of Adults,Third Party Payments,470101,Purchase of Care,12-Jul-17,3308151-2387864,"6,397.60",368 THE RIDGE.
Adult and Health Services,Head of Adults,Third Party Payments,470101,Purchase of Care,12-Jul-17,3308152-2385264,"2,399.00",A CHARLES THOMAS (CARE) LTD.
Adult and Health Services,Head of Adults,Third Party Payments,470101,Purchase of Care,12-Jul-17,3308152-2385265,"2,139.24",A CHARLES THOMAS (CARE) LTD.
Adult and Health Services,Head of Adults,Third Party Payments,470101,Purchase of Care,12-Jul-17,3308152-2385266,"2,139.24",A CHARLES THOMAS (CARE) LTD.
Adult and Health Services,Head of Adults,Third Party Payments,470101,Purchase of Care,12-Jul-17,3308152-2385267,"2,059.56",A CHARLES THOMAS (CARE) LTD.
Adult and Health Services,Head of Adults,Third Party Payments,470101,Purchase of Care,12-Jul-17,3308152-2385268,"2,139.24",A CHARLES THOMAS (CARE) LTD.
Adult and Health Services,Head of Adults,Third Party Payments,470101,Purchase of Care,12-Jul-17,3308152-2385269,"2,139.24",A CHARLES THOMAS (CARE) LTD.
Adult and Health Services,Head of Adults,Third Party Payments,470101,Purchase of Care,12-Jul-17,3308152-2385270,"2,139.24",A CHARLES THOMAS (CARE) LTD.
Adult and Health Services,Head of Adults,Third Party Payments,470101,Purchase of Care,12-Jul-17,3308152-2385271,"2,139.24",A CHARLES THOMAS (CARE) LTD.
Adult and Health Services,Head of Adults,Third Party Payments,470101,Purchase of Care,12-Jul-17,3308152-2385272,"2,139.24",A CHARLES THOMAS (CARE) LTD.
Adult and Health Services,Head of Adults,Third Party Payments,470101,Purchase of Care,12-Jul-17,3308152-2385273,"2,139.24",A CHARLES THOMAS (CARE) LTD.
Adult and Health Services,Head of Adults,Third Party Payments,470101,Purchase of Care,12-Jul-17,3308152-2385274,"2,139.24",A CHARLES THOMAS (CARE) LTD.
Adult and Health Services,Head of Adults,Third Party Payments,470101,Purchase of Care,12-Jul-17,3308152-2385275,687.61,A CHARLES THOMAS (CARE) LTD.
Adult and Health Services,Head of Adults,Third Party Payments,470101,Purchase of Care,12-Jul-17,3308152-2385276,"2,139.24",A CHARLES THOMAS (CARE) LTD.
Adult and Health Services,Head of Adults,Third Party Payments,470101,Purchase of Care,12-Jul-17,3308152-2385277,"2,139.24",A CHARLES THOMAS (CARE) LTD.
Adult and Health Services,Head of Adults,Third Party Payments,470101,Purchase of Care,12-Jul-17,3308152-2385278,"2,139.24",A CHARLES THOMAS (CARE) LTD.
Adult and Health Services,Head of Adults,Third Party Payments,470101,Purchase of Care,12-Jul-17,3308152-2385279,"2,139.24",A CHARLES THOMAS (CARE) LTD.
Adult and Health Services,Head of Adults,Third Party Payments,470101,Purchase of Care,12-Jul-17,3308152-2385280,"2,139.24",A CHARLES THOMAS (CARE) LTD.
Adult and Health Services,Head of Adults,Third Party Payments,470101,Purchase of Care,12-Jul-17,3308152-2385281,"2,139.24",A CHARLES THOMAS (CARE) LTD.
Adult and Health Services,Head of Adults,Third Party Payments,470101,Purchase of Care,12-Jul-17,3308152-2385282,"2,139.24",A CHARLES THOMAS (CARE) LTD.
Adult and Health Services,Head of Adults,Third Party Payments,470101,Purchase of Care,12-Jul-17,3308152-2385284,"2,139.24",A CHARLES THOMAS (CARE) LTD.
Adult and Health Services,Head of Adults,Third Party Payments,470101,Purchase of Care,12-Jul-17,3308152-2385285,"2,139.24",A CHARLES THOMAS (CARE) LTD.
Adult and Health Services,Head of Adults,Third Party Payments,470101,Purchase of Care,12-Jul-17,3308152-2385286,"2,139.24",A CHARLES THOMAS (CARE) LTD.
Adult and Health Services,Head of Adults,Third Party Payments,470101,Purchase of Care,12-Jul-17,3308152-2385287,"2,139.24",A CHARLES THOMAS (CARE) LTD.
Adult and Health Services,Head of Adults,Third Party Payments,470101,Purchase of Care,12-Jul-17,3308152-2385288,"2,139.24",A CHARLES THOMAS (CARE) LTD.
Adult and Health Services,Head of Adults,Third Party Payments,470101,Purchase of Care,12-Jul-17,3308152-2388907,840.41,A CHARLES THOMAS (CARE) LTD.
Adult and Health Services,Head of Adults,Third Party Payments,470101,Purchase of Care,12-Jul-17,3308153-2387917,"1,164.64",ABBEYVALE CARE CENTRE.
Adult and Health Services,Head of Adults,Third Party Payments,471101,Purchase of Care,12-Jul-17,3308153-2387918,"3,508.48",ABBEYVALE CARE CENTRE.
Adult and Health Services,Head of Adults,Third Party Payments,470101,Purchase of Care,12-Jul-17,3308153-2387919,534.81,ABBEYVALE CARE CENTRE.
Adult and Health Services,Head of Adults,Third Party Payments,470101,Purchase of Care,12-Jul-17,3308153-2387920,"1,528.02",ABBEYVALE CARE CENTRE.
Adult and Health Services,Head of Adults,Third Party Payments,470101,Purchase of Care,12-Jul-17,3308153-2387921,"1,250.00",ABBEYVALE CARE CENTRE.
Adult and Health Services,Head of Adults,Third Party Payments,470101,Purchase of Care,12-Jul-17,3308153-2387922,687.61,ABBEYVALE CARE CENTRE.
Adult and Health Services,Head of Adults,Third Party Payments,470101,Purchase of Care,12-Jul-17,3308153-2387923,"2,139.24",ABBEYVALE CARE CENTRE.
Adult and Health Services,Head of Adults,Third Party Payments,471101,Purchase of Care,12-Jul-17,3308153-2387925,"2,218.20",ABBEYVALE CARE CENTRE.
Adult and Health Services,Head of Adults,Third Party Payments,470101,Purchase of Care,12-Jul-17,3308153-2387926,"2,139.24",ABBEYVALE CARE CENTRE.
Adult and Health Services,Head of Adults,Third Party Payments,470101,Purchase of Care,12-Jul-17,3308153-2387927,"2,139.24",ABBEYVALE CARE CENTRE.
Adult and Health Services,Head of Adults,Third Party Payments,471101,Purchase of Care,12-Jul-17,3308153-2387928,"2,218.20",ABBEYVALE CARE CENTRE.
Adult and Health Services,Head of Adults,Third Party Payments,471101,Purchase of Care,12-Jul-17,3308153-2387929,"2,218.20",ABBEYVALE CARE CENTRE.
Adult and Health Services,Head of Adults,Third Party Payments,470101,Purchase of Care,12-Jul-17,3308153-2387930,"2,139.24",ABBEYVALE CARE CENTRE.
Adult and Health Services,Head of Adults,Third Party Payments,470101,Purchase of Care,12-Jul-17,3308153-2387931,"2,139.24",ABBEYVALE CARE CENTRE.
Adult and Health Services,Head of Adults,Third Party Payments,471101,Purchase of Care,12-Jul-17,3308153-2387932,"2,218.20",ABBEYVALE CARE CENTRE.
Adult and Health Services,Head of Adults,Third Party Payments,470101,Purchase of Care,12-Jul-17,3308153-2387933,"2,139.24",ABBEYVALE CARE CENTRE.
Adult and Health Services,Head of Adults,Third Party Payments,470101,Purchase of Care,12-Jul-17,3308153-2387934,"2,139.24",ABBEYVALE CARE CENTRE.
Adult and Health Services,Head of Adults,Third Party Payments,471101,Purchase of Care,12-Jul-17,3308153-2387935,"2,218.20",ABBEYVALE CARE CENTRE.
Adult and Health Services,Head of Adults,Third Party Payments,470101,Purchase of Care,12-Jul-17,3308153-2387936,"1,390.00",ABBEYVALE CARE CENTRE.
Adult and Health Services,Head of Adults,Third Party Payments,470101,Purchase of Care,12-Jul-17,3308153-2387937,"2,139.24",ABBEYVALE CARE CENTRE.
Adult and Health Services,Head of Adults,Third Party Payments,471101,Purchase of Care,12-Jul-17,3308153-2387938,"2,218.20",ABBEYVALE CARE CENTRE.
Adult and Health Services,Head of Adults,Third Party Payments,471101,Purchase of Care,12-Jul-17,3308153-2387939,"1,205.04",ABBEYVALE CARE CENTRE.
Adult and Health Services,Head of Adults,Third Party Payments,470101,Purchase of Care,12-Jul-17,3308153-2387940,"2,500.00",ABBEYVALE CARE CENTRE.
Adult and Health Services,Head of Adults,Third Party Payments,471101,Purchase of Care,12-Jul-17,3308153-2387941,"2,218.20",ABBEYVALE CARE CENTRE.
Adult and Health Services,Head of Adults,Third Party Payments,471101,Purchase of Care,12-Jul-17,3308153-2387942,"2,218.20",ABBEYVALE CARE CENTRE.
Adult and Health Services,Head of Adults,Third Party Payments,471101,Purchase of Care,12-Jul-17,3308153-2387943,"2,539.28",ABBEYVALE CARE CENTRE.
Adult and Health Services,Head of Adults,Third Party Payments,470101,Purchase of Care,12-Jul-17,3308153-2387944,"2,139.24",ABBEYVALE CARE CENTRE.
Adult and Health Services,Head of Adults,Third Party Payments,470101,Purchase of Care,12-Jul-17,3308153-2389499,"1,910.03",ABBEYVALE CARE CENTRE.
Adult and Health Services,Head of Adults,Third Party Payments,471101,Purchase of Care,12-Jul-17,3308153-2389502,554.55,ABBEYVALE CARE CENTRE.
Adult and Health Services,Head of Adults,Third Party Payments,472101,Purchase of Care,12-Jul-17,3308473-1722546H,706.16,ABSOLUTE CARE AT HOME.
Adult and Health Services,Head of Adults,Third Party Payments,478101,Purchase of Care,12-Jul-17,3308474-1721633H,"3,104.64",ACCEPT CARE LTD.
Adult and Health Services,Head of Adults,Third Party Payments,478101,Purchase of Care,12-Jul-17,3308474-1721729H,"3,304.60",ACCEPT CARE LTD.
Adult and Health Services,Head of Adults,Third Party Payments,478101,Purchase of Care,12-Jul-17,3308474-1721791H,"4,431.92",ACCEPT CARE LTD.
Adult and Health Services,Head of Adults,Third Party Payments,478101,Purchase of Care,12-Jul-17,3308474-1721919H,"3,198.72",ACCEPT CARE LTD.
Adult and Health Services,Head of Adults,Third Party Payments,478101,Purchase of Care,12-Jul-17,3308474-1722161H,877.56,ACCEPT CARE LTD.
Adult and Health Services,Head of Adults,Third Party Payments,478101,Purchase of Care,12-Jul-17,3308474-1722229H,"4,987.04",ACCEPT CARE LTD.
Adult and Health Services,Head of Adults,Third Party Payments,478101,Purchase of Care,12-Jul-17,3308474-1722264H,877.56,ACCEPT CARE LTD.
Adult and Health Services,Head of Adults,Third Party Payments,478101,Purchase of Care,12-Jul-17,3308474-1722273H,"1,166.88",ACCEPT CARE LTD.
Adult and Health Services,Head of Adults,Third Party Payments,478101,Purchase of Care,12-Jul-17,3308474-1722274H,877.56,ACCEPT CARE LTD.
Adult and Health Services,Head of Adults,Third Party Payments,478101,Purchase of Care,12-Jul-17,3308474-1722363H,877.56,ACCEPT CARE LTD.
Adult and Health Services,Head of Adults,Third Party Payments,478101,Purchase of Care,12-Jul-17,3308474-1722399H,"4,396.12",ACCEPT CARE LTD.
Adult and Health Services,Head of Adults,Third Party Payments,478101,Purchase of Care,12-Jul-17,3308474-1722403H,982.76,ACCEPT CARE LTD.
Adult and Health Services,Head of Adults,Third Party Payments,478101,Purchase of Care,12-Jul-17,3308474-1722410H,"3,357.52",ACCEPT CARE LTD.
Adult and Health Services,Head of Adults,Third Party Payments,478101,Purchase of Care,12-Jul-17,3308474-1722497H,"4,458.80",ACCEPT CARE LTD.
Adult and Health Services,Head of Adults,Third Party Payments,478101,Purchase of Care,12-Jul-17,3308474-1722500H,877.56,ACCEPT CARE LTD.
Adult and Health Services,Head of Adults,Third Party Payments,478101,Purchase of Care,12-Jul-17,3308474-1722713H,"6,204.68",ACCEPT CARE LTD.
Adult and Health Services,Head of Adults,Third Party Payments,478101,Purchase of Care,12-Jul-17,3308474-1722921H,"5,506.32",ACCEPT CARE LTD.
Adult and Health Services,Head of Adults,Third Party Payments,478101,Purchase of Care,12-Jul-17,3308474-1722946H,"2,444.28",ACCEPT CARE LTD.
Adult and Health Services,Head of Adults,Third Party Payments,478101,Purchase of Care,12-Jul-17,3308474-1723006H,"6,096.80",ACCEPT CARE LTD.
Adult and Health Services,Head of Adults,Third Party Payments,478101,Purchase of Care,12-Jul-17,3308474-1723024H,"4,637.84",ACCEPT CARE LTD.
Adult and Health Services,Head of Adults,Third Party Payments,478101,Purchase of Care,12-Jul-17,3308474-1723120H,"2,675.88",ACCEPT CARE LTD.
Adult and Health Services,Head of Adults,Third Party Payments,478101,Purchase of Care,12-Jul-17,3308474-1723142H,"4,969.12",ACCEPT CARE LTD.
Adult and Health Services,Head of Adults,Third Party Payments,478101,Purchase of Care,12-Jul-17,3308474-1723171H,877.56,ACCEPT CARE LTD.
Adult and Health Services,Head of Adults,Third Party Payments,478101,Purchase of Care,12-Jul-17,3308474-1723186H,"3,939.48",ACCEPT CARE LTD.
Adult and Health Services,Head of Adults,Third Party Payments,478101,Purchase of Care,12-Jul-17,3308474-1723252H,"2,267.88",ACCEPT CARE LTD.
Adult and Health Services,Head of Adults,Third Party Payments,478101,Purchase of Care,12-Jul-17,3308474-1723254H,"3,239.04",ACCEPT CARE LTD.
Adult and Health Services,Head of Adults,Third Party Payments,478101,Purchase of Care,12-Jul-17,3308474-1723351H,"6,473.28",ACCEPT CARE LTD.
Adult and Health Services,Head of Adults,Third Party Payments,478101,Purchase of Care,12-Jul-17,3308474-1723357H,"11,782.60",ACCEPT CARE LTD.
Adult and Health Services,Head of Adults,Third Party Payments,478101,Purchase of Care,12-Jul-17,3308474-1723361H,877.56,ACCEPT CARE LTD.
Adult and Health Services,Head of Adults,Third Party Payments,478101,Purchase of Care,12-Jul-17,3308474-1723367H,"3,395.84",ACCEPT CARE LTD.
Adult and Health Services,Head of Adults,Third Party Payments,478101,Purchase of Care,12-Jul-17,3308474-1723448H,"3,632.16",ACCEPT CARE LTD.
Adult and Health Services,Head of Adults,Third Party Payments,478101,Purchase of Care,12-Jul-17,3308474-1723455H,"6,473.28",ACCEPT CARE LTD.
Adult and Health Services,Head of Adults,Third Party Payments,478101,Purchase of Care,12-Jul-17,3308474-1723572H,"2,654.40",ACCEPT CARE LTD.
Adult and Health Services,Head of Adults,Third Party Payments,478101,Purchase of Care,12-Jul-17,3308474-1724056H,"4,421.76",ACCEPT CARE LTD.
Adult and Health Services,Head of Adults,Third Party Payments,478101,Purchase of Care,12-Jul-17,3308474-1724139H,877.56,ACCEPT CARE LTD.
Adult and Health Services,Head of Adults,Third Party Payments,478101,Purchase of Care,12-Jul-17,3308474-1724300H,877.56,ACCEPT CARE LTD.
Adult and Health Services,Head of Adults,Third Party Payments,478101,Purchase of Care,12-Jul-17,3308474-1724302H,877.56,ACCEPT CARE LTD.
Adult and Health Services,Head of Adults,Third Party Payments,478101,Purchase of Care,12-Jul-17,3308474-1724720H,"5,094.48",ACCEPT CARE LTD.
Adult and Health Services,Head of Adults,Third Party Payments,478101,Purchase of Care,12-Jul-17,3308474-1724780H,"1,377.28",ACCEPT CARE LTD.
Adult and Health Services,Head of Adults,Third Party Payments,478101,Purchase of Care,12-Jul-17,3308474-1724814H,"6,259.40",ACCEPT CARE LTD.
Adult and Health Services,Head of Adults,Third Party Payments,478101,Purchase of Care,12-Jul-17,3308474-1725113H,"1,158.52",ACCEPT CARE LTD.
Adult and Health Services,Head of Adults,Third Party Payments,478101,Purchase of Care,12-Jul-17,3308474-1725179H,"3,223.24",ACCEPT CARE LTD.
Adult and Health Services,Head of Adults,Third Party Payments,478101,Purchase of Care,12-Jul-17,3308474-1726359H,"1,515.80",ACCEPT CARE LTD.
